Workbook

Sheet Einsatz 1
A1: Nachweis über Überstunden, Überstundenvergütung und Zeitzuschläge | BV1: Datum: | BW1: =TODAY() -> 2023-02-01
C3: 1. Einsatz | I3: Rufbereitschaft und Zeitzuschläge | BT3: Monat: | BU3: 1 | BV3: Jahr: | BW3: 2023
C4: =VLOOKUP(BW3,Listen!I8:K26,2) -> 2023-04-09
C5: Name, Vorname: | K5: Orga-Einheit: | L5: Dezernat 5.3 | BU5: Freizeitausgleich wird gewährt: | BV5: ja
C6: Übliche Wegezeit (h:mm): | F6: Industriestunden: | G6: =D6*24 -> 0.00
D7: Ja | E7: Ja | F7: Ja | G7: Ja | H7: Ja
A8: Tag | B8: Datum | C8: gesetzl. Feiertag in NRW* | D8: Urlaub** | E8: Krankheit (AU)** | F8: Rufbereitschaft Mo-Fr 15:15 bis 07:00 des Folgetags*** | G8: Rufbereitschaft Sa, So, Feiertag (07:00 bis 07:00 des Folgetags)*** | H8: Rufbereitschaft weniger als 12 Std. (hh:mm) | I8: Uhrzeit Einsatz von (hh:mm) | J8: Uhrzeit Einsatz bis (hh:mm) | K8: Arbeitszeit des Einsatzes (ohne Wegezeit) | L8: Der Einsatz erfolgte ohne Präsenz (z.B. telefonisch)**** | M8: Grund des Einsatzes | N8: AZ (ggf. mit WZ) | O8: AZ (ggf. ,mit WZ) gerundet | P8: Beginn Nacht-arbeits-zeit-rahmen | Q8: Ende Nacht-arbeits-zeit-rahmen | R8: Nacht-einsatz? 1-Ja | S8: Wegezeit 1-ja | T8: Beginn Nacht-einsatz (ohne WZ) | U8: Ende Nacht-einsatz (ohne WZ) | V8: Beginn Nacht-einsatz (mit WZ) | W8: Ende Nachtarbeit (mit WZ) | X8: Nachtarbeit mit WZ | Y8: Nachtarbeit ohne WZ | Z8: Ende Nacht-einsatz (mit WZ) vor 0 | AA8: Ende Nacht-einsatz (mit WZ) nach 0 | AB8: Ende Nacht-einsatz (o WZ) vor 0 | AC8: Ende Nacht-einsatz (o WZ) nach 0 | AD8: Summe Nacht-einsatz (mit WZ) | AE8: Summe Nacht-einsatz (o WZ) | AF8: Samstagsarbeit 13-21 Uhr (mit WZ) | AG8: Samstagsarbeit 13-21 Uhr (o WZ) | AH8: Samstagsarbeit, wenn negative Zeiten | AI8: Beginn Samstags-arbeit o WZ | AJ8: Beginn Samstags-arbeit m WZ | AK8: Ende Samstags-arbeit o WZ | AL8: Ende Samstags-arbeit m WZ | AM8: Samstagsarbeit 20-21 m WZ | AN8: Samstagsarbeit 20-21 o WZ | AO8: Beginn Sonntagsarbeit mit WZ | AP8: Ende Sonntagsarbeit mit WZ | AQ8: Beginn Sonntagsarbeit o WZ | AR8: Ende Sonntagsarbeit o WZ | AS8: Sonntagsarbeit mit WZ | AT8: Sonntagsarbeit o WZ | AU8: Sonntagsarbeit mit WZ (dezimal) | AV8: Sonntagsarbeit o WZ (dezimal) | AW8: Beginn Rahmen 24. & 31.12. | AX8: Ende Rahmen 24. & 31.12. | AY8: Arbeit 24. & 31.12. | AZ8: Arbeit 24. & 31.12. Ende nach 0 Uhr | BA8: Arbeit am 24. & 31.12. (24 h) | BB8: Arbeit am 24. & 31.12. (14 h) | BC8: Beginn 24.12. & 31.12. (mit WZ) | BD8: Ende 24.12. & 31.12. (mit WZ) | BE8: Beginn 24.12. & 31.12. (o WZ) | BF8: Ende 24.12. & 31.12. (o WZ) | BG8: Arbeit 24.12. & 31.12. (mit WZ) | BH8: Arbeit 24.12. & 31.12. (o WZ) | BI8: Beginn 24.12. & 31.12. (mit WZ) | BJ8: Ende 24.12. & 31.12. bis 14 Uhr (mit WZ) | BK8: Beginn 24.12. & 31.12. (o WZ) | BL8: Ende 24.12. & 31.12. bis 14 Uhr (o WZ) | BM8: Ende 24. & 31.12. vor 14 Uhr BB32, BC32 dezimal) | BN8: Ende 24. & 31.12. nach 14 Uhr | BO8: Stunden mit Freizeitausgleich | BP8: Stunden ohne Freizeitausgleich | BQ8: Arbeit am Samstag 13-20 Uhr | BR8: Arbeit am Samstag 20-21 Uhr | BS8: Arbeit am 24.12.& 31.12. 6-14 Uhr | BT8: Arbeit am 24.12. 14-24 Uhr; am 25./26.12. & am 01.05. | BU8: Arbeit am Sonntag | BV8: Arbeit am Feiertag mit Freizeitausgleich | BW8: Arbeit am Feiertag ohne Freizeitausgleich | BX8: Nachtarbeit (21-6 Uhr)
D9: 5167 | E9: 5168 | F9: 5200 | G9: 5201 | H9: 5204 | BO9: 5012 | BP9: 5012 und 5014 | BQ9: 5080 | BR9: 5083 | BS9: 5070 | BT9: 5071 | BU9: 5050 | BV9: 5061 | BW9: 5060 und 5061 | BX9: 5040 | CA9: Wochenend. Feiertage | CC9: Mo-Fr | CE9: Urlaub | CG9: Krank | CH9: =DATE(BW3,1,1) -> 44927 | CI9: =IF(INT(BW3/4)=BW3/4,1,0) -> 0
A10: =TEXT(B10,"TTTT") -> Sonntag | B10: =DATE(BW3,BU3,1) -> 2023-01-01 | C10: =IF(BU3=1,"Neujahr",IF(BU3=11,"Allerheiligen",IF(CJ10=1,CI10,""))) -> Neujahr | K10: =IF(OR(I10="",J10=""),0,MOD(J10-I10,1)) -> 00:00:00 | N10: =IF(K10="",0,IF(L10="",K10+(2*$D$6),K10)) -> 00:00:00 | O10: =IF(J10="",0,(IF(L10="ja",ROUNDUP(N10*48,0.5)/48,ROUNDUP(N10*24,0)/24))) -> 00:00:00 | P10: 21:00:00 | Q10: 06:00:00 | R10: =IF(I10="",0,IF(OR(I10>=P10,I10<=Q10),1,IF(OR(J10>=P10,J10<=Q10),1,IF(AND(I10<=P10,J10>=Q10,J10<I10),1,0)))) -> 0 | S10: =IF(L10="",1,"") -> 1 | T10: =IF(OR(I10="",S10=1),0,IF(R10,IF(AND(I10<=P10,I10>=Q10),P10,IF(OR(I10>=P10,I10<=Q10),I10,P10)),0)) -> 00:00:00 | U10: =IF(OR(R10=0,J10="",S10=1),0,IF(J10<=Q10,J10,IF(J10>=P10,J10,Q10))) -> 00:00:00 | V10: =IF(OR(I10="",S10=""),0,IF(R10,IF(AND((I10-$D$6)<=P10,(I10-$D$6)>=Q10),P10,IF(OR((I10-$D$6)>=P10,(I10-$D$6)<=Q10),I10-$D$6,P10)),0)) -> 00:00:00 | W10: =IF(OR(J10="",S10=""),0,IF(R10,IF(AND((J10+$D$6)<=P10,(J10+$D$6)>=Q10),Q10,IF(OR((J10+$D$6)<=P10,(J10+$D$6)>=Q10),J10+$D$6,Q10)),0)) -> 00:00:00 | X10: =IF(AND(S10="",T10=0),0,IF(W10-V10,(W10+1)-V10,0)) -> 00:00:00 | Y10: =IF(OR(S10="1",T10=0),0,IF(U10-T10,(U10+1)-T10,0)) -> 00:00:00 | Z10: =IF(W10=0,0,IF(W10<=23.58,X10*24-24)) -> 0.00 | AA10: =IF(W10=0,0,IF(W10>0,X10*24)) -> 0.00 | AB10: =IF(U10=0,0,IF(U10<=23.58,Y10*24-24)) -> 0.00 | AC10: =IF(U10=0,0,IF(U10>0,Y10*24)) -> 0.00 | AD10: =IF(AND(S10=1,Z10<=0,AA10<24),AA10,IF(AA10>0,Z10)) -> 0.00 | AE10: =IF(AND(S10="",AB10<=0,AC10<24),AC10,IF(AC10>0,AB10)) -> FALSE | AF10: =IF(AND(F10=0,J10=0),0,IF(AND(A10="Samstag",S10=1),IF(J10>I10,IF(J10>=0.875,0.875,J10+$D$6)-IF(I10<=(13/24),(13/24),I10-$D$6),IF(I10<=0.875,0.875-I10,0)),0)) -> 00:00:00 | AG10: =IF(S10=1,0,IF(AND(J10=0,F10=0),0,IF(A10="Samstag",IF(J10>I10,IF(J10>=0.875,0.875,J10)-IF(I10<=(13/24),(13/24),I10),IF(I10<=0.875,0.875-I10,0)),0))) -> 00:00:00 | AH10: =IF(AG10>0,AG10*24,AF10*24) -> 0.00 | AI10: =IF(AND(A10="Samstag",I10>0,S10=1),0,IF(AND(A10="Samstag",I10>0,S10=""),I10*24,0)) -> 0.00 | AJ10: =IF(AND(A10="Samstag",I10>0,S10=1),(I10-$D$6)*24,IF(AND(A10="Samstag",I10>0),I10*24,0)) -> 0.00 | AK10: =IF(AND(A10="Samstag",J10>0,S10=1),0,IF(AND(A10="Samstag",J10>0,S10=""),J10*24,0)) -> 0.00 | AL10: =IF(AND(A10="Samstag",J10>0,S10=1),(J10+$D$6)*24,0) -> 0.00 | AM10: =IF(OR(I10="",L10="ja",AJ10>=21,AND(AJ10<=20,AL10<=20)),0,IF(AND(AJ10<=20,AL10>20,AL10<=21),AL10-20-BV10-BW10,IF(AND(AJ10<=20,AL10>21),21-20-BV10-BW10,IF(AND(AJ10>=20,AJ10<21,AL10>=0,AL10<=12),21-AJ10-BV10-BW10,IF(AND(AJ10<21,OR(AND(AL10>=0,AL10<=21),AND(AL10>=21,AL10<=23.99))),21-20-BV10-BW10))))) -> 0.00 | AN10: =IF(OR(I10="",L10="",AI10>=21,AND(AI10<=20,AK10<=20)),0,IF(AND(AI10<=20,AK10>20,AK10<=21),AK10-20-BV10-BW10,IF(AND(AI10<=20,AK10>21),21-20-BV10-BW10,IF(AND(AI10>=20,AI10<21,AK10>=0,AK10<=12),21-AI10-BV10-BW10,IF(AND(AI10<21,OR(AND(AK10>=0,AK10<=21),AND(AK10>=21,AK10<=23.99))),21-20-BV10-BW10))))) -> 0.00 | AO10: =IF(A10="Sonntag",I10-$D$6,IF(A10="Samstag",IF(J10<I10,0,0),0)) -> 00:00:00 | AP10: =IF(J10="",0,IF(A10="Sonntag",IF((J10+$D$6)<I10,1,J10+$D$6),IF(A10="Samstag",IF((J10+$D$6)<I10,J10+$D$6,0),0))) -> 00:00:00 | AQ10: =IF(A10="Sonntag",I10,IF(A10="Samstag",IF(J10<I10,0,0),0)) -> 00:00:00 | AR10: =IF(A10="Sonntag",IF(J10<I10,1,J10),IF(A10="Samstag",IF(J10<I10,J10,0),0)) -> 00:00:00 | AS10: =IF(J10="",0,IF(AND(AO10=0,AP10=0),0,IF(OR(A10="Sonntag",A10="Samstag"),AP10-AO10,0))) -> 00:00:00 | AT10: =IF(AND(AQ10=0,AR10=0),0,IF(OR(A10="Sonntag",A10="Samstag"),AR10-AQ10,0)) -> 00:00:00 | AU10: =IF(OR(AS10=0,AS10=""),0,IF(AND(AS10>0,BV10>=0,$BV$5="ja"),AS10*24-BV10,IF(AND(AS10>0,BV10>=0,$BV$5="nein"),AS10*24-BW10))) -> 0.00 | AV10: =IF(OR(AT10=0,AT10=""),0,IF(AND(AT10>0,BV10>=0,$BV$5="ja"),AT10*24-BV10,IF(AND(AT10>0,BV10>=0,$BV$5="nein"),AT10*24-BW10))) -> 0.00 | AW10: 06:00:00 | AX10: 00:00:00 | AY10: =IF(I10="",0,IF(OR(I10>=AW10,I10<=AX10),1,IF(OR(J10>=AW10,J10<=AX10),1,IF(AND(I10<=TT10,J10>=AX10,J10<I10),1,0)))) -> 0 | AZ10: =(J10+$D$6)*24 -> 0.00 | BA10: 24.00 | BB10: 0.00 | BC10: =I10*24 -> 0.00 | BD10: =IF(OR(J10="",AY10=0),0,IF(AY10=1,IF(AZ10>BA10,AX10,J10+$D$6))) -> 00:00:00 | BE10: =IF(I10="",0,IF(AY10,IF(AND(I10<=AW10,I10>=AX10),AX10,IF(OR(I10>=AW10,I10<=AX10),I10,AW10)),0)) -> 00:00:00 | BF10: =IF(OR(AY10=0,J10=0),0,IF(J10<=AX10,J10,IF(J10>=AW10,J10,AX10))) -> 00:00:00 | BH10: =IF(BE10=0,0,IF(BE10<=0.25,BF10-BE10,(BF10+1)-BE10)) -> 00:00:00 | BI10: =IF(I10="",0,IF(AY10,IF(AND((BC10-$G$6)<=BB10,),BB10,IF(OR((BC10-$G$6)>=BB10),BC10-$G$6,BB10)),0)) -> 0.00 | BJ10: =BD10*24 -> 0.00 | BK10: =I10*24 -> 0.00 | BL10: =BF10*24 -> 0.00 | BM10: =BJ10-BI10 -> 0.00 | BN10: =BL10-BK10 -> 0.00 | BO10: =IF(O10="",0,IF($BV$5="ja",O10*24,0)) -> 0.00 | BP10: =IF(O10="",0,IF($BV$5="nein",O10*24,0)) -> 0.00 | BQ10: =IF(C10="",IF(AH10=0,0,IF(AH10>=0,AH10-BR10,IF(AND(AH10>=0,BV10>=0,$BV$5="ja"),AH10-BV10,IF(AND(AH10>=0,BW10>=0,$BV$5="nein"),AH10-BW10)))),0) -> 0.00 | BR10: =IF(L10="",AM10,AN10) -> 0.00 | BT10: =IF(AND(BU3=5,K10>0),IF(S10=1,BM10,BN10),0) -> 0.00 | BU10: =IF(S10=1, AU10,AV10) -> 0.00 | BV10: =IF($BV$5="ja",IF(OR(K10="",C10="",C10="1.Mai"),0,IF(AND(S10=1,K10>0),(K10+$D$6+$D$6)*24,K10*24)),0) -> 0.00 | BW10: =IF($BV$5="nein",IF(OR(K10="",C10=""),0,IF(AND(S10=1,K10>0),(K10+$D$6+$D$6)*24,K10*24)),0) -> 0.00 | BX10: =IF(S10=1,AD10,AE10) -> 0.00 | CA10: =IF(OR(D10="ja",E10="ja"),"",IF(OR(CJ10=1,TEXT(B10,"TTTT")="Samstag",TEXT(B10,"TTTT")="Sonntag"),"ja","")) -> ja | CC10: =IF(OR(D10="ja",E10="ja"),"",IF(CA10="ja","","ja")) ->  | CE10: =IF(AND(E10="",F10="",G10=""),"ja","") -> ja | CG10: =IF(AND(D10="",F10="",G10=""),"ja","") -> ja | CH10: =B10-CH$9 -> 0 | CI10: =IF(OR(CH10=CK$10,CH10=CK$12,CH10=CK$13,CH10=CK$15,CH10=CK$16),VLOOKUP(CH10,$CK$10:$CL$16,2),"") ->  | CJ10: =IF($BU$3=5,1,IF(OR(CH10=CK$10,,CH10=CK$12,CH10=CK$13,CH10=CK$14,CH10=CK$15,CH10=CK$16,,CH10=CK$18,CH10=CK$19),1,0)) -> 1 | CK10: =VLOOKUP($BW$3,Listen!$I$8:$R$26,4) -> 95 | CL10: Karfreitag
A11: =TEXT(B11,"TTTT") -> Montag | B11: =B10+1 -> 2023-01-02 | C11: =IF(CJ11=1,CI11,"") ->  | K11: =IF(OR(I11="",J11=""),0,MOD(J11-I11,1)) -> 00:00:00 | N11: =IF(K11="",0,IF(L11="",K11+(2*$D$6),K11)) -> 00:00:00 | O11: =IF(J11="",0,(IF(L11="ja",ROUNDUP(N11*48,0.5)/48,ROUNDUP(N11*24,0)/24))) -> 00:00:00 | P11: 21:00:00 | Q11: 06:00:00 | R11: =IF(I11="","",IF(OR(I11>=P11,I11<=Q11),1,IF(OR(J11>=P11,J11<=Q11),1,IF(AND(I11<=P11,J11>=Q11,J11<I11),1,0)))) ->  | S11: =IF(L11="",1,"") -> 1 | T11: =IF(OR(I11="",S11=1),0,IF(R11,IF(AND(I11<=P11,I11>=Q11),P11,IF(OR(I11>=P11,I11<=Q11),I11,P11)),0)) -> 00:00:00 | U11: =IF(OR(R11=0,J11="",S11=1),0,IF(J11<=Q11,J11,IF(J11>=P11,J11,Q11))) -> 00:00:00 | V11: =IF(OR(I11="",S11=""),0,IF(R11,IF(AND((I11-$D$6)<=P11,(I11-$D$6)>=Q11),P11,IF(OR((I11-$D$6)>=P11,(I11-$D$6)<=Q11),I11-$D$6,P11)),0)) -> 00:00:00 | W11: =IF(OR(J11="",S11=""),0,IF(R11,IF(AND((J11+$D$6)<=P11,(J11+$D$6)>=Q11),Q11,IF(OR((J11+$D$6)<=P11,(J11+$D$6)>=Q11),J11+$D$6,Q11)),0)) -> 00:00:00 | X11: =IF(AND(S11="",T11=0),0,IF(W11-V11,(W11+1)-V11,0)) -> 00:00:00 | Y11: =IF(OR(S11="1",T11=0),0,IF(U11-T11,(U11+1)-T11,0)) -> 00:00:00 | Z11: =IF(W11=0,0,IF(W11<=23.58,X11*24-24)) -> 0.00 | AA11: =IF(W11=0,0,IF(W11>0,X11*24)) -> 0.00 | AB11: =IF(U11=0,0,IF(U11<=23.58,Y11*24-24)) -> 0.00 | AC11: =IF(U11=0,0,IF(U11>0,Y11*24)) -> 0.00 | AD11: =IF(AND(S11=1,Z11<=0,AA11<24),AA11,IF(AA11>0,Z11)) -> 0.00 | AE11: =IF(AND(S11="",AB11<=0,AC11<24),AC11,IF(AC11>0,AB11)) -> FALSE | AF11: =IF(AND(F11=0,J11=0),0,IF(AND(A11="Samstag",S11=1),IF(J11>I11,IF(J11>=0.875,0.875,J11+$D$6)-IF(I11<=(13/24),(13/24),I11-$D$6),IF(I11<=0.875,0.875-I11,0)),0)) -> 00:00:00 | AG11: =IF(S11=1,0,IF(AND(J11=0,F11=0),0,IF(A11="Samstag",IF(J11>I11,IF(J11>=0.875,0.875,J11)-IF(I11<=(13/24),(13/24),I11),IF(I11<=0.875,0.875-I11,0)),0))) -> 00:00:00 | AH11: =IF(AG11>0,AG11*24,AF11*24) -> 0.00 | AI11: =IF(AND(A11="Samstag",I11>0,S11=1),0,IF(AND(A11="Samstag",I11>0,S11=""),I11*24,0)) -> 0.00 | AJ11: 0.00 | AK11: =IF(AND(A11="Samstag",J11>0,S11=1),0,IF(AND(A11="Samstag",J11>0,S11=""),J11*24,0)) -> 0.00 | AL11: 0.00 | AM11: =IF(OR(I11="",L11="ja",AJ11>=21,AND(AJ11<=20,AL11<=20)),0,IF(AND(AJ11<=20,AL11>20,AL11<=21),AL11-20-BV11-BW11,IF(AND(AJ11<=20,AL11>21),21-20-BV11-BW11,IF(AND(AJ11>=20,AJ11<21,AL11>=0,AL11<=12),21-AJ11-BV11-BW11,IF(AND(AJ11<21,OR(AND(AL11>=0,AL11<=21),AND(AL11>=21,AL11<=23.99))),21-20-BV11-BW11))))) -> 0.00 | AN11: =IF(OR(I11="",L11="",AI11>=21,AND(AI11<=20,AK11<=20)),0,IF(AND(AI11<=20,AK11>20,AK11<=21),AK11-20-BV11-BW11,IF(AND(AI11<=20,AK11>21),21-20-BV11-BW11,IF(AND(AI11>=20,AI11<21,AK11>=0,AK11<=12),21-AI11-BV11-BW11,IF(AND(AI11<21,OR(AND(AK11>=0,AK11<=21),AND(AK11>=21,AK11<=23.99))),21-20-BV11-BW11))))) -> 0.00 | AO11: 00:00:00 | AP11: 00:00:00 | AQ11: 00:00:00 | AR11: 00:00:00 | AS11: 00:00:00 | AT11: 00:00:00 | AU11: 0.00 | AV11: 0.00 | AW11: 06:00:00 | AX11: 00:00:00 | BO11: 0.00 | BP11: 0.00 | BQ11: 0.00 | BR11: =IF(L11="",AM11,AN11) -> 0.00 | BU11: 0.00 | BV11: =IF($BV$5="ja",IF(OR(K11="",C11=""),0,IF(AND(S11=1,K11>0),(K11+$D$6+$D$6)*24,K11*24)),0) -> 0.00 | BW11: =IF($BV$5="nein",IF(OR(K11="",C11=""),0,IF(AND(S11=1,K11>0),(K11+$D$6+$D$6)*24,K11*24)),0) -> 0.00 | BX11: 0.00 | CA11: =IF(OR(D11="ja",E11="ja"),"",IF(OR(CJ11=1,TEXT(B11,"TTTT")="Samstag",TEXT(B11,"TTTT")="Sonntag"),"ja","")) ->  | CC11: =IF(OR(D11="ja",E11="ja"),"",IF(CA11="ja","","ja")) -> ja | CE11: =IF(AND(E11="",F11="",G11=""),"ja","") -> ja | CG11: =IF(AND(D11="",F11="",G11=""),"ja","") -> ja | CH11: =B11-CH$9 -> 1 | CI11: =IF(OR(CH11=CK$10,CH11=CK$12,CH11=CK$13,CH11=CK$15,CH11=CK$16),VLOOKUP(CH11,$CK$10:$CL$16,2),"") ->  | CJ11: =IF(OR(CH11=CK$10,,CH11=CK$12,CH11=CK$13,CH11=CK$14,CH11=CK$15,CH11=CK$16,,CH11=CK$18,CH11=CK$19),1,0) -> 0 | CL11: Ostersonntag
A12: Dienstag | B12: =B11+1 -> 2023-01-03 | C12: =IF(BU3=10,"Tag d. dt. Einheit",IF(CJ12=1,CI12,"")) ->  | K12: 00:00:00 | N12: 00:00:00 | O12: 00:00:00 | P12: 21:00:00 | Q12: 06:00:00 | S12: 1 | T12: 00:00:00 | U12: 00:00:00 | V12: 00:00:00 | W12: 00:00:00 | X12: 00:00:00 | Y12: 00:00:00 | Z12: 0.00 | AA12: 0.00 | AB12: 0.00 | AC12: 0.00 | AD12: 0.00 | AE12: FALSE | AF12: 00:00:00 | AG12: 00:00:00 | AH12: 0.00 | AI12: 0.00 | AJ12: 0.00 | AK12: 0.00 | AL12: 0.00 | AM12: 0.00 | AN12: 0.00 | AO12: 00:00:00 | AP12: 00:00:00 | AQ12: 00:00:00 | AR12: 00:00:00 | AS12: 00:00:00 | AT12: 00:00:00 | AU12: 0.00 | AV12: 0.00 | AW12: 06:00:00 | AX12: 00:00:00 | BO12: 0.00 | BP12: 0.00 | BQ12: 0.00 | BR12: 0.00 | BU12: 0.00 | BV12: 0.00 | BW12: 0.00 | BX12: 0.00 | CA12: =IF(OR(D12="ja",E12="ja"),"",IF(OR(CJ12=1,TEXT(B12,"TTTT")="Samstag",TEXT(B12,"TTTT")="Sonntag"),"ja","")) ->  | CC12: ja | CE12: ja | CG12: ja | CH12: =B12-CH$9 -> 2 | CJ12: =IF(OR(CH12=CK$10,,CH12=CK$12,CH12=CK$13,CH12=CK$14,CH12=CK$15,CH12=CK$16,,CH12=CK$18,CH12=CK$19),1,0) -> 0 | CK12: =VLOOKUP($BW$3,Listen!$I$8:$R$26,6) -> 98 | CL12: Ostermontag
A13: Mittwoch | B13: 2023-01-04 | C13: =IF(CJ13=1,CI13,"") ->  | K13: 00:00:00 | N13: 00:00:00 | O13: 00:00:00 | P13: 21:00:00 | Q13: 06:00:00 | S13: 1 | T13: 00:00:00 | U13: 00:00:00 | V13: 00:00:00 | W13: 00:00:00 | X13: 00:00:00 | Y13: 00:00:00 | Z13: 0.00 | AA13: 0.00 | AB13: 0.00 | AC13: 0.00 | AD13: 0.00 | AE13: FALSE | AF13: 00:00:00 | AG13: 00:00:00 | AH13: 0.00 | AI13: 0.00 | AJ13: 0.00 | AK13: 0.00 | AL13: 0.00 | AM13: 0.00 | AN13: 0.00 | AO13: 00:00:00 | AP13: 00:00:00 | AQ13: 00:00:00 | AR13: 00:00:00 | AS13: 00:00:00 | AT13: 00:00:00 | AU13: 0.00 | AV13: 0.00 | AW13: 06:00:00 | AX13: 00:00:00 | BO13: 0.00 | BP13: 0.00 | BQ13: 0.00 | BR13: 0.00 | BU13: 0.00 | BV13: 0.00 | BW13: 0.00 | BX13: 0.00 | CC13: ja | CE13: ja | CG13: ja | CH13: 3 | CJ13: 0 | CK13: =VLOOKUP($BW$3,Listen!$I$8:$R$26,7) -> 136 | CL13: Chr. Himmelfehrt
A14: Donnerstag | B14: 2023-01-05 | C14: =IF(CJ14=1,CI14,"") ->  | K14: 00:00:00 | N14: 00:00:00 | O14: 00:00:00 | P14: 21:00:00 | Q14: 06:00:00 | S14: 1 | T14: 00:00:00 | U14: 00:00:00 | V14: 00:00:00 | W14: 00:00:00 | X14: 00:00:00 | Y14: 00:00:00 | Z14: 0.00 | AA14: 0.00 | AB14: 0.00 | AC14: 0.00 | AD14: 0.00 | AE14: FALSE | AF14: 00:00:00 | AG14: 00:00:00 | AH14: 0.00 | AI14: 0.00 | AJ14: 0.00 | AK14: 0.00 | AL14: 0.00 | AM14: 0.00 | AN14: 0.00 | AO14: 00:00:00 | AP14: 00:00:00 | AQ14: 00:00:00 | AR14: 00:00:00 | AS14: 00:00:00 | AT14: 00:00:00 | AU14: 0.00 | AV14: 0.00 | AW14: 06:00:00 | AX14: 00:00:00 | BO14: 0.00 | BP14: 0.00 | BQ14: 0.00 | BR14: 0.00 | BU14: 0.00 | BV14: 0.00 | BW14: 0.00 | BX14: 0.00 | CC14: ja | CE14: ja | CG14: ja | CH14: 4 | CJ14: =IF(OR(CH14=CK$10,,CH14=CK$12,CH14=CK$13,CH14=CK$14,CH14=CK$15,CH14=CK$16,,CH14=CK$18,CH14=CK$19),1,0) -> 0 | CL14: Pfingstsonntag
A15: Freitag | B15: 2023-01-06 | K15: 00:00:00 | N15: 00:00:00 | O15: 00:00:00 | P15: 21:00:00 | Q15: 06:00:00 | S15: 1 | T15: 00:00:00 | U15: 00:00:00 | V15: 00:00:00 | W15: 00:00:00 | X15: 00:00:00 | Y15: 00:00:00 | Z15: 0.00 | AA15: 0.00 | AB15: 0.00 | AC15: 0.00 | AD15: 0.00 | AE15: FALSE | AF15: 00:00:00 | AG15: 00:00:00 | AH15: 0.00 | AI15: 0.00 | AJ15: 0.00 | AK15: 0.00 | AL15: 0.00 | AM15: 0.00 | AN15: 0.00 | AO15: 00:00:00 | AP15: 00:00:00 | AQ15: 00:00:00 | AR15: 00:00:00 | AS15: 00:00:00 | AT15: 00:00:00 | AU15: 0.00 | AV15: 0.00 | AW15: 06:00:00 | AX15: 00:00:00 | BO15: 0.00 | BP15: 0.00 | BQ15: 0.00 | BR15: 0.00 | BU15: 0.00 | BV15: 0.00 | BW15: 0.00 | BX15: 0.00 | CC15: ja | CE15: ja | CG15: ja | CH15: 5 | CJ15: 0 | CK15: =VLOOKUP($BW$3,Listen!$I$8:$R$26,9) -> 147 | CL15: Pfingstmontag
A16: Samstag | B16: 2023-01-07 | K16: 00:00:00 | N16: 00:00:00 | O16: 00:00:00 | P16: 21:00:00 | Q16: 06:00:00 | S16: 1 | T16: 00:00:00 | U16: 00:00:00 | V16: 00:00:00 | W16: 00:00:00 | X16: 00:00:00 | Y16: 00:00:00 | Z16: 0.00 | AA16: 0.00 | AB16: 0.00 | AC16: 0.00 | AD16: 0.00 | AE16: FALSE | AF16: 00:00:00 | AG16: 00:00:00 | AH16: 0.00 | AI16: 0.00 | AJ16: 0.00 | AK16: 0.00 | AL16: 0.00 | AM16: 0.00 | AN16: 0.00 | AO16: 00:00:00 | AP16: 00:00:00 | AQ16: 00:00:00 | AR16: 00:00:00 | AS16: 00:00:00 | AT16: 00:00:00 | AU16: 0.00 | AV16: 0.00 | AW16: 06:00:00 | AX16: 00:00:00 | BO16: 0.00 | BP16: 0.00 | BQ16: 0.00 | BR16: 0.00 | BU16: 0.00 | BV16: 0.00 | BW16: 0.00 | BX16: 0.00 | CA16: ja | CE16: ja | CG16: ja | CH16: 6 | CJ16: 0 | CK16: =VLOOKUP($BW$3,Listen!$I$8:$R$26,10) -> 157 | CL16: Fronleichnam
A17: Sonntag | B17: 2023-01-08 | K17: 00:00:00 | N17: 00:00:00 | O17: 00:00:00 | P17: 21:00:00 | Q17: 06:00:00 | S17: 1 | T17: 00:00:00 | U17: 00:00:00 | V17: 00:00:00 | W17: 00:00:00 | X17: 00:00:00 | Y17: 00:00:00 | Z17: 0.00 | AA17: 0.00 | AB17: 0.00 | AC17: 0.00 | AD17: 0.00 | AE17: FALSE | AF17: 00:00:00 | AG17: 00:00:00 | AH17: 0.00 | AI17: 0.00 | AJ17: 0.00 | AK17: 0.00 | AL17: 0.00 | AM17: 0.00 | AN17: 0.00 | AO17: 00:00:00 | AP17: 00:00:00 | AQ17: 00:00:00 | AR17: 00:00:00 | AS17: 00:00:00 | AT17: 00:00:00 | AU17: 0.00 | AV17: 0.00 | AW17: 06:00:00 | AX17: 00:00:00 | BO17: 0.00 | BP17: 0.00 | BQ17: 0.00 | BR17: 0.00 | BU17: 0.00 | BV17: 0.00 | BW17: 0.00 | BX17: 0.00 | CA17: ja | CE17: ja | CG17: ja | CH17: 7 | CJ17: 0 | CL17: Neujahr
A18: Montag | B18: 2023-01-09 | K18: 00:00:00 | N18: 00:00:00 | O18: 00:00:00 | P18: 21:00:00 | Q18: 06:00:00 | S18: 1 | T18: 00:00:00 | U18: 00:00:00 | V18: 00:00:00 | W18: 00:00:00 | X18: 00:00:00 | Y18: 00:00:00 | Z18: 0.00 | AA18: 0.00 | AB18: 0.00 | AC18: 0.00 | AD18: 0.00 | AE18: FALSE | AF18: 00:00:00 | AG18: 00:00:00 | AH18: 0.00 | AI18: 0.00 | AJ18: 0.00 | AK18: 0.00 | AL18: 0.00 | AM18: 0.00 | AN18: 0.00 | AO18: 00:00:00 | AP18: 00:00:00 | AQ18: 00:00:00 | AR18: 00:00:00 | AS18: 00:00:00 | AT18: 00:00:00 | AU18: 0.00 | AV18: 0.00 | AW18: 06:00:00 | AX18: 00:00:00 | BO18: 0.00 | BP18: 0.00 | BQ18: 0.00 | BR18: 0.00 | BU18: 0.00 | BV18: 0.00 | BW18: 0.00 | BX18: 0.00 | CC18: ja | CE18: ja | CG18: ja | CH18: 8 | CJ18: 0 | CK18: =274+CI9 -> 274 | CL18: Tag d.de.Einheit
A19: Dienstag | B19: 2023-01-10 | K19: 00:00:00 | N19: 00:00:00 | O19: 00:00:00 | P19: 21:00:00 | Q19: 06:00:00 | S19: 1 | T19: 00:00:00 | U19: 00:00:00 | V19: 00:00:00 | W19: 00:00:00 | X19: 00:00:00 | Y19: 00:00:00 | Z19: 0.00 | AA19: 0.00 | AB19: 0.00 | AC19: 0.00 | AD19: 0.00 | AE19: FALSE | AF19: 00:00:00 | AG19: 00:00:00 | AH19: 0.00 | AI19: 0.00 | AJ19: 0.00 | AK19: 0.00 | AL19: 0.00 | AM19: 0.00 | AN19: 0.00 | AO19: 00:00:00 | AP19: 00:00:00 | AQ19: 00:00:00 | AR19: 00:00:00 | AS19: 00:00:00 | AT19: 00:00:00 | AU19: 0.00 | AV19: 0.00 | AW19: 06:00:00 | AX19: 00:00:00 | BO19: 0.00 | BP19: 0.00 | BQ19: 0.00 | BR19: 0.00 | BU19: 0.00 | BV19: 0.00 | BW19: 0.00 | BX19: 0.00 | CC19: ja | CE19: ja | CG19: ja | CH19: 9 | CJ19: 0 | CK19: =303+CI9 -> 303 | CL19: Allerheiligen
A20: Mittwoch | B20: 2023-01-11 | K20: 00:00:00 | N20: 00:00:00 | O20: 00:00:00 | P20: 21:00:00 | Q20: 06:00:00 | S20: 1 | T20: 00:00:00 | U20: 00:00:00 | V20: 00:00:00 | W20: 00:00:00 | X20: 00:00:00 | Y20: 00:00:00 | Z20: 0.00 | AA20: 0.00 | AB20: 0.00 | AC20: 0.00 | AD20: 0.00 | AE20: FALSE | AF20: 00:00:00 | AG20: 00:00:00 | AH20: 0.00 | AI20: 0.00 | AJ20: 0.00 | AK20: 0.00 | AL20: 0.00 | AM20: 0.00 | AN20: 0.00 | AO20: 00:00:00 | AP20: 00:00:00 | AQ20: 00:00:00 | AR20: 00:00:00 | AS20: 00:00:00 | AT20: 00:00:00 | AU20: 0.00 | AV20: 0.00 | AW20: 06:00:00 | AX20: 00:00:00 | BO20: 0.00 | BP20: 0.00 | BQ20: 0.00 | BR20: 0.00 | BU20: 0.00 | BV20: 0.00 | BW20: 0.00 | BX20: 0.00 | CC20: ja | CE20: ja | CG20: ja | CH20: 10 | CJ20: 0
A21: Donnerstag | B21: 2023-01-12 | K21: 00:00:00 | N21: 00:00:00 | O21: 00:00:00 | P21: 21:00:00 | Q21: 06:00:00 | S21: 1 | T21: 00:00:00 | U21: 00:00:00 | V21: 00:00:00 | W21: 00:00:00 | X21: 00:00:00 | Y21: 00:00:00 | Z21: 0.00 | AA21: 0.00 | AB21: 0.00 | AC21: 0.00 | AD21: 0.00 | AE21: FALSE | AF21: 00:00:00 | AG21: 00:00:00 | AH21: 0.00 | AI21: 0.00 | AJ21: 0.00 | AK21: 0.00 | AL21: 0.00 | AM21: 0.00 | AN21: 0.00 | AO21: 00:00:00 | AP21: 00:00:00 | AQ21: 00:00:00 | AR21: 00:00:00 | AS21: 00:00:00 | AT21: 00:00:00 | AU21: 0.00 | AV21: 0.00 | AW21: 06:00:00 | AX21: 00:00:00 | BO21: 0.00 | BP21: 0.00 | BQ21: 0.00 | BR21: 0.00 | BU21: 0.00 | BV21: 0.00 | BW21: 0.00 | BX21: 0.00 | CC21: ja | CE21: ja | CG21: ja | CH21: 11 | CJ21: 0
A22: Freitag | B22: 2023-01-13 | K22: 00:00:00 | N22: 00:00:00 | O22: 00:00:00 | P22: 21:00:00 | Q22: 06:00:00 | S22: 1 | T22: 00:00:00 | U22: 00:00:00 | V22: 00:00:00 | W22: 00:00:00 | X22: 00:00:00 | Y22: 00:00:00 | Z22: 0.00 | AA22: 0.00 | AB22: 0.00 | AC22: 0.00 | AD22: 0.00 | AE22: FALSE | AF22: 00:00:00 | AG22: 00:00:00 | AH22: 0.00 | AI22: 0.00 | AJ22: 0.00 | AK22: 0.00 | AL22: 0.00 | AM22: 0.00 | AN22: 0.00 | AO22: 00:00:00 | AP22: 00:00:00 | AQ22: 00:00:00 | AR22: 00:00:00 | AS22: 00:00:00 | AT22: 00:00:00 | AU22: 0.00 | AV22: 0.00 | AW22: 06:00:00 | AX22: 00:00:00 | BO22: 0.00 | BP22: 0.00 | BQ22: 0.00 | BR22: 0.00 | BU22: 0.00 | BV22: 0.00 | BW22: 0.00 | BX22: 0.00 | CC22: ja | CE22: ja | CG22: ja | CH22: 12 | CJ22: 0
A23: Samstag | B23: 2023-01-14 | K23: 00:00:00 | N23: 00:00:00 | O23: 00:00:00 | P23: 21:00:00 | Q23: 06:00:00 | S23: 1 | T23: 00:00:00 | U23: 00:00:00 | V23: 00:00:00 | W23: 00:00:00 | X23: 00:00:00 | Y23: 00:00:00 | Z23: 0.00 | AA23: 0.00 | AB23: 0.00 | AC23: 0.00 | AD23: 0.00 | AE23: FALSE | AF23: 00:00:00 | AG23: 00:00:00 | AH23: 0.00 | AI23: 0.00 | AJ23: 0.00 | AK23: 0.00 | AL23: 0.00 | AM23: 0.00 | AN23: 0.00 | AO23: 00:00:00 | AP23: 00:00:00 | AQ23: 00:00:00 | AR23: 00:00:00 | AS23: 00:00:00 | AT23: 00:00:00 | AU23: 0.00 | AV23: 0.00 | AW23: 06:00:00 | AX23: 00:00:00 | BO23: 0.00 | BP23: 0.00 | BQ23: 0.00 | BR23: 0.00 | BU23: 0.00 | BV23: 0.00 | BW23: 0.00 | BX23: 0.00 | CA23: ja | CE23: ja | CG23: ja | CH23: 13 | CJ23: 0
A24: Sonntag | B24: 2023-01-15 | K24: 00:00:00 | N24: 00:00:00 | O24: 00:00:00 | P24: 21:00:00 | Q24: 06:00:00 | S24: 1 | T24: 00:00:00 | U24: 00:00:00 | V24: 00:00:00 | W24: 00:00:00 | X24: 00:00:00 | Y24: 00:00:00 | Z24: 0.00 | AA24: 0.00 | AB24: 0.00 | AC24: 0.00 | AD24: 0.00 | AE24: FALSE | AF24: 00:00:00 | AG24: 00:00:00 | AH24: 0.00 | AI24: 0.00 | AJ24: 0.00 | AK24: 0.00 | AL24: 0.00 | AM24: 0.00 | AN24: 0.00 | AO24: 00:00:00 | AP24: 00:00:00 | AQ24: 00:00:00 | AR24: 00:00:00 | AS24: 00:00:00 | AT24: 00:00:00 | AU24: 0.00 | AV24: 0.00 | AW24: 06:00:00 | AX24: 00:00:00 | BO24: 0.00 | BP24: 0.00 | BQ24: 0.00 | BR24: 0.00 | BU24: 0.00 | BV24: 0.00 | BW24: 0.00 | BX24: 0.00 | CA24: ja | CE24: ja | CG24: ja | CH24: 14 | CJ24: 0
A25: Montag | B25: 2023-01-16 | K25: 00:00:00 | N25: 00:00:00 | O25: 00:00:00 | P25: 21:00:00 | Q25: 06:00:00 | S25: 1 | T25: 00:00:00 | U25: 00:00:00 | V25: 00:00:00 | W25: 00:00:00 | X25: 00:00:00 | Y25: 00:00:00 | Z25: 0.00 | AA25: 0.00 | AB25: 0.00 | AC25: 0.00 | AD25: 0.00 | AE25: FALSE | AF25: 00:00:00 | AG25: 00:00:00 | AH25: 0.00 | AI25: 0.00 | AJ25: 0.00 | AK25: 0.00 | AL25: 0.00 | AM25: 0.00 | AN25: 0.00 | AO25: 00:00:00 | AP25: 00:00:00 | AQ25: 00:00:00 | AR25: 00:00:00 | AS25: 00:00:00 | AT25: 00:00:00 | AU25: 0.00 | AV25: 0.00 | AW25: 06:00:00 | AX25: 00:00:00 | BO25: 0.00 | BP25: 0.00 | BQ25: 0.00 | BR25: 0.00 | BU25: 0.00 | BV25: 0.00 | BW25: 0.00 | BX25: 0.00 | CC25: ja | CE25: ja | CG25: ja | CH25: 15 | CJ25: 0
A26: Dienstag | B26: 2023-01-17 | K26: 00:00:00 | N26: 00:00:00 | O26: 00:00:00 | P26: 21:00:00 | Q26: 06:00:00 | S26: 1 | T26: 00:00:00 | U26: 00:00:00 | V26: 00:00:00 | W26: 00:00:00 | X26: 00:00:00 | Y26: 00:00:00 | Z26: 0.00 | AA26: 0.00 | AB26: 0.00 | AC26: 0.00 | AD26: 0.00 | AE26: FALSE | AF26: 00:00:00 | AG26: 00:00:00 | AH26: 0.00 | AI26: 0.00 | AJ26: 0.00 | AK26: 0.00 | AL26: 0.00 | AM26: 0.00 | AN26: 0.00 | AO26: 00:00:00 | AP26: 00:00:00 | AQ26: 00:00:00 | AR26: 00:00:00 | AS26: 00:00:00 | AT26: 00:00:00 | AU26: 0.00 | AV26: 0.00 | AW26: 06:00:00 | AX26: 00:00:00 | BO26: 0.00 | BP26: 0.00 | BQ26: 0.00 | BR26: 0.00 | BU26: 0.00 | BV26: 0.00 | BW26: 0.00 | BX26: 0.00 | CC26: ja | CE26: ja | CG26: ja | CH26: 16 | CJ26: 0
A27: Mittwoch | B27: 2023-01-18 | K27: 00:00:00 | N27: 00:00:00 | O27: 00:00:00 | P27: 21:00:00 | Q27: 06:00:00 | S27: 1 | T27: 00:00:00 | U27: 00:00:00 | V27: 00:00:00 | W27: 00:00:00 | X27: 00:00:00 | Y27: 00:00:00 | Z27: 0.00 | AA27: 0.00 | AB27: 0.00 | AC27: 0.00 | AD27: 0.00 | AE27: FALSE | AF27: 00:00:00 | AG27: 00:00:00 | AH27: 0.00 | AI27: 0.00 | AJ27: 0.00 | AK27: 0.00 | AL27: 0.00 | AM27: 0.00 | AN27: 0.00 | AO27: 00:00:00 | AP27: 00:00:00 | AQ27: 00:00:00 | AR27: 00:00:00 | AS27: 00:00:00 | AT27: 00:00:00 | AU27: 0.00 | AV27: 0.00 | AW27: 06:00:00 | AX27: 00:00:00 | BO27: 0.00 | BP27: 0.00 | BQ27: 0.00 | BR27: 0.00 | BU27: 0.00 | BV27: 0.00 | BW27: 0.00 | BX27: 0.00 | CC27: ja | CE27: ja | CG27: ja | CH27: 17 | CJ27: 0
A28: Donnerstag | B28: 2023-01-19 | K28: 00:00:00 | N28: 00:00:00 | O28: 00:00:00 | P28: 21:00:00 | Q28: 06:00:00 | S28: 1 | T28: 00:00:00 | U28: 00:00:00 | V28: 00:00:00 | W28: 00:00:00 | X28: 00:00:00 | Y28: 00:00:00 | Z28: 0.00 | AA28: 0.00 | AB28: 0.00 | AC28: 0.00 | AD28: 0.00 | AE28: FALSE | AF28: 00:00:00 | AG28: 00:00:00 | AH28: 0.00 | AI28: 0.00 | AJ28: 0.00 | AK28: 0.00 | AL28: 0.00 | AM28: 0.00 | AN28: 0.00 | AO28: 00:00:00 | AP28: 00:00:00 | AQ28: 00:00:00 | AR28: 00:00:00 | AS28: 00:00:00 | AT28: 00:00:00 | AU28: 0.00 | AV28: 0.00 | AW28: 06:00:00 | AX28: 00:00:00 | BO28: 0.00 | BP28: 0.00 | BQ28: 0.00 | BR28: 0.00 | BU28: 0.00 | BV28: 0.00 | BW28: 0.00 | BX28: 0.00 | CC28: ja | CE28: ja | CG28: ja | CH28: 18 | CJ28: 0
A29: Freitag | B29: 2023-01-20 | K29: 00:00:00 | N29: 00:00:00 | O29: 00:00:00 | P29: 21:00:00 | Q29: 06:00:00 | S29: 1 | T29: 00:00:00 | U29: 00:00:00 | V29: 00:00:00 | W29: 00:00:00 | X29: 00:00:00 | Y29: 00:00:00 | Z29: 0.00 | AA29: 0.00 | AB29: 0.00 | AC29: 0.00 | AD29: 0.00 | AE29: FALSE | AF29: 00:00:00 | AG29: 00:00:00 | AH29: 0.00 | AI29: 0.00 | AJ29: 0.00 | AK29: 0.00 | AL29: 0.00 | AM29: 0.00 | AN29: 0.00 | AO29: 00:00:00 | AP29: 00:00:00 | AQ29: 00:00:00 | AR29: 00:00:00 | AS29: 00:00:00 | AT29: 00:00:00 | AU29: 0.00 | AV29: 0.00 | AW29: 06:00:00 | AX29: 00:00:00 | BO29: 0.00 | BP29: 0.00 | BQ29: 0.00 | BR29: 0.00 | BU29: 0.00 | BV29: 0.00 | BW29: 0.00 | BX29: 0.00 | CC29: ja | CE29: ja | CG29: ja | CH29: 19 | CJ29: 0
A30: Samstag | B30: 2023-01-21 | K30: 00:00:00 | N30: 00:00:00 | O30: 00:00:00 | P30: 21:00:00 | Q30: 06:00:00 | S30: 1 | T30: 00:00:00 | U30: 00:00:00 | V30: 00:00:00 | W30: 00:00:00 | X30: 00:00:00 | Y30: 00:00:00 | Z30: 0.00 | AA30: 0.00 | AB30: 0.00 | AC30: 0.00 | AD30: 0.00 | AE30: FALSE | AF30: 00:00:00 | AG30: 00:00:00 | AH30: 0.00 | AI30: 0.00 | AJ30: 0.00 | AK30: 0.00 | AL30: 0.00 | AM30: 0.00 | AN30: 0.00 | AO30: 00:00:00 | AP30: 00:00:00 | AQ30: 00:00:00 | AR30: 00:00:00 | AS30: 00:00:00 | AT30: 00:00:00 | AU30: 0.00 | AV30: 0.00 | AW30: 06:00:00 | AX30: 00:00:00 | BO30: 0.00 | BP30: 0.00 | BQ30: 0.00 | BR30: 0.00 | BU30: 0.00 | BV30: 0.00 | BW30: 0.00 | BX30: 0.00 | CA30: ja | CE30: ja | CG30: ja | CH30: 20 | CJ30: 0
A31: Sonntag | B31: 2023-01-22 | K31: 00:00:00 | N31: 00:00:00 | O31: 00:00:00 | P31: 21:00:00 | Q31: 06:00:00 | S31: 1 | T31: 00:00:00 | U31: 00:00:00 | V31: 00:00:00 | W31: 00:00:00 | X31: 00:00:00 | Y31: 00:00:00 | Z31: 0.00 | AA31: 0.00 | AB31: 0.00 | AC31: 0.00 | AD31: 0.00 | AE31: FALSE | AF31: 00:00:00 | AG31: 00:00:00 | AH31: 0.00 | AI31: 0.00 | AJ31: 0.00 | AK31: 0.00 | AL31: 0.00 | AM31: 0.00 | AN31: 0.00 | AO31: 00:00:00 | AP31: 00:00:00 | AQ31: 00:00:00 | AR31: 00:00:00 | AS31: 00:00:00 | AT31: 00:00:00 | AU31: 0.00 | AV31: 0.00 | AW31: 06:00:00 | AX31: 00:00:00 | BO31: 0.00 | BP31: 0.00 | BQ31: 0.00 | BR31: 0.00 | BU31: 0.00 | BV31: 0.00 | BW31: 0.00 | BX31: 0.00 | CA31: ja | CE31: ja | CG31: ja | CH31: 21 | CJ31: 0
A32: Montag | B32: 2023-01-23 | K32: 00:00:00 | N32: 00:00:00 | O32: 00:00:00 | P32: 21:00:00 | Q32: 06:00:00 | S32: 1 | T32: 00:00:00 | U32: 00:00:00 | V32: 00:00:00 | W32: 00:00:00 | X32: 00:00:00 | Y32: 00:00:00 | Z32: 0.00 | AA32: 0.00 | AB32: 0.00 | AC32: 0.00 | AD32: 0.00 | AE32: FALSE | AF32: 00:00:00 | AG32: 00:00:00 | AH32: 0.00 | AI32: 0.00 | AJ32: 0.00 | AK32: 0.00 | AL32: 0.00 | AM32: 0.00 | AN32: 0.00 | AO32: 00:00:00 | AP32: 00:00:00 | AQ32: 00:00:00 | AR32: 00:00:00 | AS32: 00:00:00 | AT32: 00:00:00 | AU32: 0.00 | AV32: 0.00 | AW32: 06:00:00 | AX32: 00:00:00 | BO32: 0.00 | BP32: 0.00 | BQ32: 0.00 | BR32: 0.00 | BU32: 0.00 | BV32: 0.00 | BW32: 0.00 | BX32: 0.00 | CC32: ja | CE32: ja | CG32: ja | CH32: 22 | CJ32: 0
A33: Dienstag | B33: 2023-01-24 | C33: =IF(CJ33=1,CI33,"") ->  | K33: 00:00:00 | N33: 00:00:00 | O33: 00:00:00 | P33: 21:00:00 | Q33: 06:00:00 | S33: 1 | T33: 00:00:00 | U33: 00:00:00 | V33: 00:00:00 | W33: 00:00:00 | X33: 00:00:00 | Y33: 00:00:00 | Z33: 0.00 | AA33: 0.00 | AB33: 0.00 | AC33: 0.00 | AD33: 0.00 | AE33: FALSE | AF33: 00:00:00 | AG33: 00:00:00 | AH33: 0.00 | AI33: 0.00 | AJ33: 0.00 | AK33: 0.00 | AL33: 0.00 | AM33: 0.00 | AN33: 0.00 | AO33: 00:00:00 | AP33: 00:00:00 | AQ33: 00:00:00 | AR33: 00:00:00 | AS33: 00:00:00 | AT33: 00:00:00 | AU33: 0.00 | AV33: 0.00 | AW33: 06:00:00 | AX33: 00:00:00 | AY33: =IF(I33="",0,IF(OR(I33>=AW33,I33<=AX33),1,IF(OR(J33>=AW33,J33<=AX33),1,IF(AND(I33<=TR33,J33>=AX33,J33<I33),1,0)))) -> 0 | AZ33: =(J33+$D$6)*24 -> 0.00 | BA33: 24.00 | BB33: 14.00 | BC33: =IF(I33="",0,IF(AY33,IF(AND((I33-$D$6)<=AW33,(I33-$D$6)>=AX33),AW33,IF(OR((I33-$D$6)>=AW33,(I33-$D$6)<=AX33),I33-$D$6,AW33)),0)) -> 00:00:00 | BD33: =IF(OR(J33="",AY33=0),0,IF(AY33=1,IF(AZ33>BA33,AX33,J33+$D$6))) -> 00:00:00 | BE33: =IF(I33="",0,IF(AY33,IF(AND(I33<=AW33,I33>=AX33),AW33,IF(OR(I33>=AW33,I33<=AX33),I33,AW33)),0)) -> 00:00:00 | BF33: =IF(OR(AY33=0,J33=0),0,IF(J33<=AX33,J33,IF(J33>=AW33,J33,AX33))) -> 00:00:00 | BG33: =IF(BE33=0,0,IF(BE33<=0.25,BD33-BC33,(BD33+1)-BC33)) -> 00:00:00 | BH33: =IF(BE33=0,0,IF(BE33<=0.25,BF33-BE33,(BF33+1)-BE33)) -> 00:00:00 | BI33: =BC33*24 -> 0.00 | BJ33: =BD33*24 -> 0.00 | BK33: =BE33*24 -> 0.00 | BL33: =BF33*24 -> 0.00 | BM33: =IF(AND(I33>0,$BU$3=12,BI33<=BB33),BB33-BI33,0) -> 0.00 | BN33: =IF(AND(I33>0,BJ33>BB33,S33=1),IF(BI33-BB33<0,BG33*24-24-BM33,BI33-BB33),IF(BL33>BB33,BB33-BK33,0)) -> 0.00 | BO33: 0.00 | BP33: 0.00 | BQ33: =IF(BU3=12,0,IF(C33="",IF(AH33=0,0,IF(AH33>=0,AH33-BR33,IF(AND(AH33>=0,BV33>=0,$BV$5="ja"),AH33-BV33,IF(AND(AH33>=0,BW33>=0,$BV$5="nein"),AH33-BW33)))),0)) -> 0.00 | BR33: 0.00 | BS33: =IF($BU$3=12,BN33,0) -> 0.00 | BT33: =IF(AND($BU$3=12,BJ33>BB33,BJ33<=BA33),SUM(BJ33-IF(BI33>14,BI33,14)),IF(AND($BU$3=12,BL33>14,BL33<=BA33),SUM(IF(BL33-14>0,BL33,14)),0)) -> 0.00 | BU33: 0.00 | BV33: 0.00 | BW33: 0.00 | BX33: 0.00 | CA33: =IF(OR(D33="ja",E33="ja"),"",IF(OR(CJ33=1,TEXT(B33,"TTTT")="Samstag",TEXT(B33,"TTTT")="Sonntag"),"ja","")) ->  | CC33: ja | CE33: ja | CG33: ja | CH33: 23 | CJ33: 0
A34: Mittwoch | B34: 2023-01-25 | C34: =IF(BU3=12,"1. Weihnach.",IF(CJ34=1,CI34,"")) ->  | K34: 00:00:00 | N34: 00:00:00 | O34: 00:00:00 | P34: 21:00:00 | Q34: 06:00:00 | S34: 1 | T34: 00:00:00 | U34: 00:00:00 | V34: 00:00:00 | W34: 00:00:00 | X34: 00:00:00 | Y34: 00:00:00 | Z34: 0.00 | AA34: 0.00 | AB34: 0.00 | AC34: 0.00 | AD34: 0.00 | AE34: FALSE | AF34: 00:00:00 | AG34: 00:00:00 | AH34: 0.00 | AI34: 0.00 | AJ34: 0.00 | AK34: 0.00 | AL34: 0.00 | AM34: 0.00 | AN34: 0.00 | AO34: 00:00:00 | AP34: 00:00:00 | AQ34: 00:00:00 | AR34: 00:00:00 | AS34: 00:00:00 | AT34: 00:00:00 | AU34: 0.00 | AV34: 0.00 | AW34: 06:00:00 | AX34: 00:00:00 | AY34: =IF(I34="",0,IF(OR(I34>=AW34,I34<=AX34),1,IF(OR(J34>=AW34,J34<=AX34),1,IF(AND(I34<=TR34,J34>=AX34,J34<I34),1,0)))) -> 0 | AZ34: =(J34+$D$6)*24 -> 0.00 | BA34: 24.00 | BB34: 0.00 | BC34: =I34*24 -> 0.00 | BD34: =IF(OR(J34="",AY34=0),0,IF(AY34=1,IF(AZ34>BA34,AX34,J34+$D$6))) -> 0 | BE34: =IF(I34="",0,IF(AY34,IF(AND(I34<=AW34,I34>=AX34),AX34,IF(OR(I34>=AW34,I34<=AX34),I34,AW34)),0)) -> 0 | BF34: =IF(OR(AY34=0,J34=0),0,IF(J34<=AX34,J34,IF(J34>=AW34,J34,AX34))) -> 00:00:00 | BH34: =IF(BE34=0,0,IF(BE34<=0.25,BF34-BE34,(BF34+1)-BE34)) -> 00:00:00 | BI34: =IF(I34="",0,IF(AY34,IF(AND((BC34-$G$6)<=BB34,),BB34,IF(OR((BC34-$G$6)>=BB34),BC34-$G$6,BB34)),0)) -> 0.00 | BJ34: =BD34*24 -> 0.00 | BK34: =I34*24 -> 0.00 | BL34: =BF34*24 -> 0.00 | BM34: =BJ34-BI34 -> 0.00 | BN34: =BL34-BK34 -> 0.00 | BO34: 0.00 | BP34: 0.00 | BQ34: =IF(BU3=12,0,IF(C34="",IF(AH34=0,0,IF(AH34>=0,AH34-BR34,IF(AND(AH34>=0,BV34>=0,$BV$5="ja"),AH34-BV34,IF(AND(AH34>=0,BW34>=0,$BV$5="nein"),AH34-BW34)))),0)) -> 0.00 | BR34: 0.00 | BS34: =IF($BU$3=12,BN34,0) -> 0.00 | BT34: =IF(AND(BU3=12,K34>0),IF(S34=1,BM34,BN34),0) -> 0.00 | BU34: 0.00 | BV34: =IF($BV$5="ja",IF(OR(K34="",C34="",C34="1. Weihnach.",C34="2. Weihnach."),0,IF(AND(S34=1,K34>0),(K34+$D$6+$D$6)*24,K34*24)),0) -> 0.00 | BW34: 0.00 | BX34: 0.00 | CA34: =IF(BU3=12,"ja",IF(OR(D34="ja",E34="ja"),"",IF(OR(CJ34=1,TEXT(B34,"TTTT")="Samstag",TEXT(B34,"TTTT")="Sonntag"),"ja",""))) ->  | CC34: ja | CE34: ja | CG34: ja | CH34: 24 | CJ34: 0
A35: Donnerstag | B35: 2023-01-26 | C35: =IF(BU3=12,"2. Weihnach.",IF(CJ35=1,CI35,"")) ->  | K35: 00:00:00 | N35: 00:00:00 | O35: 00:00:00 | P35: 21:00:00 | Q35: 06:00:00 | S35: 1 | T35: 00:00:00 | U35: 00:00:00 | V35: 00:00:00 | W35: 00:00:00 | X35: 00:00:00 | Y35: 00:00:00 | Z35: 0.00 | AA35: 0.00 | AB35: 0.00 | AC35: 0.00 | AD35: 0.00 | AE35: FALSE | AF35: 00:00:00 | AG35: 00:00:00 | AH35: 0.00 | AI35: 0.00 | AJ35: 0.00 | AK35: 0.00 | AL35: 0.00 | AM35: 0.00 | AN35: 0.00 | AO35: 00:00:00 | AP35: 00:00:00 | AQ35: 00:00:00 | AR35: 00:00:00 | AS35: 00:00:00 | AT35: 00:00:00 | AU35: 0.00 | AV35: 0.00 | AW35: 06:00:00 | AX35: 00:00:00 | AY35: =IF(I35="",0,IF(OR(I35>=AW35,I35<=AX35),1,IF(OR(J35>=AW35,J35<=AX35),1,IF(AND(I35<=TR35,J35>=AX35,J35<I35),1,0)))) -> 0 | AZ35: =(J35+$D$6)*24 -> 0.00 | BA35: 24.00 | BB35: 0.00 | BC35: =I35*24 -> 0.00 | BD35: =IF(OR(J35="",AY35=0),0,IF(AY35=1,IF(AZ35>BA35,AX35,J35+$D$6))) -> 0 | BE35: =IF(I35="",0,IF(AY35,IF(AND(I35<=AW35,I35>=AX35),AX35,IF(OR(I35>=AW35,I35<=AX35),I35,AW35)),0)) -> 0 | BF35: =IF(OR(AY35=0,J35=0),0,IF(J35<=AX35,J35,IF(J35>=AW35,J35,AX35))) -> 00:00:00 | BH35: =IF(BE35=0,0,IF(BE35<=0.25,BF35-BE35,(BF35+1)-BE35)) -> 00:00:00 | BI35: =IF(I35="",0,IF(AY35,IF(AND((BC35-$G$6)<=BB35,),BB35,IF(OR((BC35-$G$6)>=BB35),BC35-$G$6,BB35)),0)) -> 0.00 | BJ35: =BD35*24 -> 0.00 | BK35: =I35*24 -> 0.00 | BL35: =BF35*24 -> 0.00 | BM35: =BJ35-BI35 -> 0.00 | BN35: =BL35-BK35 -> 0.00 | BO35: 0.00 | BP35: 0.00 | BQ35: =IF(BU3=12,0,IF(C35="",IF(AH35=0,0,IF(AH35>=0,AH35-BR35,IF(AND(AH35>=0,BV35>=0,$BV$5="ja"),AH35-BV35,IF(AND(AH35>=0,BW35>=0,$BV$5="nein"),AH35-BW35)))),0)) -> 0.00 | BR35: 0.00 | BS35: =IF($BU$3=12,BN35,0) -> 0.00 | BT35: =IF(AND(BU3=12,K35>0),IF(S35=1,BM35,BN35),0) -> 0.00 | BU35: 0.00 | BV35: 0.00 | BW35: 0.00 | BX35: 0.00 | CA35: =IF(BU3=12,"ja",IF(OR(D35="ja",E35="ja"),"",IF(OR(CJ35=1,TEXT(B35,"TTTT")="Samstag",TEXT(B35,"TTTT")="Sonntag"),"ja",""))) ->  | CC35: =IF(OR(D35="ja",E35="ja"),"",IF(CA35="ja","","ja")) -> ja | CE35: ja | CG35: ja | CH35: 25 | CJ35: =IF(OR(CH35=CK$10,,CH35=CK$12,CH35=CK$13,CH35=CK$14,CH35=CK$15,CH35=CK$16,,CH35=CK$18,CH35=CK$19),1,0) -> 0
A36: Freitag | B36: 2023-01-27 | K36: 00:00:00 | N36: 00:00:00 | O36: 00:00:00 | P36: 21:00:00 | Q36: 06:00:00 | S36: 1 | T36: 00:00:00 | U36: 00:00:00 | V36: 00:00:00 | W36: 00:00:00 | X36: 00:00:00 | Y36: 00:00:00 | Z36: 0.00 | AA36: 0.00 | AB36: 0.00 | AC36: 0.00 | AD36: 0.00 | AE36: FALSE | AF36: 00:00:00 | AG36: 00:00:00 | AH36: 0.00 | AI36: 0.00 | AJ36: 0.00 | AK36: 0.00 | AL36: 0.00 | AM36: 0.00 | AN36: 0.00 | AO36: 00:00:00 | AP36: 00:00:00 | AQ36: 00:00:00 | AR36: 00:00:00 | AS36: 00:00:00 | AT36: 00:00:00 | AU36: 0.00 | AV36: 0.00 | AW36: 06:00:00 | AX36: 00:00:00 | BO36: 0.00 | BP36: 0.00 | BQ36: 0.00 | BR36: 0.00 | BS36: 0.00 | BU36: 0.00 | BV36: 0.00 | BW36: 0.00 | BX36: 0.00 | CC36: ja | CE36: ja | CG36: ja | CH36: 26 | CJ36: 0
A37: Samstag | B37: 2023-01-28 | K37: 00:00:00 | N37: 00:00:00 | O37: 00:00:00 | P37: 21:00:00 | Q37: 06:00:00 | S37: 1 | T37: 00:00:00 | U37: 00:00:00 | V37: 00:00:00 | W37: 00:00:00 | X37: 00:00:00 | Y37: 00:00:00 | Z37: 0.00 | AA37: 0.00 | AB37: 0.00 | AC37: 0.00 | AD37: 0.00 | AE37: FALSE | AF37: 00:00:00 | AG37: 00:00:00 | AH37: 0.00 | AI37: 0.00 | AJ37: 0.00 | AK37: 0.00 | AL37: 0.00 | AM37: 0.00 | AN37: 0.00 | AO37: 00:00:00 | AP37: 00:00:00 | AQ37: 00:00:00 | AR37: 00:00:00 | AS37: 00:00:00 | AT37: 00:00:00 | AU37: 0.00 | AV37: 0.00 | AW37: 06:00:00 | AX37: 00:00:00 | BO37: 0.00 | BP37: 0.00 | BQ37: 0.00 | BR37: 0.00 | BS37: 0.00 | BU37: 0.00 | BV37: 0.00 | BW37: 0.00 | BX37: 0.00 | CA37: ja | CE37: ja | CG37: ja | CH37: 27 | CJ37: 0
A38: Sonntag | B38: =IF(MONTH(B37+1)=BU3,B37+1,"") -> 2023-01-29 | C38: =IF(B38="","",IF(CJ38=1,CI38,"")) ->  | K38: 00:00:00 | N38: 00:00:00 | O38: 00:00:00 | P38: 21:00:00 | Q38: 06:00:00 | S38: 1 | T38: 00:00:00 | U38: 00:00:00 | V38: 00:00:00 | W38: 00:00:00 | X38: 00:00:00 | Y38: 00:00:00 | Z38: 0.00 | AA38: 0.00 | AB38: 0.00 | AC38: 0.00 | AD38: 0.00 | AE38: FALSE | AF38: 00:00:00 | AG38: 00:00:00 | AH38: 0.00 | AI38: 0.00 | AJ38: 0.00 | AK38: 0.00 | AL38: 0.00 | AM38: 0.00 | AN38: 0.00 | AO38: 00:00:00 | AP38: 00:00:00 | AQ38: 00:00:00 | AR38: 00:00:00 | AS38: 00:00:00 | AT38: 00:00:00 | AU38: 0.00 | AV38: 0.00 | AW38: 06:00:00 | AX38: 00:00:00 | BO38: 0.00 | BP38: 0.00 | BQ38: 0.00 | BR38: 0.00 | BS38: 0.00 | BU38: 0.00 | BV38: 0.00 | BW38: 0.00 | BX38: 0.00 | CA38: =IF(B38="","",IF(OR(D38="ja",E38="ja"),"",IF(OR(CJ38=1,TEXT(B38,"TTTT")="Samstag",TEXT(B38,"TTTT")="Sonntag"),"ja",""))) -> ja | CC38: =IF(B38="","",IF(OR(D38="ja",E38="ja"),"",IF(CA38="ja","","ja"))) ->  | CE38: ja | CG38: ja | CH38: =IF(B38="","",B38-CH$9) -> 28 | CJ38: 0
A39: Montag | B39: =IF(MONTH(B37+2)=BU3,B37+2,"") -> 2023-01-30 | C39: =IF(B39="","",IF(CJ39=1,CI39,"")) ->  | K39: 00:00:00 | N39: 00:00:00 | O39: 00:00:00 | P39: 21:00:00 | Q39: 06:00:00 | S39: 1 | T39: 00:00:00 | U39: 00:00:00 | V39: 00:00:00 | W39: 00:00:00 | X39: 00:00:00 | Y39: 00:00:00 | Z39: 0.00 | AA39: 0.00 | AB39: 0.00 | AC39: 0.00 | AD39: 0.00 | AE39: FALSE | AF39: 00:00:00 | AG39: 00:00:00 | AH39: 0.00 | AI39: 0.00 | AJ39: 0.00 | AK39: 0.00 | AL39: 0.00 | AM39: 0.00 | AN39: 0.00 | AO39: 00:00:00 | AP39: 00:00:00 | AQ39: 00:00:00 | AR39: 00:00:00 | AS39: 00:00:00 | AT39: 00:00:00 | AU39: 0.00 | AV39: 0.00 | AW39: 06:00:00 | AX39: 00:00:00 | BO39: 0.00 | BP39: 0.00 | BQ39: 0.00 | BR39: 0.00 | BS39: 0.00 | BU39: 0.00 | BV39: 0.00 | BW39: 0.00 | BX39: 0.00 | CA39: =IF(B39="","",IF(OR(D39="ja",E39="ja"),"",IF(OR(CJ39=1,TEXT(B39,"TTTT")="Samstag",TEXT(B39,"TTTT")="Sonntag"),"ja",""))) ->  | CC39: =IF(B39="","",IF(OR(D39="ja",E39="ja"),"",IF(CA39="ja","","ja"))) -> ja | CE39: ja | CG39: ja | CH39: 29 | CJ39: 0
A40: Dienstag | B40: =IF(MONTH(B37+3)=BU3,B37+3,"") -> 2023-01-31 | C40: =IF(B40="","",IF(CJ40=1,CI40,"")) ->  | K40: 00:00:00 | N40: 00:00:00 | O40: 00:00:00 | P40: 21:00:00 | Q40: 06:00:00 | S40: 1 | T40: 00:00:00 | U40: 00:00:00 | V40: 00:00:00 | W40: 00:00:00 | X40: 00:00:00 | Y40: 00:00:00 | Z40: 0.00 | AA40: 0.00 | AB40: 0.00 | AC40: 0.00 | AD40: 0.00 | AE40: FALSE | AF40: 00:00:00 | AG40: 00:00:00 | AH40: 0.00 | AI40: 0.00 | AJ40: 0.00 | AK40: 0.00 | AL40: 0.00 | AM40: 0.00 | AN40: 0.00 | AO40: 00:00:00 | AP40: 00:00:00 | AQ40: 00:00:00 | AR40: 00:00:00 | AS40: 00:00:00 | AT40: 00:00:00 | AU40: 0.00 | AV40: 0.00 | AW40: 06:00:00 | AX40: 00:00:00 | AY40: =IF(I40="",0,IF(OR(I40>=AW40,I40<=AX40),1,IF(OR(J40>=AW40,J40<=AX40),1,IF(AND(I40<=TR40,J40>=AX40,J40<I40),1,0)))) -> 0 | AZ40: =(J40+$D$6)*24 -> 0.00 | BA40: 24.00 | BB40: 14.00 | BC40: =IF(I40="",0,IF(AY40=1,IF(AND((I40-$D$6)<=AW40,(I40-$D$6)>=AX40),AW40,IF(OR((I40-$D$6)>=AW40,(I40-$D$6)<=AX40),I40-$D$6,AW40)),0)) -> 00:00:00 | BD40: =IF(OR(J40="",AY40=0),0,IF(AY40=1,IF(AZ40>BA40,AX40,J40+$D$6))) -> 00:00:00 | BE40: =IF(I40="",0,IF(AY40,IF(AND(I40<=AW40,I40>=AX40),AW40,IF(OR(I40>=AW40,I40<=AX40),I40,AW40)),0)) -> 00:00:00 | BF40: =IF(OR(AY40=0,J40=0),0,IF(J40<=AX40,J40,IF(J40>=AW40,J40,AX40))) -> 00:00:00 | BG40: =IF(BE40=0,0,IF(BE40<=0.25,BD40-BC40,(BD40+1)-BC40)) -> 00:00:00 | BH40: =IF(BE40=0,0,IF(BE40<=0.25,BF40-BE40,(BF40+1)-BE40)) -> 00:00:00 | BI40: =BC40*24 -> 0.00 | BJ40: =BD40*24 -> 0.00 | BK40: =BE40*24 -> 0.00 | BL40: =BF40*24 -> 0.00 | BM40: =IF(AND(I40>0,$BU$3=12,BI40<=BB40),BJ40-BI40,0) -> 0.00 | BN40: =IF(AND(I40>0,BJ40>BB40,S40=1),IF(BI40-BB40<0,BG40*24-24-BM40,BI40-BB40),IF(BL40>BB40,BB40-BK40,0)) -> 0.00 | BO40: =IF(O40="",0,IF($BV$5="ja",O40*24,0)) -> 0.00 | BP40: 0.00 | BQ40: =IF(BU3=12,0,IF(C40="",IF(AH40=0,0,IF(AH40>=0,AH40-BR40,IF(AND(AH40>=0,BV40>=0,$BV$5="ja"),AH40-BV40,IF(AND(AH40>=0,BW40>=0,$BV$5="nein"),AH40-BW40)))),0)) -> 0.00 | BR40: 0.00 | BS40: =IF($BU$3=12,BN40,0) -> 0.00 | BT40: =IF(AND($BU$3=12,BJ40<BB40,BJ40<=BA40),SUM(BJ40-IF(BI40-BB40>=0,BB40,BI40)),IF(AND($BU$3=12,BL40>14,BL40<=BA40),SUM(IF(BL40-14>0,BL40,14),0))) -> FALSE | BU40: 0.00 | BV40: 0.00 | BW40: 0.00 | BX40: 0.00 | CC40: ja | CE40: ja | CG40: ja | CH40: =IF(B40="","",B40-CH$9) -> 30 | CJ40: 0
D41: =COUNTA(D10:D40) -> 0 | E41: =COUNTA(E10:E40) -> 0 | F41: =COUNTA(F10:F40) -> 0 | G41: =COUNTA(G10:G40) -> 0 | H41: =SUM(H10:H40) -> 00:00:00 | K41: =SUM(K10:K40) -> 00:00:00 | BO41: =SUM(BO10:BO40) -> 0.00 | BP41: =SUM(BP10:BP40) -> 0.00 | BQ41: 0.00 | BR41: =SUM(BR10:BR40) -> 0.00 | BS41: 0.00 | BT41: =SUM(BT10:BT40) -> 0.00 | BU41: 0.00 | BV41: 0.00 | BW41: 0.00 | BX41: 0.00
D42: =IF(D41=0,"",IF(D41>0,COUNTA(D10:D40),"")) ->  | E42: =IF(E41=0,"",IF(E41>0,COUNTA(E10:E40),"")) ->  | F42: =IF(F41=0,"",IF(F41>0,COUNTA(F10:F40),"")) ->  | G42: =IF(G41=0,"",IF(G41>0,COUNTA(G10:G40),"")) ->  | H42: =IF(H41=0,"",IF(H41>0,SUM(H10:H40),"")) ->  | BO42: =IF(BO41=0,"",IF(BO41>0,SUM(BO10:BO40),"")) ->  | BP42: =IF(BP41=0,"",IF(BP41>0,SUM(BP10:BP40),"")) ->  | BQ42: =IF(BQ41=0,"",IF(BQ41>0,SUM(BQ10:BQ40),"")) ->  | BR42: =IF(BR41=0,"",IF(BR41>0,SUM(BR10:BR40),"")) ->  | BS42: =IF(BS41=0,"",IF(BS41>0,SUM(BS10:BS40),"")) ->  | BT42: =IF(BT41=0,"",IF(BT41>0,SUM(BT10:BT40),"")) -> 
C43: * Es gelten nur die gesetzlichen Feiertage. Weihnachten und 1. Mai sind unter Lohnart 5071 gesondert berücksichtigt.
C44: ** Auszuwählen ist an jedem Urlaubs- und/oder Krankheitstag jeweils "ja".
C45: *** Auszuwählen ist "ja" nur an dem Tag, an dem die Rufbereitschaft begann.
C46: **** Bei Einsätzen, für die eine Vor-Ort-Anwensenheit nicht erforderlich war, bitte auf "ja" klicken. In diesem Fall wird bei der Berechnung keine Wegezeit berücksichtigt. | BV46: Stand des Formulars: 01.02.2023

Sheet Einsatz 2
A1: Nachweis über Überstunden, Überstundenvergütung und Zeitzuschläge | BV1: Datum: | BW1: =TODAY() -> 2023-02-01
C3: 2. Einsatz | I3: Rufbereitschaft und Zeitzuschläge | BT3: Monat: | BU3: ='Einsatz 1'!BU3 -> 1 | BV3: Jahr: | BW3: ='Einsatz 1'!BW3 -> 2023
C5: Name, Vorname: | D5: ='Einsatz 1'!D5 -> 0 | K5: Orga-Einheit: | L5: ='Einsatz 1'!L5 -> Dezernat 5.3 | BU5: Freizeitausgleich wird gewährt: | BV5: ='Einsatz 1'!BV5 -> ja
C6: Übliche Wegezeit (h:mm): | D6: ='Einsatz 1'!D6 -> 00:00:00 | F6: Industriestunden: | G6: =D6*24 -> 0.00
A7: Tag | B7: Datum | C7: gesetzl. Feiertag in NRW* | D7: Urlaub** | E7: Krankheit (AU)** | F7: Rufbereitschaft Mo-Fr 15:15 bis 07:00 des Folgetags*** | G7: Rufbereitschaft Sa, So, Feiertag (07:00 bis 07:00 des Folgetags)*** | H7: Rufbereitschaft weniger als 12 Std. (hh:mm) | I7: Uhrzeit Einsatz von (hh:mm) | J7: Uhrzeit Einsatz bis (hh:mm) | K7: Arbeitszeit des Einsatzes (ohne Wegezeit) | L7: Der Einsatz erfolgte ohne Präsenz (z.B. telefonisch)**** | M7: Grund des Einsatzes | N7: AZ (ggf. mit WZ) | O7: AZ (ggf. ,mit WZ) gerundet | P7: Beginn Nacht-arbeits-zeit-rahmen | Q7: Ende Nacht-arbeits-zeit-rahmen | R7: Nacht-einsatz? 1-Ja | S7: Wegezeit 1-ja | T7: Beginn Nacht-einsatz (ohne WZ) | U7: Ende Nacht-einsatz (ohne WZ) | V7: Beginn Nacht-einsatz (mit WZ) | W7: Ende Nachtarbeit (mit WZ) | X7: Nachtarbeit mit WZ | Y7: Nachtarbeit ohne WZ | Z7: Ende Nacht-einsatz (mit WZ) vor 0 | AA7: Ende Nacht-einsatz (mit WZ) nach 0 | AB7: Ende Nacht-einsatz (o WZ) vor 0 | AC7: Ende Nacht-einsatz (o WZ) nach 0 | AD7: Summe Nacht-einsatz (mit WZ) | AE7: Summe Nacht-einsatz (o WZ) | AF7: Samstagsarbeit 13-21 Uhr (mit WZ) | AG7: Samstagsarbeit 13-21 Uhr (o WZ) | AH7: Samstagsarbeit, wenn negative Zeiten | AI7: Beginn Samstags-arbeit o WZ | AJ7: Beginn Samstags-arbeit m WZ | AK7: Ende Samstags-arbeit o WZ | AL7: Ende Samstags-arbeit m WZ | AM7: Samstagsarbeit 20-21 m WZ | AN7: Samstagsarbeit 20-21 o WZ | AO7: Beginn Sonntagsarbeit mit WZ | AP7: Ende Sonntagsarbeit mit WZ | AQ7: Beginn Sonntagsarbeit o WZ | AR7: Ende Sonntagsarbeit o WZ | AS7: Sonntagsarbeit mit WZ | AT7: Sonntagsarbeit o WZ | AU7: Sonntagsarbeit mit WZ (dezimal) | AV7: Sonntagsarbeit o WZ (dezimal) | AW7: Beginn Rahmen 24. & 31.12. | AX7: Ende Rahmen 24. & 31.12. | AY7: Arbeit 24. & 31.12. | AZ7: Arbeit 24. & 31.12. Ende nach 0 Uhr | BA7: Arbeit am 24. & 31.12. (24 h) | BB7: Arbeit am 24. & 31.12. (14 h) | BC7: Beginn 24.12. & 31.12. (mit WZ) | BD7: Ende 24.12. & 31.12. (mit WZ) | BE7: Beginn 24.12. & 31.12. (o WZ) | BF7: Ende 24.12. & 31.12. (o WZ) | BG7: Arbeit 24.12. & 31.12. (mit WZ) | BH7: Arbeit 24.12. & 31.12. (o WZ) | BI7: Beginn 24.12. & 31.12. (mit WZ) | BJ7: Ende 24.12. & 31.12. bis 14 Uhr (mit WZ) | BK7: Beginn 24.12. & 31.12. (o WZ) | BL7: Ende 24.12. & 31.12. bis 14 Uhr (o WZ) | BM7: Ende 24. & 31.12. vor 14 Uhr BB32, BC32 dezimal) | BN7: Ende 24. & 31.12. nach 14 Uhr | BO7: Stunden mit Freizeitausgleich | BP7: Stunden ohne Freizeitausgleich | BQ7: Arbeit am Samstag 13-20 Uhr | BR7: Arbeit am Samstag 20-21 Uhr | BS7: Arbeit am 24.12.& 31.12. 6-14 Uhr | BT7: Arbeit am 24.12. 14-24 Uhr; am 25./26.12. & am 01.05. | BU7: Arbeit am Sonntag | BV7: Arbeit am Feiertag mit Freizeitausgleich | BW7: Arbeit am Feiertag ohne Freizeitausgleich | BX7: Nachtarbeit (21-6 Uhr)
D8: 5167 | E8: 5168 | F8: 5200 | G8: 5201 | H8: 5204 | BO8: 5012 | BP8: 5012 und 5014 | BQ8: 5080 | BR8: 5083 | BS8: 5070 | BT8: 5071 | BU8: 5050 | BV8: 5061 | BW8: 5060 und 5061 | BX8: 5040
A9: =TEXT(B9,"TTTT") -> Sonntag | B9: =DATE(BW3,BU3,1) -> 2023-01-01 | C9: ='Einsatz 1'!C10 -> Neujahr | D9: ='Einsatz 1'!D10 -> 0 | E9: ='Einsatz 1'!E10 -> 0 | F9: ='Einsatz 1'!F10 -> 0 | G9: ='Einsatz 1'!G10 -> 0 | H9: ='Einsatz 1'!H10 -> 00:00:00 | K9: =IF(OR(I9="",J9=""),0,MOD(J9-I9,1)) -> 00:00:00 | N9: =IF(K9="",0,IF(L9="",K9+(2*$D$6),K9)) -> 00:00:00 | O9: =IF(J9="",0,(IF(L9="ja",ROUNDUP(N9*48,0.5)/48,ROUNDUP(N9*24,0)/24))) -> 00:00:00 | P9: 21:00:00 | Q9: 06:00:00 | R9: =IF(I9="",0,IF(OR(I9>=P9,I9<=Q9),1,IF(OR(J9>=P9,J9<=Q9),1,IF(AND(I9<=P9,J9>=Q9,J9<I9),1,0)))) -> 0 | S9: =IF(L9="",1,"") -> 1 | T9: =IF(OR(I9="",S9=1),0,IF(R9,IF(AND(I9<=P9,I9>=Q9),P9,IF(OR(I9>=P9,I9<=Q9),I9,P9)),0)) -> 00:00:00 | U9: =IF(OR(R9=0,J9="",S9=1),0,IF(J9<=Q9,J9,IF(J9>=P9,J9,Q9))) -> 00:00:00 | V9: =IF(OR(I9="",S9=""),0,IF(R9,IF(AND((I9-$D$6)<=P9,(I9-$D$6)>=Q9),P9,IF(OR((I9-$D$6)>=P9,(I9-$D$6)<=Q9),I9-$D$6,P9)),0)) -> 00:00:00 | W9: =IF(OR(J9="",S9=""),0,IF(R9,IF(AND((J9+$D$6)<=P9,(J9+$D$6)>=Q9),Q9,IF(OR((J9+$D$6)<=P9,(J9+$D$6)>=Q9),J9+$D$6,Q9)),0)) -> 00:00:00 | X9: =IF(AND(S9="",T9=0),0,IF(W9-V9,(W9+1)-V9,0)) -> 00:00:00 | Y9: =IF(OR(S9="1",T9=0),0,IF(U9-T9,(U9+1)-T9,0)) -> 00:00:00 | Z9: =IF(W9=0,0,IF(W9<=23.58,X9*24-24)) -> 0.00 | AA9: =IF(W9=0,0,IF(W9>0,X9*24)) -> 0.00 | AB9: =IF(U9=0,0,IF(U9<=23.58,Y9*24-24)) -> 0.00 | AC9: =IF(U9=0,0,IF(U9>0,Y9*24)) -> 0.00 | AD9: =IF(AND(S9=1,Z9<=0,AA9<24),AA9,IF(AA9>0,Z9)) -> 0.00 | AE9: =IF(AND(S9="",AB9<=0,AC9<24),AC9,IF(AC9>0,AB9)) -> FALSE | AF9: =IF(AND(F9=0,J9=0),0,IF(AND(A9="Samstag",S9=1),IF(J9>I9,IF(J9>=0.875,0.875,J9+$D$6)-IF(I9<=(13/24),(13/24),I9-$D$6),IF(I9<=0.875,0.875-I9,0)),0)) -> 00:00:00 | AG9: =IF(S9=1,0,IF(AND(J9=0,F9=0),0,IF(A9="Samstag",IF(J9>I9,IF(J9>=0.875,0.875,J9)-IF(I9<=(13/24),(13/24),I9),IF(I9<=0.875,0.875-I9,0)),0))) -> 00:00:00 | AH9: =IF(AG9>0,AG9*24,AF9*24) -> 0.00 | AI9: =IF(AND(A9="Samstag",I9>0,S9=1),0,IF(AND(A9="Samstag",I9>0,S9=""),I9*24,0)) -> 0.00 | AJ9: =IF(AND(A9="Samstag",I9>0,S9=1),(I9-$D$6)*24,IF(AND(A9="Samstag",I9>0),I9*24,0)) -> 0.00 | AK9: =IF(AND(A9="Samstag",J9>0,S9=1),0,IF(AND(A9="Samstag",J9>0,S9=""),J9*24,0)) -> 0.00 | AL9: =IF(AND(A9="Samstag",J9>0,S9=1),(J9+$D$6)*24,0) -> 0.00 | AM9: =IF(OR(I9="",L9="ja",AJ9>=21,AND(AJ9<=20,AL9<=20)),0,IF(AND(AJ9<=20,AL9>20,AL9<=21),AL9-20-BV9-BW9,IF(AND(AJ9<=20,AL9>21),21-20-BV9-BW9,IF(AND(AJ9>=20,AJ9<21,AL9>=0,AL9<=12),21-AJ9-BV9-BW9,IF(AND(AJ9<21,OR(AND(AL9>=0,AL9<=21),AND(AL9>=21,AL9<=23.99))),21-20-BV9-BW9))))) -> 0.00 | AN9: =IF(OR(I9="",L9="",AI9>=21,AND(AI9<=20,AK9<=20)),0,IF(AND(AI9<=20,AK9>20,AK9<=21),AK9-20-BV9-BW9,IF(AND(AI9<=20,AK9>21),21-20-BV9-BW9,IF(AND(AI9>=20,AI9<21,AK9>=0,AK9<=12),21-AI9-BV9-BW9,IF(AND(AI9<21,OR(AND(AK9>=0,AK9<=21),AND(AK9>=21,AK9<=23.99))),21-20-BV9-BW9))))) -> 0.00 | AO9: =IF(A9="Sonntag",I9-$D$6,IF(A9="Samstag",IF(J9<I9,0,0),0)) -> 00:00:00 | AP9: =IF(J9="",0,IF(A9="Sonntag",IF((J9+$D$6)<I9,1,J9+$D$6),IF(A9="Samstag",IF((J9+$D$6)<I9,J9+$D$6,0),0))) -> 00:00:00 | AQ9: =IF(A9="Sonntag",I9,IF(A9="Samstag",IF(J9<I9,0,0),0)) -> 00:00:00 | AR9: =IF(A9="Sonntag",IF(J9<I9,1,J9),IF(A9="Samstag",IF(J9<I9,J9,0),0)) -> 00:00:00 | AS9: =IF(J9="",0,IF(AND(AO9=0,AP9=0),0,IF(OR(A9="Sonntag",A9="Samstag"),AP9-AO9,0))) -> 00:00:00 | AT9: =IF(AND(AQ9=0,AR9=0),0,IF(OR(A9="Sonntag",A9="Samstag"),AR9-AQ9,0)) -> 00:00:00 | AU9: =IF(OR(AS9=0,AS9=""),0,IF(AND(AS9>0,BV9>=0,$BV$5="ja"),AS9*24-BV9,IF(AND(AS9>0,BV9>=0,$BV$5="nein"),AS9*24-BW9))) -> 0.00 | AV9: =IF(OR(AT9=0,AT9=""),0,IF(AND(AT9>0,BV9>=0,$BV$5="ja"),AT9*24-BV9,IF(AND(AT9>0,BV9>=0,$BV$5="nein"),AT9*24-BW9))) -> 0.00 | AW9: 06:00:00 | AX9: 00:00:00 | AY9: =IF(I9="",0,IF(OR(I9>=AW9,I9<=AX9),1,IF(OR(J9>=AW9,J9<=AX9),1,IF(AND(I9<=TN9,J9>=AX9,J9<I9),1,0)))) -> 0 | AZ9: =(J9+$D$6)*24 -> 0.00 | BA9: 24.00 | BB9: 0.00 | BC9: =I9*24 -> 0.00 | BD9: =IF(OR(J9="",AY9=0),0,IF(AY9=1,IF(AZ9>BA9,AX9,J9+$D$6))) -> 00:00:00 | BE9: =IF(I9="",0,IF(AY9,IF(AND(I9<=AW9,I9>=AX9),AX9,IF(OR(I9>=AW9,I9<=AX9),I9,AW9)),0)) -> 00:00:00 | BF9: =IF(OR(AY9=0,J9=0),0,IF(J9<=AX9,J9,IF(J9>=AW9,J9,AX9))) -> 00:00:00 | BH9: =IF(BE9=0,0,IF(BE9<=0.25,BF9-BE9,(BF9+1)-BE9)) -> 00:00:00 | BI9: =IF(I9="",0,IF(AY9,IF(AND((BC9-$G$6)<=BB9,),BB9,IF(OR((BC9-$G$6)>=BB9),BC9-$G$6,BB9)),0)) -> 0.00 | BJ9: =BD9*24 -> 0.00 | BK9: =I9*24 -> 0.00 | BL9: =BF9*24 -> 0.00 | BM9: =BJ9-BI9 -> 0.00 | BN9: =BL9-BK9 -> 0.00 | BO9: =IF(O9="",0,IF($BV$5="ja",O9*24,0)) -> 0.00 | BP9: =IF(O9="",0,IF($BV$5="nein",O9*24,0)) -> 0.00 | BQ9: =IF(C9=0,IF(AH9=0,0,IF(AH9>=0,AH9-BR9,IF(AND(AH9>=0,BV9>=0,$BV$5="ja"),AH9-BV9,IF(AND(AH9>=0,BW9>=0,$BV$5="nein"),AH9-BW9)))),0) -> 0.00 | BR9: =IF(L9="",AM9,AN9) -> 0.00 | BT9: =IF(AND(BU3=5,K9>0),IF(S9=1,BM9,BN9),0) -> 0.00 | BU9: =IF(S9=1, AU9,AV9) -> 0.00 | BV9: =IF($BV$5="ja",IF(OR(K9="",C9=""),0,IF(AND(S9=1,K9>0),(K9+$D$6+$D$6)*24,K9*24)),0) -> 0.00 | BW9: =IF($BV$5="nein",IF(OR(K9="",C9=0),0,IF(AND(S9=1,K9>0),(K9+$D$6+$D$6)*24,K9*24)),0) -> 0.00 | BX9: =IF(S9=1,AD9,AE9) -> 0.00
A10: =TEXT(B10,"TTTT") -> Montag | B10: =B9+1 -> 2023-01-02 | C10: ='Einsatz 1'!C11 ->  | D10: ='Einsatz 1'!D11 -> 0 | E10: ='Einsatz 1'!E11 -> 0 | F10: ='Einsatz 1'!F11 -> 0 | G10: ='Einsatz 1'!G11 -> 0 | H10: ='Einsatz 1'!H11 -> 00:00:00 | K10: =IF(OR(I10="",J10=""),0,MOD(J10-I10,1)) -> 00:00:00 | N10: =IF(K10="",0,IF(L10="",K10+(2*$D$6),K10)) -> 00:00:00 | O10: =IF(J10="",0,(IF(L10="ja",ROUNDUP(N10*48,0.5)/48,ROUNDUP(N10*24,0)/24))) -> 00:00:00 | P10: 21:00:00 | Q10: 06:00:00 | R10: =IF(I10="","",IF(OR(I10>=P10,I10<=Q10),1,IF(OR(J10>=P10,J10<=Q10),1,IF(AND(I10<=P10,J10>=Q10,J10<I10),1,0)))) ->  | S10: =IF(L10="",1,"") -> 1 | T10: =IF(OR(I10="",S10=1),0,IF(R10,IF(AND(I10<=P10,I10>=Q10),P10,IF(OR(I10>=P10,I10<=Q10),I10,P10)),0)) -> 00:00:00 | U10: =IF(OR(R10=0,J10="",S10=1),0,IF(J10<=Q10,J10,IF(J10>=P10,J10,Q10))) -> 00:00:00 | V10: =IF(OR(I10="",S10=""),0,IF(R10,IF(AND((I10-$D$6)<=P10,(I10-$D$6)>=Q10),P10,IF(OR((I10-$D$6)>=P10,(I10-$D$6)<=Q10),I10-$D$6,P10)),0)) -> 00:00:00 | W10: =IF(OR(J10="",S10=""),0,IF(R10,IF(AND((J10+$D$6)<=P10,(J10+$D$6)>=Q10),Q10,IF(OR((J10+$D$6)<=P10,(J10+$D$6)>=Q10),J10+$D$6,Q10)),0)) -> 00:00:00 | X10: =IF(AND(S10="",T10=0),0,IF(W10-V10,(W10+1)-V10,0)) -> 00:00:00 | Y10: =IF(OR(S10="1",T10=0),0,IF(U10-T10,(U10+1)-T10,0)) -> 00:00:00 | Z10: =IF(W10=0,0,IF(W10<=23.58,X10*24-24)) -> 0.00 | AA10: =IF(W10=0,0,IF(W10>0,X10*24)) -> 0.00 | AB10: =IF(U10=0,0,IF(U10<=23.58,Y10*24-24)) -> 0.00 | AC10: =IF(U10=0,0,IF(U10>0,Y10*24)) -> 0.00 | AD10: =IF(AND(S10=1,Z10<=0,AA10<24),AA10,IF(AA10>0,Z10)) -> 0.00 | AE10: =IF(AND(S10="",AB10<=0,AC10<24),AC10,IF(AC10>0,AB10)) -> FALSE | AF10: =IF(AND(F10=0,J10=0),0,IF(AND(A10="Samstag",S10=1),IF(J10>I10,IF(J10>=0.875,0.875,J10+$D$6)-IF(I10<=(13/24),(13/24),I10-$D$6),IF(I10<=0.875,0.875-I10,0)),0)) -> 00:00:00 | AG10: =IF(S10=1,0,IF(AND(J10=0,F10=0),0,IF(A10="Samstag",IF(J10>I10,IF(J10>=0.875,0.875,J10)-IF(I10<=(13/24),(13/24),I10),IF(I10<=0.875,0.875-I10,0)),0))) -> 00:00:00 | AH10: 0.00 | AI10: =IF(AND(A10="Samstag",I10>0,S10=1),0,IF(AND(A10="Samstag",I10>0,S10=""),I10*24,0)) -> 0.00 | AJ10: 0.00 | AK10: =IF(AND(A10="Samstag",J10>0,S10=1),0,IF(AND(A10="Samstag",J10>0,S10=""),J10*24,0)) -> 0.00 | AL10: 0.00 | AM10: =IF(OR(I10="",L10="ja",AJ10>=21,AND(AJ10<=20,AL10<=20)),0,IF(AND(AJ10<=20,AL10>20,AL10<=21),AL10-20-BV10-BW10,IF(AND(AJ10<=20,AL10>21),21-20-BV10-BW10,IF(AND(AJ10>=20,AJ10<21,AL10>=0,AL10<=12),21-AJ10-BV10-BW10,IF(AND(AJ10<21,OR(AND(AL10>=0,AL10<=21),AND(AL10>=21,AL10<=23.99))),21-20-BV10-BW10))))) -> 0.00 | AN10: =IF(OR(I10="",L10="",AI10>=21,AND(AI10<=20,AK10<=20)),0,IF(AND(AI10<=20,AK10>20,AK10<=21),AK10-20-BV10-BW10,IF(AND(AI10<=20,AK10>21),21-20-BV10-BW10,IF(AND(AI10>=20,AI10<21,AK10>=0,AK10<=12),21-AI10-BV10-BW10,IF(AND(AI10<21,OR(AND(AK10>=0,AK10<=21),AND(AK10>=21,AK10<=23.99))),21-20-BV10-BW10))))) -> 0.00 | AO10: 00:00:00 | AP10: 00:00:00 | AQ10: 00:00:00 | AR10: 00:00:00 | AS10: 00:00:00 | AT10: 00:00:00 | AU10: 0.00 | AV10: 0.00 | AW10: 06:00:00 | AX10: 00:00:00 | BO10: 0.00 | BP10: 0.00 | BQ10: =IF(C10=0,IF(AH10=0,0,IF(AH10>=0,AH10-BR10,IF(AND(AH10>=0,BV10>=0,$BV$5="ja"),AH10-BV10,IF(AND(AH10>=0,BW10>=0,$BV$5="nein"),AH10-BW10)))),0) -> 0.00 | BR10: =IF(L10="",AM10,AN10) -> 0.00 | BU10: 0.00 | BV10: 0.00 | BW10: =IF($BV$5="nein",IF(OR(K10="",C10=0),0,IF(AND(S10=1,K10>0),(K10+$D$6+$D$6)*24,K10*24)),0) -> 0.00 | BX10: 0.00
A11: Dienstag | B11: =B10+1 -> 2023-01-03 | C11: ='Einsatz 1'!C12 ->  | D11: ='Einsatz 1'!D12 -> 0 | E11: ='Einsatz 1'!E12 -> 0 | F11: ='Einsatz 1'!F12 -> 0 | G11: ='Einsatz 1'!G12 -> 0 | H11: ='Einsatz 1'!H12 -> 00:00:00 | K11: 00:00:00 | N11: 00:00:00 | O11: 00:00:00 | P11: 21:00:00 | Q11: 06:00:00 | S11: 1 | T11: 00:00:00 | U11: 00:00:00 | V11: 00:00:00 | W11: 00:00:00 | X11: 00:00:00 | Y11: 00:00:00 | Z11: 0.00 | AA11: 0.00 | AB11: 0.00 | AC11: 0.00 | AD11: 0.00 | AE11: FALSE | AF11: 00:00:00 | AG11: 00:00:00 | AH11: 0.00 | AI11: 0.00 | AJ11: 0.00 | AK11: 0.00 | AL11: 0.00 | AM11: 0.00 | AN11: 0.00 | AO11: 00:00:00 | AP11: 00:00:00 | AQ11: 00:00:00 | AR11: 00:00:00 | AS11: 00:00:00 | AT11: 00:00:00 | AU11: 0.00 | AV11: 0.00 | AW11: 06:00:00 | AX11: 00:00:00 | BO11: 0.00 | BP11: 0.00 | BQ11: 0.00 | BR11: 0.00 | BU11: 0.00 | BV11: 0.00 | BW11: 0.00 | BX11: 0.00
A12: Mittwoch | B12: 2023-01-04 | C12: ='Einsatz 1'!C13 ->  | D12: ='Einsatz 1'!D13 -> 0 | E12: ='Einsatz 1'!E13 -> 0 | F12: ='Einsatz 1'!F13 -> 0 | G12: ='Einsatz 1'!G13 -> 0 | H12: ='Einsatz 1'!H13 -> 00:00:00 | K12: 00:00:00 | N12: 00:00:00 | O12: 00:00:00 | P12: 21:00:00 | Q12: 06:00:00 | S12: 1 | T12: 00:00:00 | U12: 00:00:00 | V12: 00:00:00 | W12: 00:00:00 | X12: 00:00:00 | Y12: 00:00:00 | Z12: 0.00 | AA12: 0.00 | AB12: 0.00 | AC12: 0.00 | AD12: 0.00 | AE12: FALSE | AF12: 00:00:00 | AG12: 00:00:00 | AH12: 0.00 | AI12: 0.00 | AJ12: 0.00 | AK12: 0.00 | AL12: 0.00 | AM12: 0.00 | AN12: 0.00 | AO12: 00:00:00 | AP12: 00:00:00 | AQ12: 00:00:00 | AR12: 00:00:00 | AS12: 00:00:00 | AT12: 00:00:00 | AU12: 0.00 | AV12: 0.00 | AW12: 06:00:00 | AX12: 00:00:00 | BO12: 0.00 | BP12: 0.00 | BQ12: 0.00 | BR12: 0.00 | BU12: 0.00 | BV12: 0.00 | BW12: 0.00 | BX12: 0.00
A13: Donnerstag | B13: 2023-01-05 | C13: ='Einsatz 1'!C14 ->  | D13: ='Einsatz 1'!D14 -> 0 | E13: ='Einsatz 1'!E14 -> 0 | F13: ='Einsatz 1'!F14 -> 0 | G13: ='Einsatz 1'!G14 -> 0 | H13: ='Einsatz 1'!H14 -> 00:00:00 | K13: 00:00:00 | N13: 00:00:00 | O13: 00:00:00 | P13: 21:00:00 | Q13: 06:00:00 | S13: 1 | T13: 00:00:00 | U13: 00:00:00 | V13: 00:00:00 | W13: 00:00:00 | X13: 00:00:00 | Y13: 00:00:00 | Z13: 0.00 | AA13: 0.00 | AB13: 0.00 | AC13: 0.00 | AD13: 0.00 | AE13: FALSE | AF13: 00:00:00 | AG13: 00:00:00 | AH13: 0.00 | AI13: 0.00 | AJ13: 0.00 | AK13: 0.00 | AL13: 0.00 | AM13: 0.00 | AN13: 0.00 | AO13: 00:00:00 | AP13: 00:00:00 | AQ13: 00:00:00 | AR13: 00:00:00 | AS13: 00:00:00 | AT13: 00:00:00 | AU13: 0.00 | AV13: 0.00 | AW13: 06:00:00 | AX13: 00:00:00 | BO13: 0.00 | BP13: 0.00 | BQ13: 0.00 | BR13: 0.00 | BU13: 0.00 | BV13: 0.00 | BW13: 0.00 | BX13: 0.00
A14: Freitag | B14: 2023-01-06 | C14: ='Einsatz 1'!C15 ->  | D14: ='Einsatz 1'!D15 -> 0 | E14: ='Einsatz 1'!E15 -> 0 | F14: ='Einsatz 1'!F15 -> 0 | G14: ='Einsatz 1'!G15 -> 0 | H14: ='Einsatz 1'!H15 -> 00:00:00 | K14: 00:00:00 | N14: 00:00:00 | O14: 00:00:00 | P14: 21:00:00 | Q14: 06:00:00 | S14: 1 | T14: 00:00:00 | U14: 00:00:00 | V14: 00:00:00 | W14: 00:00:00 | X14: 00:00:00 | Y14: 00:00:00 | Z14: 0.00 | AA14: 0.00 | AB14: 0.00 | AC14: 0.00 | AD14: 0.00 | AE14: FALSE | AF14: 00:00:00 | AG14: 00:00:00 | AH14: 0.00 | AI14: 0.00 | AJ14: 0.00 | AK14: 0.00 | AL14: 0.00 | AM14: 0.00 | AN14: 0.00 | AO14: 00:00:00 | AP14: 00:00:00 | AQ14: 00:00:00 | AR14: 00:00:00 | AS14: 00:00:00 | AT14: 00:00:00 | AU14: 0.00 | AV14: 0.00 | AW14: 06:00:00 | AX14: 00:00:00 | BO14: 0.00 | BP14: 0.00 | BQ14: 0.00 | BR14: 0.00 | BU14: 0.00 | BV14: 0.00 | BW14: 0.00 | BX14: 0.00
A15: Samstag | B15: 2023-01-07 | C15: ='Einsatz 1'!C16 ->  | D15: ='Einsatz 1'!D16 -> 0 | E15: ='Einsatz 1'!E16 -> 0 | F15: ='Einsatz 1'!F16 -> 0 | G15: ='Einsatz 1'!G16 -> 0 | H15: ='Einsatz 1'!H16 -> 00:00:00 | K15: 00:00:00 | N15: 00:00:00 | O15: 00:00:00 | P15: 21:00:00 | Q15: 06:00:00 | S15: 1 | T15: 00:00:00 | U15: 00:00:00 | V15: 00:00:00 | W15: 00:00:00 | X15: 00:00:00 | Y15: 00:00:00 | Z15: 0.00 | AA15: 0.00 | AB15: 0.00 | AC15: 0.00 | AD15: 0.00 | AE15: FALSE | AF15: 00:00:00 | AG15: 00:00:00 | AH15: 0.00 | AI15: 0.00 | AJ15: 0.00 | AK15: 0.00 | AL15: 0.00 | AM15: 0.00 | AN15: 0.00 | AO15: 00:00:00 | AP15: 00:00:00 | AQ15: 00:00:00 | AR15: 00:00:00 | AS15: 00:00:00 | AT15: 00:00:00 | AU15: 0.00 | AV15: 0.00 | AW15: 06:00:00 | AX15: 00:00:00 | BO15: 0.00 | BP15: 0.00 | BQ15: 0.00 | BR15: 0.00 | BU15: 0.00 | BV15: 0.00 | BW15: 0.00 | BX15: 0.00
A16: Sonntag | B16: 2023-01-08 | C16: ='Einsatz 1'!C17 ->  | D16: ='Einsatz 1'!D17 -> 0 | E16: ='Einsatz 1'!E17 -> 0 | F16: ='Einsatz 1'!F17 -> 0 | G16: ='Einsatz 1'!G17 -> 0 | H16: ='Einsatz 1'!H17 -> 00:00:00 | K16: 00:00:00 | N16: 00:00:00 | O16: 00:00:00 | P16: 21:00:00 | Q16: 06:00:00 | S16: 1 | T16: 00:00:00 | U16: 00:00:00 | V16: 00:00:00 | W16: 00:00:00 | X16: 00:00:00 | Y16: 00:00:00 | Z16: 0.00 | AA16: 0.00 | AB16: 0.00 | AC16: 0.00 | AD16: 0.00 | AE16: FALSE | AF16: 00:00:00 | AG16: 00:00:00 | AH16: 0.00 | AI16: 0.00 | AJ16: 0.00 | AK16: 0.00 | AL16: 0.00 | AM16: 0.00 | AN16: 0.00 | AO16: 00:00:00 | AP16: 00:00:00 | AQ16: 00:00:00 | AR16: 00:00:00 | AS16: 00:00:00 | AT16: 00:00:00 | AU16: 0.00 | AV16: 0.00 | AW16: 06:00:00 | AX16: 00:00:00 | BO16: 0.00 | BP16: 0.00 | BQ16: 0.00 | BR16: 0.00 | BU16: 0.00 | BV16: 0.00 | BW16: 0.00 | BX16: 0.00
A17: Montag | B17: 2023-01-09 | C17: ='Einsatz 1'!C18 ->  | D17: ='Einsatz 1'!D18 -> 0 | E17: ='Einsatz 1'!E18 -> 0 | F17: ='Einsatz 1'!F18 -> 0 | G17: ='Einsatz 1'!G18 -> 0 | H17: ='Einsatz 1'!H18 -> 00:00:00 | K17: 00:00:00 | N17: 00:00:00 | O17: 00:00:00 | P17: 21:00:00 | Q17: 06:00:00 | S17: 1 | T17: 00:00:00 | U17: 00:00:00 | V17: 00:00:00 | W17: 00:00:00 | X17: 00:00:00 | Y17: 00:00:00 | Z17: 0.00 | AA17: 0.00 | AB17: 0.00 | AC17: 0.00 | AD17: 0.00 | AE17: FALSE | AF17: 00:00:00 | AG17: 00:00:00 | AH17: 0.00 | AI17: 0.00 | AJ17: 0.00 | AK17: 0.00 | AL17: 0.00 | AM17: 0.00 | AN17: 0.00 | AO17: 00:00:00 | AP17: 00:00:00 | AQ17: 00:00:00 | AR17: 00:00:00 | AS17: 00:00:00 | AT17: 00:00:00 | AU17: 0.00 | AV17: 0.00 | AW17: 06:00:00 | AX17: 00:00:00 | BO17: 0.00 | BP17: 0.00 | BQ17: 0.00 | BR17: 0.00 | BU17: 0.00 | BV17: 0.00 | BW17: 0.00 | BX17: 0.00
A18: Dienstag | B18: 2023-01-10 | C18: ='Einsatz 1'!C19 ->  | D18: ='Einsatz 1'!D19 -> 0 | E18: ='Einsatz 1'!E19 -> 0 | F18: ='Einsatz 1'!F19 -> 0 | G18: ='Einsatz 1'!G19 -> 0 | H18: ='Einsatz 1'!H19 -> 00:00:00 | K18: 00:00:00 | N18: 00:00:00 | O18: 00:00:00 | P18: 21:00:00 | Q18: 06:00:00 | S18: 1 | T18: 00:00:00 | U18: 00:00:00 | V18: 00:00:00 | W18: 00:00:00 | X18: 00:00:00 | Y18: 00:00:00 | Z18: 0.00 | AA18: 0.00 | AB18: 0.00 | AC18: 0.00 | AD18: 0.00 | AE18: FALSE | AF18: 00:00:00 | AG18: 00:00:00 | AH18: 0.00 | AI18: 0.00 | AJ18: 0.00 | AK18: 0.00 | AL18: 0.00 | AM18: 0.00 | AN18: 0.00 | AO18: 00:00:00 | AP18: 00:00:00 | AQ18: 00:00:00 | AR18: 00:00:00 | AS18: 00:00:00 | AT18: 00:00:00 | AU18: 0.00 | AV18: 0.00 | AW18: 06:00:00 | AX18: 00:00:00 | BO18: 0.00 | BP18: 0.00 | BQ18: 0.00 | BR18: 0.00 | BU18: 0.00 | BV18: 0.00 | BW18: 0.00 | BX18: 0.00
A19: Mittwoch | B19: 2023-01-11 | C19: ='Einsatz 1'!C20 ->  | D19: ='Einsatz 1'!D20 -> 0 | E19: ='Einsatz 1'!E20 -> 0 | F19: ='Einsatz 1'!F20 -> 0 | G19: ='Einsatz 1'!G20 -> 0 | H19: ='Einsatz 1'!H20 -> 00:00:00 | K19: 00:00:00 | N19: 00:00:00 | O19: 00:00:00 | P19: 21:00:00 | Q19: 06:00:00 | S19: 1 | T19: 00:00:00 | U19: 00:00:00 | V19: 00:00:00 | W19: 00:00:00 | X19: 00:00:00 | Y19: 00:00:00 | Z19: 0.00 | AA19: 0.00 | AB19: 0.00 | AC19: 0.00 | AD19: 0.00 | AE19: FALSE | AF19: 00:00:00 | AG19: 00:00:00 | AH19: 0.00 | AI19: 0.00 | AJ19: 0.00 | AK19: 0.00 | AL19: 0.00 | AM19: 0.00 | AN19: 0.00 | AO19: 00:00:00 | AP19: 00:00:00 | AQ19: 00:00:00 | AR19: 00:00:00 | AS19: 00:00:00 | AT19: 00:00:00 | AU19: 0.00 | AV19: 0.00 | AW19: 06:00:00 | AX19: 00:00:00 | BO19: 0.00 | BP19: 0.00 | BQ19: 0.00 | BR19: 0.00 | BU19: 0.00 | BV19: 0.00 | BW19: 0.00 | BX19: 0.00
A20: Donnerstag | B20: 2023-01-12 | C20: ='Einsatz 1'!C21 ->  | D20: ='Einsatz 1'!D21 -> 0 | E20: ='Einsatz 1'!E21 -> 0 | F20: ='Einsatz 1'!F21 -> 0 | G20: ='Einsatz 1'!G21 -> 0 | H20: ='Einsatz 1'!H21 -> 00:00:00 | K20: 00:00:00 | N20: 00:00:00 | O20: 00:00:00 | P20: 21:00:00 | Q20: 06:00:00 | S20: 1 | T20: 00:00:00 | U20: 00:00:00 | V20: 00:00:00 | W20: 00:00:00 | X20: 00:00:00 | Y20: 00:00:00 | Z20: 0.00 | AA20: 0.00 | AB20: 0.00 | AC20: 0.00 | AD20: 0.00 | AE20: FALSE | AF20: 00:00:00 | AG20: 00:00:00 | AH20: 0.00 | AI20: 0.00 | AJ20: 0.00 | AK20: 0.00 | AL20: 0.00 | AM20: 0.00 | AN20: 0.00 | AO20: 00:00:00 | AP20: 00:00:00 | AQ20: 00:00:00 | AR20: 00:00:00 | AS20: 00:00:00 | AT20: 00:00:00 | AU20: 0.00 | AV20: 0.00 | AW20: 06:00:00 | AX20: 00:00:00 | BO20: 0.00 | BP20: 0.00 | BQ20: 0.00 | BR20: 0.00 | BU20: 0.00 | BV20: 0.00 | BW20: 0.00 | BX20: 0.00
A21: Freitag | B21: 2023-01-13 | C21: ='Einsatz 1'!C22 ->  | D21: ='Einsatz 1'!D22 -> 0 | E21: ='Einsatz 1'!E22 -> 0 | F21: ='Einsatz 1'!F22 -> 0 | G21: ='Einsatz 1'!G22 -> 0 | H21: ='Einsatz 1'!H22 -> 00:00:00 | K21: 00:00:00 | N21: 00:00:00 | O21: 00:00:00 | P21: 21:00:00 | Q21: 06:00:00 | S21: 1 | T21: 00:00:00 | U21: 00:00:00 | V21: 00:00:00 | W21: 00:00:00 | X21: 00:00:00 | Y21: 00:00:00 | Z21: 0.00 | AA21: 0.00 | AB21: 0.00 | AC21: 0.00 | AD21: 0.00 | AE21: FALSE | AF21: 00:00:00 | AG21: 00:00:00 | AH21: 0.00 | AI21: 0.00 | AJ21: 0.00 | AK21: 0.00 | AL21: 0.00 | AM21: 0.00 | AN21: 0.00 | AO21: 00:00:00 | AP21: 00:00:00 | AQ21: 00:00:00 | AR21: 00:00:00 | AS21: 00:00:00 | AT21: 00:00:00 | AU21: 0.00 | AV21: 0.00 | AW21: 06:00:00 | AX21: 00:00:00 | BO21: 0.00 | BP21: 0.00 | BQ21: 0.00 | BR21: 0.00 | BU21: 0.00 | BV21: 0.00 | BW21: 0.00 | BX21: 0.00
A22: Samstag | B22: 2023-01-14 | C22: ='Einsatz 1'!C23 ->  | D22: ='Einsatz 1'!D23 -> 0 | E22: ='Einsatz 1'!E23 -> 0 | F22: ='Einsatz 1'!F23 -> 0 | G22: ='Einsatz 1'!G23 -> 0 | H22: ='Einsatz 1'!H23 -> 00:00:00 | K22: 00:00:00 | N22: 00:00:00 | O22: 00:00:00 | P22: 21:00:00 | Q22: 06:00:00 | S22: 1 | T22: 00:00:00 | U22: 00:00:00 | V22: 00:00:00 | W22: 00:00:00 | X22: 00:00:00 | Y22: 00:00:00 | Z22: 0.00 | AA22: 0.00 | AB22: 0.00 | AC22: 0.00 | AD22: 0.00 | AE22: FALSE | AF22: 00:00:00 | AG22: 00:00:00 | AH22: 0.00 | AI22: 0.00 | AJ22: 0.00 | AK22: 0.00 | AL22: 0.00 | AM22: 0.00 | AN22: 0.00 | AO22: 00:00:00 | AP22: 00:00:00 | AQ22: 00:00:00 | AR22: 00:00:00 | AS22: 00:00:00 | AT22: 00:00:00 | AU22: 0.00 | AV22: 0.00 | AW22: 06:00:00 | AX22: 00:00:00 | BO22: 0.00 | BP22: 0.00 | BQ22: 0.00 | BR22: 0.00 | BU22: 0.00 | BV22: 0.00 | BW22: 0.00 | BX22: 0.00
A23: Sonntag | B23: 2023-01-15 | C23: ='Einsatz 1'!C24 ->  | D23: ='Einsatz 1'!D24 -> 0 | E23: ='Einsatz 1'!E24 -> 0 | F23: ='Einsatz 1'!F24 -> 0 | G23: ='Einsatz 1'!G24 -> 0 | H23: ='Einsatz 1'!H24 -> 00:00:00 | K23: 00:00:00 | N23: 00:00:00 | O23: 00:00:00 | P23: 21:00:00 | Q23: 06:00:00 | S23: 1 | T23: 00:00:00 | U23: 00:00:00 | V23: 00:00:00 | W23: 00:00:00 | X23: 00:00:00 | Y23: 00:00:00 | Z23: 0.00 | AA23: 0.00 | AB23: 0.00 | AC23: 0.00 | AD23: 0.00 | AE23: FALSE | AF23: 00:00:00 | AG23: 00:00:00 | AH23: 0.00 | AI23: 0.00 | AJ23: 0.00 | AK23: 0.00 | AL23: 0.00 | AM23: 0.00 | AN23: 0.00 | AO23: 00:00:00 | AP23: 00:00:00 | AQ23: 00:00:00 | AR23: 00:00:00 | AS23: 00:00:00 | AT23: 00:00:00 | AU23: 0.00 | AV23: 0.00 | AW23: 06:00:00 | AX23: 00:00:00 | BO23: 0.00 | BP23: 0.00 | BQ23: 0.00 | BR23: 0.00 | BU23: 0.00 | BV23: 0.00 | BW23: 0.00 | BX23: 0.00
A24: Montag | B24: 2023-01-16 | C24: ='Einsatz 1'!C25 ->  | D24: ='Einsatz 1'!D25 -> 0 | E24: ='Einsatz 1'!E25 -> 0 | F24: ='Einsatz 1'!F25 -> 0 | G24: ='Einsatz 1'!G25 -> 0 | H24: ='Einsatz 1'!H25 -> 00:00:00 | K24: 00:00:00 | N24: 00:00:00 | O24: 00:00:00 | P24: 21:00:00 | Q24: 06:00:00 | S24: 1 | T24: 00:00:00 | U24: 00:00:00 | V24: 00:00:00 | W24: 00:00:00 | X24: 00:00:00 | Y24: 00:00:00 | Z24: 0.00 | AA24: 0.00 | AB24: 0.00 | AC24: 0.00 | AD24: 0.00 | AE24: FALSE | AF24: 00:00:00 | AG24: 00:00:00 | AH24: 0.00 | AI24: 0.00 | AJ24: 0.00 | AK24: 0.00 | AL24: 0.00 | AM24: 0.00 | AN24: 0.00 | AO24: 00:00:00 | AP24: 00:00:00 | AQ24: 00:00:00 | AR24: 00:00:00 | AS24: 00:00:00 | AT24: 00:00:00 | AU24: 0.00 | AV24: 0.00 | AW24: 06:00:00 | AX24: 00:00:00 | BO24: 0.00 | BP24: 0.00 | BQ24: 0.00 | BR24: 0.00 | BU24: 0.00 | BV24: 0.00 | BW24: 0.00 | BX24: 0.00
A25: Dienstag | B25: 2023-01-17 | C25: ='Einsatz 1'!C26 ->  | D25: ='Einsatz 1'!D26 -> 0 | E25: ='Einsatz 1'!E26 -> 0 | F25: ='Einsatz 1'!F26 -> 0 | G25: ='Einsatz 1'!G26 -> 0 | H25: ='Einsatz 1'!H26 -> 00:00:00 | K25: 00:00:00 | N25: 00:00:00 | O25: 00:00:00 | P25: 21:00:00 | Q25: 06:00:00 | S25: 1 | T25: 00:00:00 | U25: 00:00:00 | V25: 00:00:00 | W25: 00:00:00 | X25: 00:00:00 | Y25: 00:00:00 | Z25: 0.00 | AA25: 0.00 | AB25: 0.00 | AC25: 0.00 | AD25: 0.00 | AE25: FALSE | AF25: 00:00:00 | AG25: 00:00:00 | AH25: 0.00 | AI25: 0.00 | AJ25: 0.00 | AK25: 0.00 | AL25: 0.00 | AM25: 0.00 | AN25: 0.00 | AO25: 00:00:00 | AP25: 00:00:00 | AQ25: 00:00:00 | AR25: 00:00:00 | AS25: 00:00:00 | AT25: 00:00:00 | AU25: 0.00 | AV25: 0.00 | AW25: 06:00:00 | AX25: 00:00:00 | BO25: 0.00 | BP25: 0.00 | BQ25: 0.00 | BR25: 0.00 | BU25: 0.00 | BV25: 0.00 | BW25: 0.00 | BX25: 0.00
A26: Mittwoch | B26: 2023-01-18 | C26: ='Einsatz 1'!C27 ->  | D26: ='Einsatz 1'!D27 -> 0 | E26: ='Einsatz 1'!E27 -> 0 | F26: ='Einsatz 1'!F27 -> 0 | G26: ='Einsatz 1'!G27 -> 0 | H26: ='Einsatz 1'!H27 -> 00:00:00 | K26: 00:00:00 | N26: 00:00:00 | O26: 00:00:00 | P26: 21:00:00 | Q26: 06:00:00 | S26: 1 | T26: 00:00:00 | U26: 00:00:00 | V26: 00:00:00 | W26: 00:00:00 | X26: 00:00:00 | Y26: 00:00:00 | Z26: 0.00 | AA26: 0.00 | AB26: 0.00 | AC26: 0.00 | AD26: 0.00 | AE26: FALSE | AF26: 00:00:00 | AG26: 00:00:00 | AH26: 0.00 | AI26: 0.00 | AJ26: 0.00 | AK26: 0.00 | AL26: 0.00 | AM26: 0.00 | AN26: 0.00 | AO26: 00:00:00 | AP26: 00:00:00 | AQ26: 00:00:00 | AR26: 00:00:00 | AS26: 00:00:00 | AT26: 00:00:00 | AU26: 0.00 | AV26: 0.00 | AW26: 06:00:00 | AX26: 00:00:00 | BO26: 0.00 | BP26: 0.00 | BQ26: 0.00 | BR26: 0.00 | BU26: 0.00 | BV26: 0.00 | BW26: 0.00 | BX26: 0.00
A27: Donnerstag | B27: 2023-01-19 | C27: ='Einsatz 1'!C28 ->  | D27: ='Einsatz 1'!D28 -> 0 | E27: ='Einsatz 1'!E28 -> 0 | F27: ='Einsatz 1'!F28 -> 0 | G27: ='Einsatz 1'!G28 -> 0 | H27: ='Einsatz 1'!H28 -> 00:00:00 | K27: 00:00:00 | N27: 00:00:00 | O27: 00:00:00 | P27: 21:00:00 | Q27: 06:00:00 | S27: 1 | T27: 00:00:00 | U27: 00:00:00 | V27: 00:00:00 | W27: 00:00:00 | X27: 00:00:00 | Y27: 00:00:00 | Z27: 0.00 | AA27: 0.00 | AB27: 0.00 | AC27: 0.00 | AD27: 0.00 | AE27: FALSE | AF27: 00:00:00 | AG27: 00:00:00 | AH27: 0.00 | AI27: 0.00 | AJ27: 0.00 | AK27: 0.00 | AL27: 0.00 | AM27: 0.00 | AN27: 0.00 | AO27: 00:00:00 | AP27: 00:00:00 | AQ27: 00:00:00 | AR27: 00:00:00 | AS27: 00:00:00 | AT27: 00:00:00 | AU27: 0.00 | AV27: 0.00 | AW27: 06:00:00 | AX27: 00:00:00 | BO27: 0.00 | BP27: 0.00 | BQ27: 0.00 | BR27: 0.00 | BU27: 0.00 | BV27: 0.00 | BW27: 0.00 | BX27: 0.00
A28: Freitag | B28: 2023-01-20 | C28: ='Einsatz 1'!C29 ->  | D28: ='Einsatz 1'!D29 -> 0 | E28: ='Einsatz 1'!E29 -> 0 | F28: ='Einsatz 1'!F29 -> 0 | G28: ='Einsatz 1'!G29 -> 0 | H28: ='Einsatz 1'!H29 -> 00:00:00 | K28: 00:00:00 | N28: 00:00:00 | O28: 00:00:00 | P28: 21:00:00 | Q28: 06:00:00 | S28: 1 | T28: 00:00:00 | U28: 00:00:00 | V28: 00:00:00 | W28: 00:00:00 | X28: 00:00:00 | Y28: 00:00:00 | Z28: 0.00 | AA28: 0.00 | AB28: 0.00 | AC28: 0.00 | AD28: 0.00 | AE28: FALSE | AF28: 00:00:00 | AG28: 00:00:00 | AH28: 0.00 | AI28: 0.00 | AJ28: 0.00 | AK28: 0.00 | AL28: 0.00 | AM28: 0.00 | AN28: 0.00 | AO28: 00:00:00 | AP28: 00:00:00 | AQ28: 00:00:00 | AR28: 00:00:00 | AS28: 00:00:00 | AT28: 00:00:00 | AU28: 0.00 | AV28: 0.00 | AW28: 06:00:00 | AX28: 00:00:00 | BO28: 0.00 | BP28: 0.00 | BQ28: 0.00 | BR28: 0.00 | BU28: 0.00 | BV28: 0.00 | BW28: 0.00 | BX28: 0.00
A29: Samstag | B29: 2023-01-21 | C29: ='Einsatz 1'!C30 ->  | D29: ='Einsatz 1'!D30 -> 0 | E29: ='Einsatz 1'!E30 -> 0 | F29: ='Einsatz 1'!F30 -> 0 | G29: ='Einsatz 1'!G30 -> 0 | H29: ='Einsatz 1'!H30 -> 00:00:00 | K29: 00:00:00 | N29: 00:00:00 | O29: 00:00:00 | P29: 21:00:00 | Q29: 06:00:00 | S29: 1 | T29: 00:00:00 | U29: 00:00:00 | V29: 00:00:00 | W29: 00:00:00 | X29: 00:00:00 | Y29: 00:00:00 | Z29: 0.00 | AA29: 0.00 | AB29: 0.00 | AC29: 0.00 | AD29: 0.00 | AE29: FALSE | AF29: 00:00:00 | AG29: 00:00:00 | AH29: 0.00 | AI29: 0.00 | AJ29: 0.00 | AK29: 0.00 | AL29: 0.00 | AM29: 0.00 | AN29: 0.00 | AO29: 00:00:00 | AP29: 00:00:00 | AQ29: 00:00:00 | AR29: 00:00:00 | AS29: 00:00:00 | AT29: 00:00:00 | AU29: 0.00 | AV29: 0.00 | AW29: 06:00:00 | AX29: 00:00:00 | BO29: 0.00 | BP29: 0.00 | BQ29: 0.00 | BR29: 0.00 | BU29: 0.00 | BV29: =IF($BV$5="ja",IF(OR(K29="",C29=""),0,IF(AND(S29=1,K29>0),(K29+$D$6+$D$6)*24,K29*24)),0) -> 0.00 | BW29: 0.00 | BX29: 0.00
A30: Sonntag | B30: 2023-01-22 | C30: ='Einsatz 1'!C31 ->  | D30: ='Einsatz 1'!D31 -> 0 | E30: ='Einsatz 1'!E31 -> 0 | F30: ='Einsatz 1'!F31 -> 0 | G30: ='Einsatz 1'!G31 -> 0 | H30: ='Einsatz 1'!H31 -> 00:00:00 | K30: 00:00:00 | N30: 00:00:00 | O30: 00:00:00 | P30: 21:00:00 | Q30: 06:00:00 | S30: 1 | T30: 00:00:00 | U30: 00:00:00 | V30: 00:00:00 | W30: 00:00:00 | X30: 00:00:00 | Y30: 00:00:00 | Z30: 0.00 | AA30: 0.00 | AB30: 0.00 | AC30: 0.00 | AD30: 0.00 | AE30: FALSE | AF30: 00:00:00 | AG30: 00:00:00 | AH30: 0.00 | AI30: 0.00 | AJ30: 0.00 | AK30: 0.00 | AL30: 0.00 | AM30: 0.00 | AN30: 0.00 | AO30: 00:00:00 | AP30: 00:00:00 | AQ30: 00:00:00 | AR30: 00:00:00 | AS30: 00:00:00 | AT30: 00:00:00 | AU30: 0.00 | AV30: 0.00 | AW30: 06:00:00 | AX30: 00:00:00 | BO30: 0.00 | BP30: 0.00 | BQ30: 0.00 | BR30: 0.00 | BU30: 0.00 | BV30: 0.00 | BW30: 0.00 | BX30: 0.00
A31: Montag | B31: 2023-01-23 | C31: ='Einsatz 1'!C32 ->  | D31: ='Einsatz 1'!D32 -> 0 | E31: ='Einsatz 1'!E32 -> 0 | F31: ='Einsatz 1'!F32 -> 0 | G31: ='Einsatz 1'!G32 -> 0 | H31: ='Einsatz 1'!H32 -> 00:00:00 | K31: 00:00:00 | N31: 00:00:00 | O31: 00:00:00 | P31: 21:00:00 | Q31: 06:00:00 | S31: 1 | T31: 00:00:00 | U31: 00:00:00 | V31: 00:00:00 | W31: 00:00:00 | X31: 00:00:00 | Y31: 00:00:00 | Z31: 0.00 | AA31: 0.00 | AB31: 0.00 | AC31: 0.00 | AD31: 0.00 | AE31: FALSE | AF31: 00:00:00 | AG31: 00:00:00 | AH31: 0.00 | AI31: 0.00 | AJ31: 0.00 | AK31: 0.00 | AL31: 0.00 | AM31: 0.00 | AN31: 0.00 | AO31: 00:00:00 | AP31: 00:00:00 | AQ31: 00:00:00 | AR31: 00:00:00 | AS31: 00:00:00 | AT31: 00:00:00 | AU31: 0.00 | AV31: 0.00 | AW31: 06:00:00 | AX31: 00:00:00 | BO31: 0.00 | BP31: 0.00 | BQ31: 0.00 | BR31: 0.00 | BU31: 0.00 | BV31: 0.00 | BW31: 0.00 | BX31: 0.00
A32: Dienstag | B32: 2023-01-24 | C32: ='Einsatz 1'!C33 ->  | D32: ='Einsatz 1'!D33 -> 0 | E32: ='Einsatz 1'!E33 -> 0 | F32: ='Einsatz 1'!F33 -> 0 | G32: ='Einsatz 1'!G33 -> 0 | H32: ='Einsatz 1'!H33 -> 00:00:00 | K32: 00:00:00 | N32: 00:00:00 | O32: 00:00:00 | P32: 21:00:00 | Q32: 06:00:00 | S32: 1 | T32: 00:00:00 | U32: 00:00:00 | V32: 00:00:00 | W32: 00:00:00 | X32: 00:00:00 | Y32: 00:00:00 | Z32: 0.00 | AA32: 0.00 | AB32: 0.00 | AC32: 0.00 | AD32: 0.00 | AE32: FALSE | AF32: 00:00:00 | AG32: 00:00:00 | AH32: 0.00 | AI32: 0.00 | AJ32: 0.00 | AK32: 0.00 | AL32: 0.00 | AM32: 0.00 | AN32: 0.00 | AO32: 00:00:00 | AP32: 00:00:00 | AQ32: 00:00:00 | AR32: 00:00:00 | AS32: 00:00:00 | AT32: 00:00:00 | AU32: 0.00 | AV32: 0.00 | AW32: 06:00:00 | AX32: 00:00:00 | AY32: =IF(I32="",0,IF(OR(I32>=AW32,I32<=AX32),1,IF(OR(J32>=AW32,J32<=AX32),1,IF(AND(I32<=TN32,J32>=AX32,J32<I32),1,0)))) -> 0 | AZ32: =(J32+$D$6)*24 -> 0.00 | BA32: 24.00 | BB32: 14.00 | BC32: =IF(I32="",0,IF(AY32,IF(AND((I32-$D$6)<=AW32,(I32-$D$6)>=AX32),AW32,IF(OR((I32-$D$6)>=AW32,(I32-$D$6)<=AX32),I32-$D$6,AW32)),0)) -> 00:00:00 | BD32: =IF(OR(J32="",AY32=0),0,IF(AY32=1,IF(AZ32>BA32,AX32,J32+$D$6))) -> 00:00:00 | BE32: =IF(I32="",0,IF(AY32,IF(AND(I32<=AW32,I32>=AX32),AW32,IF(OR(I32>=AW32,I32<=AX32),I32,AW32)),0)) -> 00:00:00 | BF32: =IF(OR(AY32=0,J32=0),0,IF(J32<=AX32,J32,IF(J32>=AW32,J32,AX32))) -> 00:00:00 | BG32: =IF(BE32=0,0,IF(BE32<=0.25,BD32-BC32,(BD32+1)-BC32)) -> 00:00:00 | BH32: =IF(BE32=0,0,IF(BE32<=0.25,BF32-BE32,(BF32+1)-BE32)) -> 00:00:00 | BI32: =BC32*24 -> 0.00 | BJ32: =BD32*24 -> 0.00 | BK32: =BE32*24 -> 0.00 | BL32: =BF32*24 -> 0.00 | BM32: =IF(AND(I32>0,$BU$3=12,BI32<=BB32,S33=1),BB32-BI32,0) -> 0.00 | BN32: =IF(AND(I32>0,BJ32>BB32,S32=1),IF(BI32-BB32<0,BG32*24-24-BM32,BI32-BB32),IF(BL32>BB32,BB32-BK32,0)) -> 0.00 | BO32: 0.00 | BP32: 0.00 | BQ32: 0.00 | BR32: 0.00 | BS32: =IF(OR($BU$3<12,I32=""),0,BM32) -> 0.00 | BT32: =IF(AND($BU$3=12,BJ32>14,BJ32<=BA32),BJ32-14,IF(AND($BU$3=12,BL32>14,BL32<=BA32),BL32-14,0)) -> 0.00 | BU32: 0.00 | BV32: 0.00 | BW32: 0.00 | BX32: 0.00
A33: Mittwoch | B33: 2023-01-25 | C33: ='Einsatz 1'!C34 ->  | D33: ='Einsatz 1'!D34 -> 0 | E33: ='Einsatz 1'!E34 -> 0 | F33: ='Einsatz 1'!F34 -> 0 | G33: ='Einsatz 1'!G34 -> 0 | H33: ='Einsatz 1'!H34 -> 00:00:00 | K33: 00:00:00 | N33: 00:00:00 | O33: 00:00:00 | P33: 21:00:00 | Q33: 06:00:00 | S33: 1 | T33: 00:00:00 | U33: 00:00:00 | V33: 00:00:00 | W33: 00:00:00 | X33: 00:00:00 | Y33: 00:00:00 | Z33: 0.00 | AA33: 0.00 | AB33: 0.00 | AC33: 0.00 | AD33: 0.00 | AE33: FALSE | AF33: 00:00:00 | AG33: 00:00:00 | AH33: 0.00 | AI33: 0.00 | AJ33: 0.00 | AK33: 0.00 | AL33: 0.00 | AM33: 0.00 | AN33: 0.00 | AO33: 00:00:00 | AP33: 00:00:00 | AQ33: 00:00:00 | AR33: 00:00:00 | AS33: 00:00:00 | AT33: 00:00:00 | AU33: 0.00 | AV33: 0.00 | AW33: 06:00:00 | AX33: 00:00:00 | AY33: =IF(I33="",0,IF(OR(I33>=AW33,I33<=AX33),1,IF(OR(J33>=AW33,J33<=AX33),1,IF(AND(I33<=TN33,J33>=AX33,J33<I33),1,0)))) -> 0 | AZ33: =(J33+$D$6)*24 -> 0.00 | BA33: 24.00 | BB33: 0.00 | BC33: =I33*24 -> 0.00 | BD33: =IF(OR(J33="",AY33=0),0,IF(AY33=1,IF(AZ33>BA33,AX33,J33+$D$6))) -> 0 | BE33: =IF(I33="",0,IF(AY33,IF(AND(I33<=AW33,I33>=AX33),AX33,IF(OR(I33>=AW33,I33<=AX33),I33,AW33)),0)) -> 0 | BF33: =IF(OR(AY33=0,J33=0),0,IF(J33<=AX33,J33,IF(J33>=AW33,J33,AX33))) -> 00:00:00 | BH33: =IF(BE33=0,0,IF(BE33<=0.25,BF33-BE33,(BF33+1)-BE33)) -> 00:00:00 | BI33: =IF(I33="",0,IF(AY33,IF(AND((BC33-$G$6)<=BB33,),BB33,IF(OR((BC33-$G$6)>=BB33),BC33-$G$6,BB33)),0)) -> 0.00 | BJ33: =BD33*24 -> 0.00 | BK33: =I33*24 -> 0.00 | BL33: =BF33*24 -> 0.00 | BM33: =BJ33-BI33 -> 0.00 | BN33: =BL33-BK33 -> 0.00 | BO33: 0.00 | BP33: 0.00 | BQ33: 0.00 | BR33: 0.00 | BT33: =IF(AND(BU3=12,K33>0),IF(S33=1,BM33,BN33),0) -> 0.00 | BU33: 0.00 | BV33: 0.00 | BW33: 0.00 | BX33: 0.00
A34: Donnerstag | B34: 2023-01-26 | C34: ='Einsatz 1'!C35 ->  | D34: ='Einsatz 1'!D35 -> 0 | E34: ='Einsatz 1'!E35 -> 0 | F34: ='Einsatz 1'!F35 -> 0 | G34: ='Einsatz 1'!G35 -> 0 | H34: ='Einsatz 1'!H35 -> 00:00:00 | K34: 00:00:00 | N34: 00:00:00 | O34: 00:00:00 | P34: 21:00:00 | Q34: 06:00:00 | S34: 1 | T34: 00:00:00 | U34: 00:00:00 | V34: 00:00:00 | W34: 00:00:00 | X34: 00:00:00 | Y34: 00:00:00 | Z34: 0.00 | AA34: 0.00 | AB34: 0.00 | AC34: 0.00 | AD34: 0.00 | AE34: FALSE | AF34: 00:00:00 | AG34: 00:00:00 | AH34: 0.00 | AI34: 0.00 | AJ34: 0.00 | AK34: 0.00 | AL34: 0.00 | AM34: 0.00 | AN34: 0.00 | AO34: 00:00:00 | AP34: 00:00:00 | AQ34: 00:00:00 | AR34: 00:00:00 | AS34: 00:00:00 | AT34: 00:00:00 | AU34: 0.00 | AV34: 0.00 | AW34: 06:00:00 | AX34: 00:00:00 | AY34: =IF(I34="",0,IF(OR(I34>=AW34,I34<=AX34),1,IF(OR(J34>=AW34,J34<=AX34),1,IF(AND(I34<=TN34,J34>=AX34,J34<I34),1,0)))) -> 0 | AZ34: =(J34+$D$6)*24 -> 0.00 | BA34: 24.00 | BB34: 0.00 | BC34: =I34*24 -> 0.00 | BD34: =IF(OR(J34="",AY34=0),0,IF(AY34=1,IF(AZ34>BA34,AX34,J34+$D$6))) -> 0 | BE34: =IF(I34="",0,IF(AY34,IF(AND(I34<=AW34,I34>=AX34),AX34,IF(OR(I34>=AW34,I34<=AX34),I34,AW34)),0)) -> 0 | BF34: =IF(OR(AY34=0,J34=0),0,IF(J34<=AX34,J34,IF(J34>=AW34,J34,AX34))) -> 00:00:00 | BH34: =IF(BE34=0,0,IF(BE34<=0.25,BF34-BE34,(BF34+1)-BE34)) -> 00:00:00 | BI34: =IF(I34="",0,IF(AY34,IF(AND((BC34-$G$6)<=BB34,),BB34,IF(OR((BC34-$G$6)>=BB34),BC34-$G$6,BB34)),0)) -> 0.00 | BJ34: =BD34*24 -> 0.00 | BK34: =I34*24 -> 0.00 | BL34: =BF34*24 -> 0.00 | BM34: =BJ34-BI34 -> 0.00 | BN34: =BL34-BK34 -> 0.00 | BO34: 0.00 | BP34: 0.00 | BQ34: 0.00 | BR34: 0.00 | BT34: =IF(AND(BU3=12,K34>0),IF(S34=1,BM34,BN34),0) -> 0.00 | BU34: 0.00 | BV34: 0.00 | BW34: 0.00 | BX34: 0.00
A35: Freitag | B35: 2023-01-27 | C35: ='Einsatz 1'!C36 ->  | D35: ='Einsatz 1'!D36 -> 0 | E35: ='Einsatz 1'!E36 -> 0 | F35: ='Einsatz 1'!F36 -> 0 | G35: ='Einsatz 1'!G36 -> 0 | H35: ='Einsatz 1'!H36 -> 00:00:00 | K35: 00:00:00 | N35: 00:00:00 | O35: 00:00:00 | P35: 21:00:00 | Q35: 06:00:00 | S35: 1 | T35: 00:00:00 | U35: 00:00:00 | V35: 00:00:00 | W35: 00:00:00 | X35: 00:00:00 | Y35: 00:00:00 | Z35: 0.00 | AA35: 0.00 | AB35: 0.00 | AC35: 0.00 | AD35: 0.00 | AE35: FALSE | AF35: 00:00:00 | AG35: 00:00:00 | AH35: 0.00 | AI35: 0.00 | AJ35: 0.00 | AK35: 0.00 | AL35: 0.00 | AM35: 0.00 | AN35: 0.00 | AO35: 00:00:00 | AP35: 00:00:00 | AQ35: 00:00:00 | AR35: 00:00:00 | AS35: 00:00:00 | AT35: 00:00:00 | AU35: 0.00 | AV35: 0.00 | AW35: 06:00:00 | AX35: 00:00:00 | BO35: 0.00 | BP35: 0.00 | BQ35: 0.00 | BR35: 0.00 | BU35: 0.00 | BV35: 0.00 | BW35: 0.00 | BX35: 0.00
A36: Samstag | B36: 2023-01-28 | C36: ='Einsatz 1'!C37 ->  | D36: ='Einsatz 1'!D37 -> 0 | E36: ='Einsatz 1'!E37 -> 0 | F36: ='Einsatz 1'!F37 -> 0 | G36: ='Einsatz 1'!G37 -> 0 | H36: ='Einsatz 1'!H37 -> 00:00:00 | K36: 00:00:00 | N36: 00:00:00 | O36: 00:00:00 | P36: 21:00:00 | Q36: 06:00:00 | S36: 1 | T36: 00:00:00 | U36: 00:00:00 | V36: 00:00:00 | W36: 00:00:00 | X36: 00:00:00 | Y36: 00:00:00 | Z36: 0.00 | AA36: 0.00 | AB36: 0.00 | AC36: 0.00 | AD36: 0.00 | AE36: FALSE | AF36: 00:00:00 | AG36: 00:00:00 | AH36: 0.00 | AI36: 0.00 | AJ36: 0.00 | AK36: 0.00 | AL36: 0.00 | AM36: 0.00 | AN36: 0.00 | AO36: 00:00:00 | AP36: 00:00:00 | AQ36: 00:00:00 | AR36: 00:00:00 | AS36: 00:00:00 | AT36: 00:00:00 | AU36: 0.00 | AV36: 0.00 | AW36: 06:00:00 | AX36: 00:00:00 | BO36: 0.00 | BP36: 0.00 | BQ36: 0.00 | BR36: 0.00 | BU36: 0.00 | BV36: 0.00 | BW36: 0.00 | BX36: 0.00
A37: Sonntag | B37: =IF(MONTH(B36+1)=BU3,B36+1,"") -> 2023-01-29 | C37: ='Einsatz 1'!C38 ->  | D37: ='Einsatz 1'!D38 -> 0 | E37: ='Einsatz 1'!E38 -> 0 | F37: ='Einsatz 1'!F38 -> 0 | G37: ='Einsatz 1'!G38 -> 0 | H37: ='Einsatz 1'!H38 -> 00:00:00 | K37: 00:00:00 | N37: 00:00:00 | O37: 00:00:00 | P37: 21:00:00 | Q37: 06:00:00 | S37: 1 | T37: 00:00:00 | U37: 00:00:00 | V37: 00:00:00 | W37: 00:00:00 | X37: 00:00:00 | Y37: 00:00:00 | Z37: 0.00 | AA37: 0.00 | AB37: 0.00 | AC37: 0.00 | AD37: 0.00 | AE37: FALSE | AF37: 00:00:00 | AG37: 00:00:00 | AH37: 0.00 | AI37: 0.00 | AJ37: 0.00 | AK37: 0.00 | AL37: 0.00 | AM37: 0.00 | AN37: 0.00 | AO37: 00:00:00 | AP37: 00:00:00 | AQ37: 00:00:00 | AR37: 00:00:00 | AS37: 00:00:00 | AT37: 00:00:00 | AU37: 0.00 | AV37: 0.00 | AW37: 06:00:00 | AX37: 00:00:00 | BO37: 0.00 | BP37: 0.00 | BQ37: 0.00 | BR37: 0.00 | BU37: 0.00 | BV37: 0.00 | BW37: 0.00 | BX37: 0.00
A38: Montag | B38: =IF(MONTH(B36+2)=BU3,B36+2,"") -> 2023-01-30 | C38: ='Einsatz 1'!C39 ->  | D38: ='Einsatz 1'!D39 -> 0 | E38: ='Einsatz 1'!E39 -> 0 | F38: ='Einsatz 1'!F39 -> 0 | G38: ='Einsatz 1'!G39 -> 0 | H38: ='Einsatz 1'!H39 -> 00:00:00 | K38: 00:00:00 | N38: 00:00:00 | O38: 00:00:00 | P38: 21:00:00 | Q38: 06:00:00 | S38: 1 | T38: 00:00:00 | U38: 00:00:00 | V38: 00:00:00 | W38: 00:00:00 | X38: 00:00:00 | Y38: 00:00:00 | Z38: 0.00 | AA38: 0.00 | AB38: 0.00 | AC38: 0.00 | AD38: 0.00 | AE38: FALSE | AF38: 00:00:00 | AG38: 00:00:00 | AH38: 0.00 | AI38: 0.00 | AJ38: 0.00 | AK38: 0.00 | AL38: 0.00 | AM38: 0.00 | AN38: 0.00 | AO38: 00:00:00 | AP38: 00:00:00 | AQ38: 00:00:00 | AR38: 00:00:00 | AS38: 00:00:00 | AT38: 00:00:00 | AU38: 0.00 | AV38: 0.00 | AW38: 06:00:00 | AX38: 00:00:00 | BO38: 0.00 | BP38: 0.00 | BQ38: 0.00 | BR38: 0.00 | BU38: 0.00 | BV38: 0.00 | BW38: 0.00 | BX38: 0.00
A39: Dienstag | B39: =IF(MONTH(B36+3)=BU3,B36+3,"") -> 2023-01-31 | C39: ='Einsatz 1'!C40 ->  | D39: ='Einsatz 1'!D40 -> 0 | E39: ='Einsatz 1'!E40 -> 0 | F39: ='Einsatz 1'!F40 -> 0 | G39: ='Einsatz 1'!G40 -> 0 | H39: ='Einsatz 1'!H40 -> 00:00:00 | K39: 00:00:00 | N39: 00:00:00 | O39: 00:00:00 | P39: 21:00:00 | Q39: 06:00:00 | S39: 1 | T39: 00:00:00 | U39: 00:00:00 | V39: 00:00:00 | W39: 00:00:00 | X39: 00:00:00 | Y39: 00:00:00 | Z39: 0.00 | AA39: 0.00 | AB39: 0.00 | AC39: 0.00 | AD39: 0.00 | AE39: FALSE | AF39: 00:00:00 | AG39: 00:00:00 | AH39: 0.00 | AI39: 0.00 | AJ39: 0.00 | AK39: 0.00 | AL39: 0.00 | AM39: 0.00 | AN39: 0.00 | AO39: 00:00:00 | AP39: 00:00:00 | AQ39: 00:00:00 | AR39: 00:00:00 | AS39: 00:00:00 | AT39: 00:00:00 | AU39: 0.00 | AV39: 0.00 | AW39: 06:00:00 | AX39: 00:00:00 | AY39: =IF(I39="",0,IF(OR(I39>=AW39,I39<=AX39),1,IF(OR(J39>=AW39,J39<=AX39),1,IF(AND(I39<=TN39,J39>=AX39,J39<I39),1,0)))) -> 0 | AZ39: =(J39+$D$6)*24 -> 0.00 | BA39: 24.00 | BB39: 14.00 | BC39: =IF(I39="",0,IF(AY39,IF(AND((I39-$D$6)<=AW39,(I39-$D$6)>=AX39),AW39,IF(OR((I39-$D$6)>=AW39,(I39-$D$6)<=AX39),I39-$D$6,AW39)),0)) -> 00:00:00 | BD39: =IF(OR(J39="",AY39=0),0,IF(AY39=1,IF(AZ39>BA39,AX39,J39+$D$6))) -> 00:00:00 | BE39: =IF(I39="",0,IF(AY39,IF(AND(I39<=AW39,I39>=AX39),AW39,IF(OR(I39>=AW39,I39<=AX39),I39,AW39)),0)) -> 00:00:00 | BF39: =IF(OR(AY39=0,J39=0),0,IF(J39<=AX39,J39,IF(J39>=AW39,J39,AX39))) -> 00:00:00 | BG39: =IF(BE39=0,0,IF(BE39<=0.25,BD39-BC39,(BD39+1)-BC39)) -> 00:00:00 | BH39: =IF(BE39=0,0,IF(BE39<=0.25,BF39-BE39,(BF39+1)-BE39)) -> 00:00:00 | BI39: =BC39*24 -> 0.00 | BJ39: =BD39*24 -> 0.00 | BK39: =BE39*24 -> 0.00 | BL39: =BF39*24 -> 0.00 | BM39: =IF(AND(I39>0,$BU$3=12,BI39<=BB39,S39=1),BJ39-BI39,0) -> 0.00 | BN39: =IF(AND(I39>0,BJ39>BB39,S39=1),IF(BI39-BB39<0,BG39*24-24-BM39,BI39-BB39),IF(BL39>BB39,BB39-BK39,0)) -> 0.00 | BO39: 0.00 | BP39: 0.00 | BQ39: 0.00 | BR39: 0.00 | BS39: =IF(OR($BU$3<12,I39=""),0,BM39) -> 0.00 | BT39: =IF(AND($BU$3=12,BJ39<BB39,BJ39<=BA39),SUM(BJ39-IF(BI39-BB39>=0,BB39,BI39)),IF(AND($BU$3=12,BL39>14,BL39<=BA39),SUM(IF(BL39-14>0,BL39,14),0))) -> FALSE | BU39: 0.00 | BV39: 0.00 | BW39: 0.00 | BX39: 0.00
K40: =SUM(K9:K39) -> 00:00:00 | BO40: =SUM(BO9:BO39) -> 0.00 | BP40: =SUM(BP9:BP39) -> 0.00 | BQ40: 0.00 | BR40: 0.00 | BS40: 0.00 | BT40: 0.00 | BU40: 0.00 | BV40: 0.00 | BW40: 0.00 | BX40: 0.00
D41: ='Einsatz 1'!D42 ->  | E41: ='Einsatz 1'!E42 ->  | F41: ='Einsatz 1'!F42 ->  | G41: ='Einsatz 1'!G42 ->  | H41: ='Einsatz 1'!H42 ->  | BO41: =IF(BO40=0,"",IF(BO40>0,SUM(BO9:BO39),"")) ->  | BP41: =IF(BP40=0,"",IF(BP40>0,SUM(BP9:BP39),"")) ->  | BQ41: =IF(BQ40=0,"",IF(BQ40>0,SUM(BQ9:BQ39),"")) ->  | BR41: =IF(BR40=0,"",IF(BR40>0,SUM(BR9:BR39),"")) ->  | BS41: =IF(BS40=0,"",IF(BS40>0,SUM(BS9:BS39),"")) -> 
C42: * Es gelten nur die gesetzlichen Feiertage. Weihnachten und 1. Mai sind unter Lohnart 5071 gesondert berücksichtigt.
C43: ** Auszuwählen ist an jedem Urlaubs- und/oder Krankheitstag jeweils "ja".
C44: *** Auszuwählen ist "ja" nur an dem Tag, an dem die Rufbereitschaft begann.
C45: **** Bei Einsätzen, für die eine Vor-Ort-Anwensenheit nicht erforderlich war, bitte auf "ja" klicken. In diesem Fall wird bei der Berechnung keine Wegezeit berücksichtigt. | BV45: ='Einsatz 1'!BV46 -> Stand des Formulars: 01.02.2023

Sheet Einsatz 3
A1: Nachweis über Überstunden, Überstundenvergütung und Zeitzuschläge | BV1: Datum: | BW1: =TODAY() -> 2023-02-01
C3: 3. Einsatz | I3: Rufbereitschaft und Zeitzuschläge | BT3: Monat: | BU3: ='Einsatz 1'!BU3 -> 1 | BV3: Jahr: | BW3: ='Einsatz 1'!BW3 -> 2023
C5: Name, Vorname: | D5: ='Einsatz 1'!D5 -> 0 | K5: Orga-Einheit: | L5: ='Einsatz 1'!L5 -> Dezernat 5.3 | BU5: Freizeitausgleich wird gewährt: | BV5: ='Einsatz 1'!BV5 -> ja
C6: Übliche Wegezeit (h:mm): | D6: ='Einsatz 1'!D6 -> 00:00:00 | F6: Industriestunden: | G6: =D6*24 -> 0.00
A7: Tag | B7: Datum | C7: gesetzl. Feiertag in NRW* | D7: Urlaub** | E7: Krankheit (AU)** | F7: Rufbereitschaft Mo-Fr 15:15 bis 07:00 des Folgetags*** | G7: Rufbereitschaft Sa, So, Feiertag (07:00 bis 07:00 des Folgetags)*** | H7: Rufbereitschaft weniger als 12 Std. (hh:mm) | I7: Uhrzeit Einsatz von (hh:mm) | J7: Uhrzeit Einsatz bis (hh:mm) | K7: Arbeitszeit des Einsatzes (ohne Wegezeit) | L7: Der Einsatz erfolgte ohne Präsenz (z.B. telefonisch)**** | M7: Grund des Einsatzes | N7: AZ (ggf. mit WZ) | O7: AZ (ggf. ,mit WZ) gerundet | P7: Beginn Nacht-arbeits-zeit-rahmen | Q7: Ende Nacht-arbeits-zeit-rahmen | R7: Nacht-einsatz? 1-Ja | S7: Wegezeit 1-ja | T7: Beginn Nacht-einsatz (ohne WZ) | U7: Ende Nacht-einsatz (ohne WZ) | V7: Beginn Nacht-einsatz (mit WZ) | W7: Ende Nachtarbeit (mit WZ) | X7: Nachtarbeit mit WZ | Y7: Nachtarbeit ohne WZ | Z7: Ende Nacht-einsatz (mit WZ) vor 0 | AA7: Ende Nacht-einsatz (mit WZ) nach 0 | AB7: Ende Nacht-einsatz (o WZ) vor 0 | AC7: Ende Nacht-einsatz (o WZ) nach 0 | AD7: Summe Nacht-einsatz (mit WZ) | AE7: Summe Nacht-einsatz (o WZ) | AF7: Samstagsarbeit 13-21 Uhr (mit WZ) | AG7: Samstagsarbeit 13-21 Uhr (o WZ) | AH7: Samstagsarbeit, wenn negative Zeiten | AI7: Beginn Samstags-arbeit o WZ | AJ7: Beginn Samstags-arbeit m WZ | AK7: Ende Samstags-arbeit o WZ | AL7: Ende Samstags-arbeit m WZ | AM7: Samstagsarbeit 20-21 m WZ | AN7: Samstagsarbeit 20-21 o WZ | AO7: Beginn Sonntagsarbeit mit WZ | AP7: Ende Sonntagsarbeit mit WZ | AQ7: Beginn Sonntagsarbeit o WZ | AR7: Ende Sonntagsarbeit o WZ | AS7: Sonntagsarbeit mit WZ | AT7: Sonntagsarbeit o WZ | AU7: Sonntagsarbeit mit WZ (dezimal) | AV7: Sonntagsarbeit o WZ (dezimal) | AW7: Beginn Rahmen 24. & 31.12. | AX7: Ende Rahmen 24. & 31.12. | AY7: Arbeit 24. & 31.12. | AZ7: Arbeit 24. & 31.12. Ende nach 0 Uhr | BA7: Arbeit am 24. & 31.12. (24 h) | BB7: Arbeit am 24. & 31.12. (14 h) | BC7: Beginn 24.12. & 31.12. (mit WZ) | BD7: Ende 24.12. & 31.12. (mit WZ) | BE7: Beginn 24.12. & 31.12. (o WZ) | BF7: Ende 24.12. & 31.12. (o WZ) | BG7: Arbeit 24.12. & 31.12. (mit WZ) | BH7: Arbeit 24.12. & 31.12. (o WZ) | BI7: Beginn 24.12. & 31.12. (mit WZ) | BJ7: Ende 24.12. & 31.12. bis 14 Uhr (mit WZ) | BK7: Beginn 24.12. & 31.12. (o WZ) | BL7: Ende 24.12. & 31.12. bis 14 Uhr (o WZ) | BM7: Ende 24. & 31.12. vor 14 Uhr BB32, BC32 dezimal) | BN7: Ende 24. & 31.12. nach 14 Uhr | BO7: Stunden mit Freizeitausgleich | BP7: Stunden ohne Freizeitausgleich | BQ7: Arbeit am Samstag 13-20 Uhr | BR7: Arbeit am Samstag 20-21 Uhr | BS7: Arbeit am 24.12.& 31.12. 6-14 Uhr | BT7: Arbeit am 24.12. 14-24 Uhr; am 25./26.12. & am 01.05. | BU7: Arbeit am Sonntag | BV7: Arbeit am Feiertag mit Freizeitausgleich | BW7: Arbeit am Feiertag ohne Freizeitausgleich | BX7: Nachtarbeit (21-6 Uhr)
D8: 5167 | E8: 5168 | F8: 5200 | G8: 5201 | H8: 5204 | BO8: 5012 | BP8: 5012 und 5014 | BQ8: 5080 | BR8: 5083 | BS8: 5070 | BT8: 5071 | BU8: 5050 | BV8: 5061 | BW8: 5060 und 5061 | BX8: 5040
A9: =TEXT(B9,"TTTT") -> Sonntag | B9: =DATE(BW3,BU3,1) -> 2023-01-01 | C9: ='Einsatz 1'!C10 -> Neujahr | D9: ='Einsatz 1'!D10 -> 0 | E9: ='Einsatz 1'!E10 -> 0 | F9: ='Einsatz 1'!F10 -> 0 | G9: ='Einsatz 1'!G10 -> 0 | H9: ='Einsatz 1'!H10 -> 00:00:00 | K9: =IF(OR(I9="",J9=""),0,MOD(J9-I9,1)) -> 00:00:00 | N9: =IF(K9="",0,IF(L9="",K9+(2*$D$6),K9)) -> 00:00:00 | O9: =IF(J9="",0,(IF(L9="ja",ROUNDUP(N9*48,0.5)/48,ROUNDUP(N9*24,0)/24))) -> 00:00:00 | P9: 21:00:00 | Q9: 06:00:00 | R9: =IF(I9="",0,IF(OR(I9>=P9,I9<=Q9),1,IF(OR(J9>=P9,J9<=Q9),1,IF(AND(I9<=P9,J9>=Q9,J9<I9),1,0)))) -> 0 | S9: =IF(L9="",1,"") -> 1 | T9: =IF(OR(I9="",S9=1),0,IF(R9,IF(AND(I9<=P9,I9>=Q9),P9,IF(OR(I9>=P9,I9<=Q9),I9,P9)),0)) -> 00:00:00 | U9: =IF(OR(R9=0,J9="",S9=1),0,IF(J9<=Q9,J9,IF(J9>=P9,J9,Q9))) -> 00:00:00 | V9: =IF(OR(I9="",S9=""),0,IF(R9,IF(AND((I9-$D$6)<=P9,(I9-$D$6)>=Q9),P9,IF(OR((I9-$D$6)>=P9,(I9-$D$6)<=Q9),I9-$D$6,P9)),0)) -> 00:00:00 | W9: =IF(OR(J9="",S9=""),0,IF(R9,IF(AND((J9+$D$6)<=P9,(J9+$D$6)>=Q9),Q9,IF(OR((J9+$D$6)<=P9,(J9+$D$6)>=Q9),J9+$D$6,Q9)),0)) -> 00:00:00 | X9: =IF(AND(S9="",T9=0),0,IF(W9-V9,(W9+1)-V9,0)) -> 00:00:00 | Y9: =IF(OR(S9="1",T9=0),0,IF(U9-T9,(U9+1)-T9,0)) -> 00:00:00 | Z9: =IF(W9=0,0,IF(W9<=23.58,X9*24-24)) -> 0.00 | AA9: =IF(W9=0,0,IF(W9>0,X9*24)) -> 0.00 | AB9: =IF(U9=0,0,IF(U9<=23.58,Y9*24-24)) -> 0.00 | AC9: =IF(U9=0,0,IF(U9>0,Y9*24)) -> 0.00 | AD9: =IF(AND(S9=1,Z9<=0,AA9<24),AA9,IF(AA9>0,Z9)) -> 0.00 | AE9: =IF(AND(S9="",AB9<=0,AC9<24),AC9,IF(AC9>0,AB9)) -> FALSE | AF9: =IF(AND(F9=0,J9=0),0,IF(AND(A9="Samstag",S9=1),IF(J9>I9,IF(J9>=0.875,0.875,J9+$D$6)-IF(I9<=(13/24),(13/24),I9-$D$6),IF(I9<=0.875,0.875-I9,0)),0)) -> 00:00:00 | AG9: =IF(S9=1,0,IF(AND(J9=0,F9=0),0,IF(A9="Samstag",IF(J9>I9,IF(J9>=0.875,0.875,J9)-IF(I9<=(13/24),(13/24),I9),IF(I9<=0.875,0.875-I9,0)),0))) -> 00:00:00 | AH9: =IF(AG9>0,AG9*24,AF9*24) -> 0.00 | AI9: =IF(AND(A9="Samstag",I9>0,S9=1),0,IF(AND(A9="Samstag",I9>0,S9=""),I9*24,0)) -> 0.00 | AJ9: =IF(AND(A9="Samstag",I9>0,S9=1),(I9-$D$6)*24,IF(AND(A9="Samstag",I9>0),I9*24,0)) -> 0.00 | AK9: =IF(AND(A9="Samstag",J9>0,S9=1),0,IF(AND(A9="Samstag",J9>0,S9=""),J9*24,0)) -> 0.00 | AL9: =IF(AND(A9="Samstag",J9>0,S9=1),(J9+$D$6)*24,0) -> 0.00 | AM9: =IF(OR(I9="",L9="ja",AJ9>=21,AND(AJ9<=20,AL9<=20)),0,IF(AND(AJ9<=20,AL9>20,AL9<=21),AL9-20-BV9-BW9,IF(AND(AJ9<=20,AL9>21),21-20-BV9-BW9,IF(AND(AJ9>=20,AJ9<21,AL9>=0,AL9<=12),21-AJ9-BV9-BW9,IF(AND(AJ9<21,OR(AND(AL9>=0,AL9<=21),AND(AL9>=21,AL9<=23.99))),21-20-BV9-BW9))))) -> 0.00 | AN9: =IF(OR(I9="",L9="",AI9>=21,AND(AI9<=20,AK9<=20)),0,IF(AND(AI9<=20,AK9>20,AK9<=21),AK9-20-BV9-BW9,IF(AND(AI9<=20,AK9>21),21-20-BV9-BW9,IF(AND(AI9>=20,AI9<21,AK9>=0,AK9<=12),21-AI9-BV9-BW9,IF(AND(AI9<21,OR(AND(AK9>=0,AK9<=21),AND(AK9>=21,AK9<=23.99))),21-20-BV9-BW9))))) -> 0.00 | AO9: =IF(A9="Sonntag",I9-$D$6,IF(A9="Samstag",IF(J9<I9,0,0),0)) -> 00:00:00 | AP9: =IF(J9="",0,IF(A9="Sonntag",IF((J9+$D$6)<I9,1,J9+$D$6),IF(A9="Samstag",IF((J9+$D$6)<I9,J9+$D$6,0),0))) -> 00:00:00 | AQ9: =IF(A9="Sonntag",I9,IF(A9="Samstag",IF(J9<I9,0,0),0)) -> 00:00:00 | AR9: =IF(A9="Sonntag",IF(J9<I9,1,J9),IF(A9="Samstag",IF(J9<I9,J9,0),0)) -> 00:00:00 | AS9: =IF(J9="",0,IF(AND(AO9=0,AP9=0),0,IF(OR(A9="Sonntag",A9="Samstag"),AP9-AO9,0))) -> 00:00:00 | AT9: =IF(AND(AQ9=0,AR9=0),0,IF(OR(A9="Sonntag",A9="Samstag"),AR9-AQ9,0)) -> 00:00:00 | AU9: =IF(OR(AS9=0,AS9=""),0,IF(AND(AS9>0,BV9>=0,$BV$5="ja"),AS9*24-BV9,IF(AND(AS9>0,BV9>=0,$BV$5="nein"),AS9*24-BW9))) -> 0.00 | AV9: =IF(OR(AT9=0,AT9=""),0,IF(AND(AT9>0,BV9>=0,$BV$5="ja"),AT9*24-BV9,IF(AND(AT9>0,BV9>=0,$BV$5="nein"),AT9*24-BW9))) -> 0.00 | AW9: 06:00:00 | AX9: 00:00:00 | AY9: =IF(I9="",0,IF(OR(I9>=AW9,I9<=AX9),1,IF(OR(J9>=AW9,J9<=AX9),1,IF(AND(I9<=TN9,J9>=AX9,J9<I9),1,0)))) -> 0 | AZ9: =(J9+$D$6)*24 -> 0.00 | BA9: 24.00 | BB9: 0.00 | BC9: =I9*24 -> 0.00 | BD9: =IF(OR(J9="",AY9=0),0,IF(AY9=1,IF(AZ9>BA9,AX9,J9+$D$6))) -> 00:00:00 | BE9: =IF(I9="",0,IF(AY9,IF(AND(I9<=AW9,I9>=AX9),AX9,IF(OR(I9>=AW9,I9<=AX9),I9,AW9)),0)) -> 00:00:00 | BF9: =IF(OR(AY9=0,J9=0),0,IF(J9<=AX9,J9,IF(J9>=AW9,J9,AX9))) -> 00:00:00 | BH9: =IF(BE9=0,0,IF(BE9<=0.25,BF9-BE9,(BF9+1)-BE9)) -> 00:00:00 | BI9: =IF(I9="",0,IF(AY9,IF(AND((BC9-$G$6)<=BB9,),BB9,IF(OR((BC9-$G$6)>=BB9),BC9-$G$6,BB9)),0)) -> 0.00 | BJ9: =BD9*24 -> 0.00 | BK9: =I9*24 -> 0.00 | BL9: =BF9*24 -> 0.00 | BM9: =BJ9-BI9 -> 0.00 | BN9: =BL9-BK9 -> 0.00 | BO9: =IF(O9="",0,IF($BV$5="ja",O9*24,0)) -> 0.00 | BP9: =IF(O9="",0,IF($BV$5="nein",O9*24,0)) -> 0.00 | BQ9: =IF(C9=0,IF(AH9=0,0,IF(AH9>=0,AH9-BR9,IF(AND(AH9>=0,BV9>=0,$BV$5="ja"),AH9-BV9,IF(AND(AH9>=0,BW9>=0,$BV$5="nein"),AH9-BW9)))),0) -> 0.00 | BR9: =IF(L9="",AM9,AN9) -> 0.00 | BT9: =IF(AND(BU3=5,K9>0),IF(S9=1,BM9,BN9),0) -> 0.00 | BU9: =IF(S9=1, AU9,AV9) -> 0.00 | BV9: =IF($BV$5="ja",IF(OR(K9="",C9=""),0,IF(AND(S9=1,K9>0),(K9+$D$6+$D$6)*24,K9*24)),0) -> 0.00 | BW9: =IF($BV$5="nein",IF(OR(K9="",C9=0),0,IF(AND(S9=1,K9>0),(K9+$D$6+$D$6)*24,K9*24)),0) -> 0.00 | BX9: =IF(S9=1,AD9,AE9) -> 0.00
A10: =TEXT(B10,"TTTT") -> Montag | B10: =B9+1 -> 2023-01-02 | C10: ='Einsatz 1'!C11 ->  | D10: ='Einsatz 1'!D11 -> 0 | E10: ='Einsatz 1'!E11 -> 0 | F10: ='Einsatz 1'!F11 -> 0 | G10: ='Einsatz 1'!G11 -> 0 | H10: ='Einsatz 1'!H11 -> 00:00:00 | K10: =IF(OR(I10="",J10=""),0,MOD(J10-I10,1)) -> 00:00:00 | N10: =IF(K10="",0,IF(L10="",K10+(2*$D$6),K10)) -> 00:00:00 | O10: =IF(J10="",0,(IF(L10="ja",ROUNDUP(N10*48,0.5)/48,ROUNDUP(N10*24,0)/24))) -> 00:00:00 | P10: 21:00:00 | Q10: 06:00:00 | R10: =IF(I10="","",IF(OR(I10>=P10,I10<=Q10),1,IF(OR(J10>=P10,J10<=Q10),1,IF(AND(I10<=P10,J10>=Q10,J10<I10),1,0)))) ->  | S10: =IF(L10="",1,"") -> 1 | T10: =IF(OR(I10="",S10=1),0,IF(R10,IF(AND(I10<=P10,I10>=Q10),P10,IF(OR(I10>=P10,I10<=Q10),I10,P10)),0)) -> 00:00:00 | U10: =IF(OR(R10=0,J10="",S10=1),0,IF(J10<=Q10,J10,IF(J10>=P10,J10,Q10))) -> 00:00:00 | V10: =IF(OR(I10="",S10=""),0,IF(R10,IF(AND((I10-$D$6)<=P10,(I10-$D$6)>=Q10),P10,IF(OR((I10-$D$6)>=P10,(I10-$D$6)<=Q10),I10-$D$6,P10)),0)) -> 00:00:00 | W10: =IF(OR(J10="",S10=""),0,IF(R10,IF(AND((J10+$D$6)<=P10,(J10+$D$6)>=Q10),Q10,IF(OR((J10+$D$6)<=P10,(J10+$D$6)>=Q10),J10+$D$6,Q10)),0)) -> 00:00:00 | X10: =IF(AND(S10="",T10=0),0,IF(W10-V10,(W10+1)-V10,0)) -> 00:00:00 | Y10: =IF(OR(S10="1",T10=0),0,IF(U10-T10,(U10+1)-T10,0)) -> 00:00:00 | Z10: =IF(W10=0,0,IF(W10<=23.58,X10*24-24)) -> 0.00 | AA10: =IF(W10=0,0,IF(W10>0,X10*24)) -> 0.00 | AB10: =IF(U10=0,0,IF(U10<=23.58,Y10*24-24)) -> 0.00 | AC10: =IF(U10=0,0,IF(U10>0,Y10*24)) -> 0.00 | AD10: =IF(AND(S10=1,Z10<=0,AA10<24),AA10,IF(AA10>0,Z10)) -> 0.00 | AE10: =IF(AND(S10="",AB10<=0,AC10<24),AC10,IF(AC10>0,AB10)) -> FALSE | AF10: =IF(AND(F10=0,J10=0),0,IF(AND(A10="Samstag",S10=1),IF(J10>I10,IF(J10>=0.875,0.875,J10+$D$6)-IF(I10<=(13/24),(13/24),I10-$D$6),IF(I10<=0.875,0.875-I10,0)),0)) -> 00:00:00 | AG10: =IF(S10=1,0,IF(AND(J10=0,F10=0),0,IF(A10="Samstag",IF(J10>I10,IF(J10>=0.875,0.875,J10)-IF(I10<=(13/24),(13/24),I10),IF(I10<=0.875,0.875-I10,0)),0))) -> 00:00:00 | AH10: 0.00 | AI10: =IF(AND(A10="Samstag",I10>0,S10=1),0,IF(AND(A10="Samstag",I10>0,S10=""),I10*24,0)) -> 0.00 | AJ10: 0.00 | AK10: =IF(AND(A10="Samstag",J10>0,S10=1),0,IF(AND(A10="Samstag",J10>0,S10=""),J10*24,0)) -> 0.00 | AL10: 0.00 | AM10: =IF(OR(I10="",L10="ja",AJ10>=21,AND(AJ10<=20,AL10<=20)),0,IF(AND(AJ10<=20,AL10>20,AL10<=21),AL10-20-BV10-BW10,IF(AND(AJ10<=20,AL10>21),21-20-BV10-BW10,IF(AND(AJ10>=20,AJ10<21,AL10>=0,AL10<=12),21-AJ10-BV10-BW10,IF(AND(AJ10<21,OR(AND(AL10>=0,AL10<=21),AND(AL10>=21,AL10<=23.99))),21-20-BV10-BW10))))) -> 0.00 | AN10: =IF(OR(I10="",L10="",AI10>=21,AND(AI10<=20,AK10<=20)),0,IF(AND(AI10<=20,AK10>20,AK10<=21),AK10-20-BV10-BW10,IF(AND(AI10<=20,AK10>21),21-20-BV10-BW10,IF(AND(AI10>=20,AI10<21,AK10>=0,AK10<=12),21-AI10-BV10-BW10,IF(AND(AI10<21,OR(AND(AK10>=0,AK10<=21),AND(AK10>=21,AK10<=23.99))),21-20-BV10-BW10))))) -> 0.00 | AO10: 00:00:00 | AP10: 00:00:00 | AQ10: 00:00:00 | AR10: 00:00:00 | AS10: 00:00:00 | AT10: 00:00:00 | AU10: 0.00 | AV10: 0.00 | AW10: 06:00:00 | AX10: 00:00:00 | BO10: 0.00 | BP10: 0.00 | BQ10: =IF(C10=0,IF(AH10=0,0,IF(AH10>=0,AH10-BR10,IF(AND(AH10>=0,BV10>=0,$BV$5="ja"),AH10-BV10,IF(AND(AH10>=0,BW10>=0,$BV$5="nein"),AH10-BW10)))),0) -> 0.00 | BR10: =IF(L10="",AM10,AN10) -> 0.00 | BU10: 0.00 | BV10: =IF($BV$5="ja",IF(OR(K10="",C10=""),0,IF(AND(S10=1,K10>0),(K10+$D$6+$D$6)*24,K10*24)),0) -> 0.00 | BW10: =IF($BV$5="nein",IF(OR(K10="",C10=0),0,IF(AND(S10=1,K10>0),(K10+$D$6+$D$6)*24,K10*24)),0) -> 0.00 | BX10: 0.00
A11: Dienstag | B11: =B10+1 -> 2023-01-03 | C11: ='Einsatz 1'!C12 ->  | D11: ='Einsatz 1'!D12 -> 0 | E11: ='Einsatz 1'!E12 -> 0 | F11: ='Einsatz 1'!F12 -> 0 | G11: ='Einsatz 1'!G12 -> 0 | H11: ='Einsatz 1'!H12 -> 00:00:00 | K11: 00:00:00 | N11: 00:00:00 | O11: 00:00:00 | P11: 21:00:00 | Q11: 06:00:00 | S11: 1 | T11: 00:00:00 | U11: 00:00:00 | V11: 00:00:00 | W11: 00:00:00 | X11: 00:00:00 | Y11: 00:00:00 | Z11: 0.00 | AA11: 0.00 | AB11: 0.00 | AC11: 0.00 | AD11: 0.00 | AE11: FALSE | AF11: 00:00:00 | AG11: 00:00:00 | AH11: 0.00 | AI11: 0.00 | AJ11: 0.00 | AK11: 0.00 | AL11: 0.00 | AM11: 0.00 | AN11: 0.00 | AO11: 00:00:00 | AP11: 00:00:00 | AQ11: 00:00:00 | AR11: 00:00:00 | AS11: 00:00:00 | AT11: 00:00:00 | AU11: 0.00 | AV11: 0.00 | AW11: 06:00:00 | AX11: 00:00:00 | BO11: 0.00 | BP11: 0.00 | BQ11: 0.00 | BR11: 0.00 | BU11: 0.00 | BV11: 0.00 | BW11: 0.00 | BX11: 0.00
A12: Mittwoch | B12: 2023-01-04 | C12: ='Einsatz 1'!C13 ->  | D12: ='Einsatz 1'!D13 -> 0 | E12: ='Einsatz 1'!E13 -> 0 | F12: ='Einsatz 1'!F13 -> 0 | G12: ='Einsatz 1'!G13 -> 0 | H12: ='Einsatz 1'!H13 -> 00:00:00 | K12: 00:00:00 | N12: 00:00:00 | O12: 00:00:00 | P12: 21:00:00 | Q12: 06:00:00 | S12: 1 | T12: 00:00:00 | U12: 00:00:00 | V12: 00:00:00 | W12: 00:00:00 | X12: 00:00:00 | Y12: 00:00:00 | Z12: 0.00 | AA12: 0.00 | AB12: 0.00 | AC12: 0.00 | AD12: 0.00 | AE12: FALSE | AF12: 00:00:00 | AG12: 00:00:00 | AH12: 0.00 | AI12: 0.00 | AJ12: 0.00 | AK12: 0.00 | AL12: 0.00 | AM12: 0.00 | AN12: 0.00 | AO12: 00:00:00 | AP12: 00:00:00 | AQ12: 00:00:00 | AR12: 00:00:00 | AS12: 00:00:00 | AT12: 00:00:00 | AU12: 0.00 | AV12: 0.00 | AW12: 06:00:00 | AX12: 00:00:00 | BO12: 0.00 | BP12: 0.00 | BQ12: 0.00 | BR12: 0.00 | BU12: 0.00 | BV12: 0.00 | BW12: 0.00 | BX12: 0.00
A13: Donnerstag | B13: 2023-01-05 | C13: ='Einsatz 1'!C14 ->  | D13: ='Einsatz 1'!D14 -> 0 | E13: ='Einsatz 1'!E14 -> 0 | F13: ='Einsatz 1'!F14 -> 0 | G13: ='Einsatz 1'!G14 -> 0 | H13: ='Einsatz 1'!H14 -> 00:00:00 | K13: 00:00:00 | N13: 00:00:00 | O13: 00:00:00 | P13: 21:00:00 | Q13: 06:00:00 | S13: 1 | T13: 00:00:00 | U13: 00:00:00 | V13: 00:00:00 | W13: 00:00:00 | X13: 00:00:00 | Y13: 00:00:00 | Z13: 0.00 | AA13: 0.00 | AB13: 0.00 | AC13: 0.00 | AD13: 0.00 | AE13: FALSE | AF13: 00:00:00 | AG13: 00:00:00 | AH13: 0.00 | AI13: 0.00 | AJ13: 0.00 | AK13: 0.00 | AL13: 0.00 | AM13: 0.00 | AN13: 0.00 | AO13: 00:00:00 | AP13: 00:00:00 | AQ13: 00:00:00 | AR13: 00:00:00 | AS13: 00:00:00 | AT13: 00:00:00 | AU13: 0.00 | AV13: 0.00 | AW13: 06:00:00 | AX13: 00:00:00 | BO13: 0.00 | BP13: 0.00 | BQ13: 0.00 | BR13: 0.00 | BU13: 0.00 | BV13: 0.00 | BW13: 0.00 | BX13: 0.00
A14: Freitag | B14: 2023-01-06 | C14: ='Einsatz 1'!C15 ->  | D14: ='Einsatz 1'!D15 -> 0 | E14: ='Einsatz 1'!E15 -> 0 | F14: ='Einsatz 1'!F15 -> 0 | G14: ='Einsatz 1'!G15 -> 0 | H14: ='Einsatz 1'!H15 -> 00:00:00 | K14: 00:00:00 | N14: 00:00:00 | O14: 00:00:00 | P14: 21:00:00 | Q14: 06:00:00 | S14: 1 | T14: 00:00:00 | U14: 00:00:00 | V14: 00:00:00 | W14: 00:00:00 | X14: 00:00:00 | Y14: 00:00:00 | Z14: 0.00 | AA14: 0.00 | AB14: 0.00 | AC14: 0.00 | AD14: 0.00 | AE14: FALSE | AF14: 00:00:00 | AG14: 00:00:00 | AH14: 0.00 | AI14: 0.00 | AJ14: 0.00 | AK14: 0.00 | AL14: 0.00 | AM14: 0.00 | AN14: 0.00 | AO14: 00:00:00 | AP14: 00:00:00 | AQ14: 00:00:00 | AR14: 00:00:00 | AS14: 00:00:00 | AT14: 00:00:00 | AU14: 0.00 | AV14: 0.00 | AW14: 06:00:00 | AX14: 00:00:00 | BO14: 0.00 | BP14: 0.00 | BQ14: 0.00 | BR14: 0.00 | BU14: 0.00 | BV14: 0.00 | BW14: 0.00 | BX14: 0.00
A15: Samstag | B15: 2023-01-07 | C15: ='Einsatz 1'!C16 ->  | D15: ='Einsatz 1'!D16 -> 0 | E15: ='Einsatz 1'!E16 -> 0 | F15: ='Einsatz 1'!F16 -> 0 | G15: ='Einsatz 1'!G16 -> 0 | H15: ='Einsatz 1'!H16 -> 00:00:00 | K15: 00:00:00 | N15: 00:00:00 | O15: 00:00:00 | P15: 21:00:00 | Q15: 06:00:00 | S15: 1 | T15: 00:00:00 | U15: 00:00:00 | V15: 00:00:00 | W15: 00:00:00 | X15: 00:00:00 | Y15: 00:00:00 | Z15: 0.00 | AA15: 0.00 | AB15: 0.00 | AC15: 0.00 | AD15: 0.00 | AE15: FALSE | AF15: 00:00:00 | AG15: 00:00:00 | AH15: 0.00 | AI15: 0.00 | AJ15: 0.00 | AK15: 0.00 | AL15: 0.00 | AM15: 0.00 | AN15: 0.00 | AO15: 00:00:00 | AP15: 00:00:00 | AQ15: 00:00:00 | AR15: 00:00:00 | AS15: 00:00:00 | AT15: 00:00:00 | AU15: 0.00 | AV15: 0.00 | AW15: 06:00:00 | AX15: 00:00:00 | BO15: 0.00 | BP15: 0.00 | BQ15: 0.00 | BR15: 0.00 | BU15: 0.00 | BV15: 0.00 | BW15: 0.00 | BX15: 0.00
A16: Sonntag | B16: 2023-01-08 | C16: ='Einsatz 1'!C17 ->  | D16: ='Einsatz 1'!D17 -> 0 | E16: ='Einsatz 1'!E17 -> 0 | F16: ='Einsatz 1'!F17 -> 0 | G16: ='Einsatz 1'!G17 -> 0 | H16: ='Einsatz 1'!H17 -> 00:00:00 | K16: 00:00:00 | N16: 00:00:00 | O16: 00:00:00 | P16: 21:00:00 | Q16: 06:00:00 | S16: 1 | T16: 00:00:00 | U16: 00:00:00 | V16: 00:00:00 | W16: 00:00:00 | X16: 00:00:00 | Y16: 00:00:00 | Z16: 0.00 | AA16: 0.00 | AB16: 0.00 | AC16: 0.00 | AD16: 0.00 | AE16: FALSE | AF16: 00:00:00 | AG16: 00:00:00 | AH16: 0.00 | AI16: 0.00 | AJ16: 0.00 | AK16: 0.00 | AL16: 0.00 | AM16: 0.00 | AN16: 0.00 | AO16: 00:00:00 | AP16: 00:00:00 | AQ16: 00:00:00 | AR16: 00:00:00 | AS16: 00:00:00 | AT16: 00:00:00 | AU16: 0.00 | AV16: 0.00 | AW16: 06:00:00 | AX16: 00:00:00 | BO16: 0.00 | BP16: 0.00 | BQ16: 0.00 | BR16: 0.00 | BU16: 0.00 | BV16: 0.00 | BW16: 0.00 | BX16: 0.00
A17: Montag | B17: 2023-01-09 | C17: ='Einsatz 1'!C18 ->  | D17: ='Einsatz 1'!D18 -> 0 | E17: ='Einsatz 1'!E18 -> 0 | F17: ='Einsatz 1'!F18 -> 0 | G17: ='Einsatz 1'!G18 -> 0 | H17: ='Einsatz 1'!H18 -> 00:00:00 | K17: 00:00:00 | N17: 00:00:00 | O17: 00:00:00 | P17: 21:00:00 | Q17: 06:00:00 | S17: 1 | T17: 00:00:00 | U17: 00:00:00 | V17: 00:00:00 | W17: 00:00:00 | X17: 00:00:00 | Y17: 00:00:00 | Z17: 0.00 | AA17: 0.00 | AB17: 0.00 | AC17: 0.00 | AD17: 0.00 | AE17: FALSE | AF17: 00:00:00 | AG17: 00:00:00 | AH17: 0.00 | AI17: 0.00 | AJ17: 0.00 | AK17: 0.00 | AL17: 0.00 | AM17: 0.00 | AN17: 0.00 | AO17: 00:00:00 | AP17: 00:00:00 | AQ17: 00:00:00 | AR17: 00:00:00 | AS17: 00:00:00 | AT17: 00:00:00 | AU17: 0.00 | AV17: 0.00 | AW17: 06:00:00 | AX17: 00:00:00 | BO17: 0.00 | BP17: 0.00 | BQ17: 0.00 | BR17: 0.00 | BU17: 0.00 | BV17: 0.00 | BW17: 0.00 | BX17: 0.00
A18: Dienstag | B18: 2023-01-10 | C18: ='Einsatz 1'!C19 ->  | D18: ='Einsatz 1'!D19 -> 0 | E18: ='Einsatz 1'!E19 -> 0 | F18: ='Einsatz 1'!F19 -> 0 | G18: ='Einsatz 1'!G19 -> 0 | H18: ='Einsatz 1'!H19 -> 00:00:00 | K18: 00:00:00 | N18: 00:00:00 | O18: 00:00:00 | P18: 21:00:00 | Q18: 06:00:00 | S18: 1 | T18: 00:00:00 | U18: 00:00:00 | V18: 00:00:00 | W18: 00:00:00 | X18: 00:00:00 | Y18: 00:00:00 | Z18: 0.00 | AA18: 0.00 | AB18: 0.00 | AC18: 0.00 | AD18: 0.00 | AE18: FALSE | AF18: 00:00:00 | AG18: 00:00:00 | AH18: 0.00 | AI18: 0.00 | AJ18: 0.00 | AK18: 0.00 | AL18: 0.00 | AM18: 0.00 | AN18: 0.00 | AO18: 00:00:00 | AP18: 00:00:00 | AQ18: 00:00:00 | AR18: 00:00:00 | AS18: 00:00:00 | AT18: 00:00:00 | AU18: 0.00 | AV18: 0.00 | AW18: 06:00:00 | AX18: 00:00:00 | BO18: 0.00 | BP18: 0.00 | BQ18: 0.00 | BR18: 0.00 | BU18: 0.00 | BV18: 0.00 | BW18: 0.00 | BX18: 0.00
A19: Mittwoch | B19: 2023-01-11 | C19: ='Einsatz 1'!C20 ->  | D19: ='Einsatz 1'!D20 -> 0 | E19: ='Einsatz 1'!E20 -> 0 | F19: ='Einsatz 1'!F20 -> 0 | G19: ='Einsatz 1'!G20 -> 0 | H19: ='Einsatz 1'!H20 -> 00:00:00 | K19: 00:00:00 | N19: 00:00:00 | O19: 00:00:00 | P19: 21:00:00 | Q19: 06:00:00 | S19: 1 | T19: 00:00:00 | U19: 00:00:00 | V19: 00:00:00 | W19: 00:00:00 | X19: 00:00:00 | Y19: 00:00:00 | Z19: 0.00 | AA19: 0.00 | AB19: 0.00 | AC19: 0.00 | AD19: 0.00 | AE19: FALSE | AF19: 00:00:00 | AG19: 00:00:00 | AH19: 0.00 | AI19: 0.00 | AJ19: 0.00 | AK19: 0.00 | AL19: 0.00 | AM19: 0.00 | AN19: 0.00 | AO19: 00:00:00 | AP19: 00:00:00 | AQ19: 00:00:00 | AR19: 00:00:00 | AS19: 00:00:00 | AT19: 00:00:00 | AU19: 0.00 | AV19: 0.00 | AW19: 06:00:00 | AX19: 00:00:00 | BO19: 0.00 | BP19: 0.00 | BQ19: 0.00 | BR19: 0.00 | BU19: 0.00 | BV19: 0.00 | BW19: 0.00 | BX19: 0.00
A20: Donnerstag | B20: 2023-01-12 | C20: ='Einsatz 1'!C21 ->  | D20: ='Einsatz 1'!D21 -> 0 | E20: ='Einsatz 1'!E21 -> 0 | F20: ='Einsatz 1'!F21 -> 0 | G20: ='Einsatz 1'!G21 -> 0 | H20: ='Einsatz 1'!H21 -> 00:00:00 | K20: 00:00:00 | N20: 00:00:00 | O20: 00:00:00 | P20: 21:00:00 | Q20: 06:00:00 | S20: 1 | T20: 00:00:00 | U20: 00:00:00 | V20: 00:00:00 | W20: 00:00:00 | X20: 00:00:00 | Y20: 00:00:00 | Z20: 0.00 | AA20: 0.00 | AB20: 0.00 | AC20: 0.00 | AD20: 0.00 | AE20: FALSE | AF20: 00:00:00 | AG20: 00:00:00 | AH20: 0.00 | AI20: 0.00 | AJ20: 0.00 | AK20: 0.00 | AL20: 0.00 | AM20: 0.00 | AN20: 0.00 | AO20: 00:00:00 | AP20: 00:00:00 | AQ20: 00:00:00 | AR20: 00:00:00 | AS20: 00:00:00 | AT20: 00:00:00 | AU20: 0.00 | AV20: 0.00 | AW20: 06:00:00 | AX20: 00:00:00 | BO20: 0.00 | BP20: 0.00 | BQ20: 0.00 | BR20: 0.00 | BU20: 0.00 | BV20: 0.00 | BW20: 0.00 | BX20: 0.00
A21: Freitag | B21: 2023-01-13 | C21: ='Einsatz 1'!C22 ->  | D21: ='Einsatz 1'!D22 -> 0 | E21: ='Einsatz 1'!E22 -> 0 | F21: ='Einsatz 1'!F22 -> 0 | G21: ='Einsatz 1'!G22 -> 0 | H21: ='Einsatz 1'!H22 -> 00:00:00 | K21: 00:00:00 | N21: 00:00:00 | O21: 00:00:00 | P21: 21:00:00 | Q21: 06:00:00 | S21: 1 | T21: 00:00:00 | U21: 00:00:00 | V21: 00:00:00 | W21: 00:00:00 | X21: 00:00:00 | Y21: 00:00:00 | Z21: 0.00 | AA21: 0.00 | AB21: 0.00 | AC21: 0.00 | AD21: 0.00 | AE21: FALSE | AF21: 00:00:00 | AG21: 00:00:00 | AH21: 0.00 | AI21: 0.00 | AJ21: 0.00 | AK21: 0.00 | AL21: 0.00 | AM21: 0.00 | AN21: 0.00 | AO21: 00:00:00 | AP21: 00:00:00 | AQ21: 00:00:00 | AR21: 00:00:00 | AS21: 00:00:00 | AT21: 00:00:00 | AU21: 0.00 | AV21: 0.00 | AW21: 06:00:00 | AX21: 00:00:00 | BO21: 0.00 | BP21: 0.00 | BQ21: 0.00 | BR21: 0.00 | BU21: 0.00 | BV21: 0.00 | BW21: 0.00 | BX21: 0.00
A22: Samstag | B22: 2023-01-14 | C22: ='Einsatz 1'!C23 ->  | D22: ='Einsatz 1'!D23 -> 0 | E22: ='Einsatz 1'!E23 -> 0 | F22: ='Einsatz 1'!F23 -> 0 | G22: ='Einsatz 1'!G23 -> 0 | H22: ='Einsatz 1'!H23 -> 00:00:00 | K22: 00:00:00 | N22: 00:00:00 | O22: 00:00:00 | P22: 21:00:00 | Q22: 06:00:00 | S22: 1 | T22: 00:00:00 | U22: 00:00:00 | V22: 00:00:00 | W22: 00:00:00 | X22: 00:00:00 | Y22: 00:00:00 | Z22: 0.00 | AA22: 0.00 | AB22: 0.00 | AC22: 0.00 | AD22: 0.00 | AE22: FALSE | AF22: 00:00:00 | AG22: 00:00:00 | AH22: 0.00 | AI22: 0.00 | AJ22: 0.00 | AK22: 0.00 | AL22: 0.00 | AM22: 0.00 | AN22: 0.00 | AO22: 00:00:00 | AP22: 00:00:00 | AQ22: 00:00:00 | AR22: 00:00:00 | AS22: 00:00:00 | AT22: 00:00:00 | AU22: 0.00 | AV22: 0.00 | AW22: 06:00:00 | AX22: 00:00:00 | BO22: 0.00 | BP22: 0.00 | BQ22: 0.00 | BR22: 0.00 | BU22: 0.00 | BV22: 0.00 | BW22: 0.00 | BX22: 0.00
A23: Sonntag | B23: 2023-01-15 | C23: ='Einsatz 1'!C24 ->  | D23: ='Einsatz 1'!D24 -> 0 | E23: ='Einsatz 1'!E24 -> 0 | F23: ='Einsatz 1'!F24 -> 0 | G23: ='Einsatz 1'!G24 -> 0 | H23: ='Einsatz 1'!H24 -> 00:00:00 | K23: 00:00:00 | N23: 00:00:00 | O23: 00:00:00 | P23: 21:00:00 | Q23: 06:00:00 | S23: 1 | T23: 00:00:00 | U23: 00:00:00 | V23: 00:00:00 | W23: 00:00:00 | X23: 00:00:00 | Y23: 00:00:00 | Z23: 0.00 | AA23: 0.00 | AB23: 0.00 | AC23: 0.00 | AD23: 0.00 | AE23: FALSE | AF23: 00:00:00 | AG23: 00:00:00 | AH23: 0.00 | AI23: 0.00 | AJ23: 0.00 | AK23: 0.00 | AL23: 0.00 | AM23: 0.00 | AN23: 0.00 | AO23: 00:00:00 | AP23: 00:00:00 | AQ23: 00:00:00 | AR23: 00:00:00 | AS23: 00:00:00 | AT23: 00:00:00 | AU23: 0.00 | AV23: 0.00 | AW23: 06:00:00 | AX23: 00:00:00 | BO23: 0.00 | BP23: 0.00 | BQ23: 0.00 | BR23: 0.00 | BU23: 0.00 | BV23: 0.00 | BW23: 0.00 | BX23: 0.00
A24: Montag | B24: 2023-01-16 | C24: ='Einsatz 1'!C25 ->  | D24: ='Einsatz 1'!D25 -> 0 | E24: ='Einsatz 1'!E25 -> 0 | F24: ='Einsatz 1'!F25 -> 0 | G24: ='Einsatz 1'!G25 -> 0 | H24: ='Einsatz 1'!H25 -> 00:00:00 | K24: 00:00:00 | N24: 00:00:00 | O24: 00:00:00 | P24: 21:00:00 | Q24: 06:00:00 | S24: 1 | T24: 00:00:00 | U24: 00:00:00 | V24: 00:00:00 | W24: 00:00:00 | X24: 00:00:00 | Y24: 00:00:00 | Z24: 0.00 | AA24: 0.00 | AB24: 0.00 | AC24: 0.00 | AD24: 0.00 | AE24: FALSE | AF24: 00:00:00 | AG24: 00:00:00 | AH24: 0.00 | AI24: 0.00 | AJ24: 0.00 | AK24: 0.00 | AL24: 0.00 | AM24: 0.00 | AN24: 0.00 | AO24: 00:00:00 | AP24: 00:00:00 | AQ24: 00:00:00 | AR24: 00:00:00 | AS24: 00:00:00 | AT24: 00:00:00 | AU24: 0.00 | AV24: 0.00 | AW24: 06:00:00 | AX24: 00:00:00 | BO24: 0.00 | BP24: 0.00 | BQ24: 0.00 | BR24: 0.00 | BU24: 0.00 | BV24: 0.00 | BW24: 0.00 | BX24: 0.00
A25: Dienstag | B25: 2023-01-17 | C25: ='Einsatz 1'!C26 ->  | D25: ='Einsatz 1'!D26 -> 0 | E25: ='Einsatz 1'!E26 -> 0 | F25: ='Einsatz 1'!F26 -> 0 | G25: ='Einsatz 1'!G26 -> 0 | H25: ='Einsatz 1'!H26 -> 00:00:00 | K25: 00:00:00 | N25: 00:00:00 | O25: 00:00:00 | P25: 21:00:00 | Q25: 06:00:00 | S25: 1 | T25: 00:00:00 | U25: 00:00:00 | V25: 00:00:00 | W25: 00:00:00 | X25: 00:00:00 | Y25: 00:00:00 | Z25: 0.00 | AA25: 0.00 | AB25: 0.00 | AC25: 0.00 | AD25: 0.00 | AE25: FALSE | AF25: 00:00:00 | AG25: 00:00:00 | AH25: 0.00 | AI25: 0.00 | AJ25: 0.00 | AK25: 0.00 | AL25: 0.00 | AM25: 0.00 | AN25: 0.00 | AO25: 00:00:00 | AP25: 00:00:00 | AQ25: 00:00:00 | AR25: 00:00:00 | AS25: 00:00:00 | AT25: 00:00:00 | AU25: 0.00 | AV25: 0.00 | AW25: 06:00:00 | AX25: 00:00:00 | BO25: 0.00 | BP25: 0.00 | BQ25: 0.00 | BR25: 0.00 | BU25: 0.00 | BV25: 0.00 | BW25: 0.00 | BX25: 0.00
A26: Mittwoch | B26: 2023-01-18 | C26: ='Einsatz 1'!C27 ->  | D26: ='Einsatz 1'!D27 -> 0 | E26: ='Einsatz 1'!E27 -> 0 | F26: ='Einsatz 1'!F27 -> 0 | G26: ='Einsatz 1'!G27 -> 0 | H26: ='Einsatz 1'!H27 -> 00:00:00 | K26: 00:00:00 | N26: 00:00:00 | O26: 00:00:00 | P26: 21:00:00 | Q26: 06:00:00 | S26: 1 | T26: 00:00:00 | U26: 00:00:00 | V26: 00:00:00 | W26: 00:00:00 | X26: 00:00:00 | Y26: 00:00:00 | Z26: 0.00 | AA26: 0.00 | AB26: 0.00 | AC26: 0.00 | AD26: 0.00 | AE26: FALSE | AF26: 00:00:00 | AG26: 00:00:00 | AH26: 0.00 | AI26: 0.00 | AJ26: 0.00 | AK26: 0.00 | AL26: 0.00 | AM26: 0.00 | AN26: 0.00 | AO26: 00:00:00 | AP26: 00:00:00 | AQ26: 00:00:00 | AR26: 00:00:00 | AS26: 00:00:00 | AT26: 00:00:00 | AU26: 0.00 | AV26: 0.00 | AW26: 06:00:00 | AX26: 00:00:00 | BO26: 0.00 | BP26: 0.00 | BQ26: 0.00 | BR26: 0.00 | BU26: 0.00 | BV26: 0.00 | BW26: 0.00 | BX26: 0.00
A27: Donnerstag | B27: 2023-01-19 | C27: ='Einsatz 1'!C28 ->  | D27: ='Einsatz 1'!D28 -> 0 | E27: ='Einsatz 1'!E28 -> 0 | F27: ='Einsatz 1'!F28 -> 0 | G27: ='Einsatz 1'!G28 -> 0 | H27: ='Einsatz 1'!H28 -> 00:00:00 | K27: 00:00:00 | N27: 00:00:00 | O27: 00:00:00 | P27: 21:00:00 | Q27: 06:00:00 | S27: 1 | T27: 00:00:00 | U27: 00:00:00 | V27: 00:00:00 | W27: 00:00:00 | X27: 00:00:00 | Y27: 00:00:00 | Z27: 0.00 | AA27: 0.00 | AB27: 0.00 | AC27: 0.00 | AD27: 0.00 | AE27: FALSE | AF27: 00:00:00 | AG27: 00:00:00 | AH27: 0.00 | AI27: 0.00 | AJ27: 0.00 | AK27: 0.00 | AL27: 0.00 | AM27: 0.00 | AN27: 0.00 | AO27: 00:00:00 | AP27: 00:00:00 | AQ27: 00:00:00 | AR27: 00:00:00 | AS27: 00:00:00 | AT27: 00:00:00 | AU27: 0.00 | AV27: 0.00 | AW27: 06:00:00 | AX27: 00:00:00 | BO27: 0.00 | BP27: 0.00 | BQ27: 0.00 | BR27: 0.00 | BU27: 0.00 | BV27: 0.00 | BW27: 0.00 | BX27: 0.00
A28: Freitag | B28: 2023-01-20 | C28: ='Einsatz 1'!C29 ->  | D28: ='Einsatz 1'!D29 -> 0 | E28: ='Einsatz 1'!E29 -> 0 | F28: ='Einsatz 1'!F29 -> 0 | G28: ='Einsatz 1'!G29 -> 0 | H28: ='Einsatz 1'!H29 -> 00:00:00 | K28: 00:00:00 | N28: 00:00:00 | O28: 00:00:00 | P28: 21:00:00 | Q28: 06:00:00 | S28: 1 | T28: 00:00:00 | U28: 00:00:00 | V28: 00:00:00 | W28: 00:00:00 | X28: 00:00:00 | Y28: 00:00:00 | Z28: 0.00 | AA28: 0.00 | AB28: 0.00 | AC28: 0.00 | AD28: 0.00 | AE28: FALSE | AF28: 00:00:00 | AG28: 00:00:00 | AH28: 0.00 | AI28: 0.00 | AJ28: 0.00 | AK28: 0.00 | AL28: 0.00 | AM28: 0.00 | AN28: 0.00 | AO28: 00:00:00 | AP28: 00:00:00 | AQ28: 00:00:00 | AR28: 00:00:00 | AS28: 00:00:00 | AT28: 00:00:00 | AU28: 0.00 | AV28: 0.00 | AW28: 06:00:00 | AX28: 00:00:00 | BO28: 0.00 | BP28: 0.00 | BQ28: 0.00 | BR28: 0.00 | BU28: 0.00 | BV28: 0.00 | BW28: 0.00 | BX28: 0.00
A29: Samstag | B29: 2023-01-21 | C29: ='Einsatz 1'!C30 ->  | D29: ='Einsatz 1'!D30 -> 0 | E29: ='Einsatz 1'!E30 -> 0 | F29: ='Einsatz 1'!F30 -> 0 | G29: ='Einsatz 1'!G30 -> 0 | H29: ='Einsatz 1'!H30 -> 00:00:00 | K29: 00:00:00 | N29: 00:00:00 | O29: 00:00:00 | P29: 21:00:00 | Q29: 06:00:00 | S29: 1 | T29: 00:00:00 | U29: 00:00:00 | V29: 00:00:00 | W29: 00:00:00 | X29: 00:00:00 | Y29: 00:00:00 | Z29: 0.00 | AA29: 0.00 | AB29: 0.00 | AC29: 0.00 | AD29: 0.00 | AE29: FALSE | AF29: 00:00:00 | AG29: 00:00:00 | AH29: 0.00 | AI29: 0.00 | AJ29: 0.00 | AK29: 0.00 | AL29: 0.00 | AM29: 0.00 | AN29: 0.00 | AO29: 00:00:00 | AP29: 00:00:00 | AQ29: 00:00:00 | AR29: 00:00:00 | AS29: 00:00:00 | AT29: 00:00:00 | AU29: 0.00 | AV29: 0.00 | AW29: 06:00:00 | AX29: 00:00:00 | BO29: 0.00 | BP29: 0.00 | BQ29: 0.00 | BR29: 0.00 | BU29: 0.00 | BV29: 0.00 | BW29: 0.00 | BX29: 0.00
A30: Sonntag | B30: 2023-01-22 | C30: ='Einsatz 1'!C31 ->  | D30: ='Einsatz 1'!D31 -> 0 | E30: ='Einsatz 1'!E31 -> 0 | F30: ='Einsatz 1'!F31 -> 0 | G30: ='Einsatz 1'!G31 -> 0 | H30: ='Einsatz 1'!H31 -> 00:00:00 | K30: 00:00:00 | N30: 00:00:00 | O30: 00:00:00 | P30: 21:00:00 | Q30: 06:00:00 | S30: 1 | T30: 00:00:00 | U30: 00:00:00 | V30: 00:00:00 | W30: 00:00:00 | X30: 00:00:00 | Y30: 00:00:00 | Z30: 0.00 | AA30: 0.00 | AB30: 0.00 | AC30: 0.00 | AD30: 0.00 | AE30: FALSE | AF30: 00:00:00 | AG30: 00:00:00 | AH30: 0.00 | AI30: 0.00 | AJ30: 0.00 | AK30: 0.00 | AL30: 0.00 | AM30: 0.00 | AN30: 0.00 | AO30: 00:00:00 | AP30: 00:00:00 | AQ30: 00:00:00 | AR30: 00:00:00 | AS30: 00:00:00 | AT30: 00:00:00 | AU30: 0.00 | AV30: 0.00 | AW30: 06:00:00 | AX30: 00:00:00 | BO30: 0.00 | BP30: 0.00 | BQ30: 0.00 | BR30: 0.00 | BU30: 0.00 | BV30: 0.00 | BW30: 0.00 | BX30: 0.00
A31: Montag | B31: 2023-01-23 | C31: ='Einsatz 1'!C32 ->  | D31: ='Einsatz 1'!D32 -> 0 | E31: ='Einsatz 1'!E32 -> 0 | F31: ='Einsatz 1'!F32 -> 0 | G31: ='Einsatz 1'!G32 -> 0 | H31: ='Einsatz 1'!H32 -> 00:00:00 | K31: 00:00:00 | N31: 00:00:00 | O31: 00:00:00 | P31: 21:00:00 | Q31: 06:00:00 | S31: 1 | T31: 00:00:00 | U31: 00:00:00 | V31: 00:00:00 | W31: 00:00:00 | X31: 00:00:00 | Y31: 00:00:00 | Z31: 0.00 | AA31: 0.00 | AB31: 0.00 | AC31: 0.00 | AD31: 0.00 | AE31: FALSE | AF31: 00:00:00 | AG31: 00:00:00 | AH31: 0.00 | AI31: 0.00 | AJ31: 0.00 | AK31: 0.00 | AL31: 0.00 | AM31: 0.00 | AN31: 0.00 | AO31: 00:00:00 | AP31: 00:00:00 | AQ31: 00:00:00 | AR31: 00:00:00 | AS31: 00:00:00 | AT31: 00:00:00 | AU31: 0.00 | AV31: 0.00 | AW31: 06:00:00 | AX31: 00:00:00 | BO31: 0.00 | BP31: 0.00 | BQ31: 0.00 | BR31: 0.00 | BU31: 0.00 | BV31: 0.00 | BW31: 0.00 | BX31: 0.00
A32: Dienstag | B32: 2023-01-24 | C32: ='Einsatz 1'!C33 ->  | D32: ='Einsatz 1'!D33 -> 0 | E32: ='Einsatz 1'!E33 -> 0 | F32: ='Einsatz 1'!F33 -> 0 | G32: ='Einsatz 1'!G33 -> 0 | H32: ='Einsatz 1'!H33 -> 00:00:00 | K32: 00:00:00 | N32: 00:00:00 | O32: 00:00:00 | P32: 21:00:00 | Q32: 06:00:00 | S32: 1 | T32: 00:00:00 | U32: 00:00:00 | V32: 00:00:00 | W32: 00:00:00 | X32: 00:00:00 | Y32: 00:00:00 | Z32: 0.00 | AA32: 0.00 | AB32: 0.00 | AC32: 0.00 | AD32: 0.00 | AE32: FALSE | AF32: 00:00:00 | AG32: 00:00:00 | AH32: 0.00 | AI32: 0.00 | AJ32: 0.00 | AK32: 0.00 | AL32: 0.00 | AM32: 0.00 | AN32: 0.00 | AO32: 00:00:00 | AP32: 00:00:00 | AQ32: 00:00:00 | AR32: 00:00:00 | AS32: 00:00:00 | AT32: 00:00:00 | AU32: 0.00 | AV32: 0.00 | AW32: 06:00:00 | AX32: 00:00:00 | AY32: =IF(I32="",0,IF(OR(I32>=AW32,I32<=AX32),1,IF(OR(J32>=AW32,J32<=AX32),1,IF(AND(I32<=TN32,J32>=AX32,J32<I32),1,0)))) -> 0 | AZ32: =(J32+$D$6)*24 -> 0.00 | BA32: 24.00 | BB32: 14.00 | BC32: =IF(I32="",0,IF(AY32,IF(AND((I32-$D$6)<=AW32,(I32-$D$6)>=AX32),AW32,IF(OR((I32-$D$6)>=AW32,(I32-$D$6)<=AX32),I32-$D$6,AW32)),0)) -> 00:00:00 | BD32: =IF(OR(J32="",AY32=0),0,IF(AY32=1,IF(AZ32>BA32,AX32,J32+$D$6))) -> 00:00:00 | BE32: =IF(I32="",0,IF(AY32,IF(AND(I32<=AW32,I32>=AX32),AW32,IF(OR(I32>=AW32,I32<=AX32),I32,AW32)),0)) -> 00:00:00 | BF32: =IF(OR(AY32=0,J32=0),0,IF(J32<=AX32,J32,IF(J32>=AW32,J32,AX32))) -> 00:00:00 | BG32: =IF(BE32=0,0,IF(BE32<=0.25,BD32-BC32,(BD32+1)-BC32)) -> 00:00:00 | BH32: =IF(BE32=0,0,IF(BE32<=0.25,BF32-BE32,(BF32+1)-BE32)) -> 00:00:00 | BI32: =BC32*24 -> 0.00 | BJ32: =BD32*24 -> 0.00 | BK32: =BE32*24 -> 0.00 | BL32: =BF32*24 -> 0.00 | BM32: =IF(AND(I32>0,$BU$3=12,BI32<=BB32,S32=1),BJ32-BI32,0) -> 0.00 | BN32: =IF(AND(I32>0,BJ32>BB32,S32=1),IF(BI32-BB32<0,BG32*24-24-BM32,BI32-BB32),IF(BL32>BB32,BB32-BK32,0)) -> 0.00 | BO32: 0.00 | BP32: 0.00 | BQ32: 0.00 | BR32: 0.00 | BS32: =IF(OR($BU$3<12,I32=""),0,BM32) -> 0.00 | BT32: =IF(AND($BU$3=12,BJ32>14,BJ32<=BA32),BJ32-14,IF(AND($BU$3=12,BL32>14,BL32<=BA32),BL32-14,0)) -> 0.00 | BU32: 0.00 | BV32: 0.00 | BW32: 0.00 | BX32: 0.00
A33: Mittwoch | B33: 2023-01-25 | C33: ='Einsatz 1'!C34 ->  | D33: ='Einsatz 1'!D34 -> 0 | E33: ='Einsatz 1'!E34 -> 0 | F33: ='Einsatz 1'!F34 -> 0 | G33: ='Einsatz 1'!G34 -> 0 | H33: ='Einsatz 1'!H34 -> 00:00:00 | K33: 00:00:00 | N33: 00:00:00 | O33: 00:00:00 | P33: 21:00:00 | Q33: 06:00:00 | S33: 1 | T33: 00:00:00 | U33: 00:00:00 | V33: 00:00:00 | W33: 00:00:00 | X33: 00:00:00 | Y33: 00:00:00 | Z33: 0.00 | AA33: 0.00 | AB33: 0.00 | AC33: 0.00 | AD33: 0.00 | AE33: FALSE | AF33: 00:00:00 | AG33: 00:00:00 | AH33: 0.00 | AI33: 0.00 | AJ33: 0.00 | AK33: 0.00 | AL33: 0.00 | AM33: 0.00 | AN33: 0.00 | AO33: 00:00:00 | AP33: 00:00:00 | AQ33: 00:00:00 | AR33: 00:00:00 | AS33: 00:00:00 | AT33: 00:00:00 | AU33: 0.00 | AV33: 0.00 | AW33: 06:00:00 | AX33: 00:00:00 | AY33: =IF(I33="",0,IF(OR(I33>=AW33,I33<=AX33),1,IF(OR(J33>=AW33,J33<=AX33),1,IF(AND(I33<=TN33,J33>=AX33,J33<I33),1,0)))) -> 0 | AZ33: =(J33+$D$6)*24 -> 0.00 | BA33: 24.00 | BB33: 0.00 | BC33: =I33*24 -> 0.00 | BD33: =IF(OR(J33="",AY33=0),0,IF(AY33=1,IF(AZ33>BA33,AX33,J33+$D$6))) -> 0 | BE33: =IF(I33="",0,IF(AY33,IF(AND(I33<=AW33,I33>=AX33),AX33,IF(OR(I33>=AW33,I33<=AX33),I33,AW33)),0)) -> 0 | BF33: =IF(OR(AY33=0,J33=0),0,IF(J33<=AX33,J33,IF(J33>=AW33,J33,AX33))) -> 00:00:00 | BH33: =IF(BE33=0,0,IF(BE33<=0.25,BF33-BE33,(BF33+1)-BE33)) -> 00:00:00 | BI33: =IF(I33="",0,IF(AY33,IF(AND((BC33-$G$6)<=BB33,),BB33,IF(OR((BC33-$G$6)>=BB33),BC33-$G$6,BB33)),0)) -> 0.00 | BJ33: =BD33*24 -> 0.00 | BK33: =I33*24 -> 0.00 | BL33: =BF33*24 -> 0.00 | BM33: =BJ33-BI33 -> 0.00 | BN33: =BL33-BK33 -> 0.00 | BO33: 0.00 | BP33: 0.00 | BQ33: 0.00 | BR33: 0.00 | BT33: =IF(AND(BU3=12,K33>0),IF(S33=1,BM33,BN33),0) -> 0.00 | BU33: 0.00 | BV33: 0.00 | BW33: 0.00 | BX33: 0.00
A34: Donnerstag | B34: 2023-01-26 | C34: ='Einsatz 1'!C35 ->  | D34: ='Einsatz 1'!D35 -> 0 | E34: ='Einsatz 1'!E35 -> 0 | F34: ='Einsatz 1'!F35 -> 0 | G34: ='Einsatz 1'!G35 -> 0 | H34: ='Einsatz 1'!H35 -> 00:00:00 | K34: 00:00:00 | N34: 00:00:00 | O34: 00:00:00 | P34: 21:00:00 | Q34: 06:00:00 | S34: 1 | T34: 00:00:00 | U34: 00:00:00 | V34: 00:00:00 | W34: 00:00:00 | X34: 00:00:00 | Y34: 00:00:00 | Z34: 0.00 | AA34: 0.00 | AB34: 0.00 | AC34: 0.00 | AD34: 0.00 | AE34: FALSE | AF34: 00:00:00 | AG34: 00:00:00 | AH34: 0.00 | AI34: 0.00 | AJ34: 0.00 | AK34: 0.00 | AL34: 0.00 | AM34: 0.00 | AN34: 0.00 | AO34: 00:00:00 | AP34: 00:00:00 | AQ34: 00:00:00 | AR34: 00:00:00 | AS34: 00:00:00 | AT34: 00:00:00 | AU34: 0.00 | AV34: 0.00 | AW34: 06:00:00 | AX34: 00:00:00 | AY34: =IF(I34="",0,IF(OR(I34>=AW34,I34<=AX34),1,IF(OR(J34>=AW34,J34<=AX34),1,IF(AND(I34<=TN34,J34>=AX34,J34<I34),1,0)))) -> 0 | AZ34: =(J34+$D$6)*24 -> 0.00 | BA34: 24.00 | BB34: 0.00 | BC34: =I34*24 -> 0.00 | BD34: =IF(OR(J34="",AY34=0),0,IF(AY34=1,IF(AZ34>BA34,AX34,J34+$D$6))) -> 0 | BE34: =IF(I34="",0,IF(AY34,IF(AND(I34<=AW34,I34>=AX34),AX34,IF(OR(I34>=AW34,I34<=AX34),I34,AW34)),0)) -> 0 | BF34: =IF(OR(AY34=0,J34=0),0,IF(J34<=AX34,J34,IF(J34>=AW34,J34,AX34))) -> 00:00:00 | BH34: =IF(BE34=0,0,IF(BE34<=0.25,BF34-BE34,(BF34+1)-BE34)) -> 00:00:00 | BI34: =IF(I34="",0,IF(AY34,IF(AND((BC34-$G$6)<=BB34,),BB34,IF(OR((BC34-$G$6)>=BB34),BC34-$G$6,BB34)),0)) -> 0.00 | BJ34: =BD34*24 -> 0.00 | BK34: =I34*24 -> 0.00 | BL34: =BF34*24 -> 0.00 | BM34: =BJ34-BI34 -> 0.00 | BN34: =BL34-BK34 -> 0.00 | BO34: 0.00 | BP34: 0.00 | BQ34: 0.00 | BR34: 0.00 | BT34: =IF(AND(BU3=12,K34>0),IF(S34=1,BM34,BN34),0) -> 0.00 | BU34: 0.00 | BV34: 0.00 | BW34: 0.00 | BX34: 0.00
A35: Freitag | B35: 2023-01-27 | C35: ='Einsatz 1'!C36 ->  | D35: ='Einsatz 1'!D36 -> 0 | E35: ='Einsatz 1'!E36 -> 0 | F35: ='Einsatz 1'!F36 -> 0 | G35: ='Einsatz 1'!G36 -> 0 | H35: ='Einsatz 1'!H36 -> 00:00:00 | K35: 00:00:00 | N35: 00:00:00 | O35: 00:00:00 | P35: 21:00:00 | Q35: 06:00:00 | S35: 1 | T35: 00:00:00 | U35: 00:00:00 | V35: 00:00:00 | W35: 00:00:00 | X35: 00:00:00 | Y35: 00:00:00 | Z35: 0.00 | AA35: 0.00 | AB35: 0.00 | AC35: 0.00 | AD35: 0.00 | AE35: FALSE | AF35: 00:00:00 | AG35: 00:00:00 | AH35: 0.00 | AI35: 0.00 | AJ35: 0.00 | AK35: 0.00 | AL35: 0.00 | AM35: 0.00 | AN35: 0.00 | AO35: 00:00:00 | AP35: 00:00:00 | AQ35: 00:00:00 | AR35: 00:00:00 | AS35: 00:00:00 | AT35: 00:00:00 | AU35: 0.00 | AV35: 0.00 | AW35: 06:00:00 | AX35: 00:00:00 | BO35: 0.00 | BP35: 0.00 | BQ35: 0.00 | BR35: 0.00 | BU35: 0.00 | BV35: 0.00 | BW35: 0.00 | BX35: 0.00
A36: Samstag | B36: 2023-01-28 | C36: ='Einsatz 1'!C37 ->  | D36: ='Einsatz 1'!D37 -> 0 | E36: ='Einsatz 1'!E37 -> 0 | F36: ='Einsatz 1'!F37 -> 0 | G36: ='Einsatz 1'!G37 -> 0 | H36: ='Einsatz 1'!H37 -> 00:00:00 | K36: 00:00:00 | N36: 00:00:00 | O36: 00:00:00 | P36: 21:00:00 | Q36: 06:00:00 | S36: 1 | T36: 00:00:00 | U36: 00:00:00 | V36: 00:00:00 | W36: 00:00:00 | X36: 00:00:00 | Y36: 00:00:00 | Z36: 0.00 | AA36: 0.00 | AB36: 0.00 | AC36: 0.00 | AD36: 0.00 | AE36: FALSE | AF36: 00:00:00 | AG36: 00:00:00 | AH36: 0.00 | AI36: 0.00 | AJ36: 0.00 | AK36: 0.00 | AL36: 0.00 | AM36: 0.00 | AN36: 0.00 | AO36: 00:00:00 | AP36: 00:00:00 | AQ36: 00:00:00 | AR36: 00:00:00 | AS36: 00:00:00 | AT36: 00:00:00 | AU36: 0.00 | AV36: 0.00 | AW36: 06:00:00 | AX36: 00:00:00 | BO36: 0.00 | BP36: 0.00 | BQ36: 0.00 | BR36: 0.00 | BU36: 0.00 | BV36: 0.00 | BW36: 0.00 | BX36: 0.00
A37: Sonntag | B37: =IF(MONTH(B36+1)=BU3,B36+1,"") -> 2023-01-29 | C37: ='Einsatz 1'!C38 ->  | D37: ='Einsatz 1'!D38 -> 0 | E37: ='Einsatz 1'!E38 -> 0 | F37: ='Einsatz 1'!F38 -> 0 | G37: ='Einsatz 1'!G38 -> 0 | H37: ='Einsatz 1'!H38 -> 00:00:00 | K37: 00:00:00 | N37: 00:00:00 | O37: 00:00:00 | P37: 21:00:00 | Q37: 06:00:00 | S37: 1 | T37: 00:00:00 | U37: 00:00:00 | V37: 00:00:00 | W37: 00:00:00 | X37: 00:00:00 | Y37: 00:00:00 | Z37: 0.00 | AA37: 0.00 | AB37: 0.00 | AC37: 0.00 | AD37: 0.00 | AE37: FALSE | AF37: 00:00:00 | AG37: 00:00:00 | AH37: 0.00 | AI37: 0.00 | AJ37: 0.00 | AK37: 0.00 | AL37: 0.00 | AM37: 0.00 | AN37: 0.00 | AO37: 00:00:00 | AP37: 00:00:00 | AQ37: 00:00:00 | AR37: 00:00:00 | AS37: 00:00:00 | AT37: 00:00:00 | AU37: 0.00 | AV37: 0.00 | AW37: 06:00:00 | AX37: 00:00:00 | BO37: 0.00 | BP37: 0.00 | BQ37: 0.00 | BR37: 0.00 | BU37: 0.00 | BV37: 0.00 | BW37: 0.00 | BX37: 0.00
A38: Montag | B38: =IF(MONTH(B36+2)=BU3,B36+2,"") -> 2023-01-30 | C38: ='Einsatz 1'!C39 ->  | D38: ='Einsatz 1'!D39 -> 0 | E38: ='Einsatz 1'!E39 -> 0 | F38: ='Einsatz 1'!F39 -> 0 | G38: ='Einsatz 1'!G39 -> 0 | H38: ='Einsatz 1'!H39 -> 00:00:00 | K38: 00:00:00 | N38: 00:00:00 | O38: 00:00:00 | P38: 21:00:00 | Q38: 06:00:00 | S38: 1 | T38: 00:00:00 | U38: 00:00:00 | V38: 00:00:00 | W38: 00:00:00 | X38: 00:00:00 | Y38: 00:00:00 | Z38: 0.00 | AA38: 0.00 | AB38: 0.00 | AC38: 0.00 | AD38: 0.00 | AE38: FALSE | AF38: 00:00:00 | AG38: 00:00:00 | AH38: 0.00 | AI38: 0.00 | AJ38: 0.00 | AK38: 0.00 | AL38: 0.00 | AM38: 0.00 | AN38: 0.00 | AO38: 00:00:00 | AP38: 00:00:00 | AQ38: 00:00:00 | AR38: 00:00:00 | AS38: 00:00:00 | AT38: 00:00:00 | AU38: 0.00 | AV38: 0.00 | AW38: 06:00:00 | AX38: 00:00:00 | BO38: 0.00 | BP38: 0.00 | BQ38: 0.00 | BR38: 0.00 | BU38: 0.00 | BV38: 0.00 | BW38: 0.00 | BX38: 0.00
A39: Dienstag | B39: =IF(MONTH(B36+3)=BU3,B36+3,"") -> 2023-01-31 | C39: ='Einsatz 1'!C40 ->  | D39: ='Einsatz 1'!D40 -> 0 | E39: ='Einsatz 1'!E40 -> 0 | F39: ='Einsatz 1'!F40 -> 0 | G39: ='Einsatz 1'!G40 -> 0 | H39: ='Einsatz 1'!H40 -> 00:00:00 | K39: 00:00:00 | N39: 00:00:00 | O39: 00:00:00 | P39: 21:00:00 | Q39: 06:00:00 | S39: 1 | T39: 00:00:00 | U39: 00:00:00 | V39: 00:00:00 | W39: 00:00:00 | X39: 00:00:00 | Y39: 00:00:00 | Z39: 0.00 | AA39: 0.00 | AB39: 0.00 | AC39: 0.00 | AD39: 0.00 | AE39: FALSE | AF39: 00:00:00 | AG39: 00:00:00 | AH39: 0.00 | AI39: 0.00 | AJ39: 0.00 | AK39: 0.00 | AL39: 0.00 | AM39: 0.00 | AN39: 0.00 | AO39: 00:00:00 | AP39: 00:00:00 | AQ39: 00:00:00 | AR39: 00:00:00 | AS39: 00:00:00 | AT39: 00:00:00 | AU39: 0.00 | AV39: 0.00 | AW39: 06:00:00 | AX39: 00:00:00 | AY39: =IF(I39="",0,IF(OR(I39>=AW39,I39<=AX39),1,IF(OR(J39>=AW39,J39<=AX39),1,IF(AND(I39<=TN39,J39>=AX39,J39<I39),1,0)))) -> 0 | AZ39: =(J39+$D$6)*24 -> 0.00 | BA39: 24.00 | BB39: 14.00 | BC39: =IF(I39="",0,IF(AY39,IF(AND((I39-$D$6)<=AW39,(I39-$D$6)>=AX39),AW39,IF(OR((I39-$D$6)>=AW39,(I39-$D$6)<=AX39),I39-$D$6,AW39)),0)) -> 00:00:00 | BD39: =IF(OR(J39="",AY39=0),0,IF(AY39=1,IF(AZ39>BA39,AX39,J39+$D$6))) -> 00:00:00 | BE39: =IF(I39="",0,IF(AY39,IF(AND(I39<=AW39,I39>=AX39),AW39,IF(OR(I39>=AW39,I39<=AX39),I39,AW39)),0)) -> 00:00:00 | BF39: =IF(OR(AY39=0,J39=0),0,IF(J39<=AX39,J39,IF(J39>=AW39,J39,AX39))) -> 00:00:00 | BG39: =IF(BE39=0,0,IF(BE39<=0.25,BD39-BC39,(BD39+1)-BC39)) -> 00:00:00 | BH39: =IF(BE39=0,0,IF(BE39<=0.25,BF39-BE39,(BF39+1)-BE39)) -> 00:00:00 | BI39: =BC39*24 -> 0.00 | BJ39: =BD39*24 -> 0.00 | BK39: =BE39*24 -> 0.00 | BL39: =BF39*24 -> 0.00 | BM39: =IF(AND(I39>0,$BU$3=12,BI39<=BB39,S39=1),BJ39-BI39,0) -> 0.00 | BN39: =IF(AND(I39>0,BJ39>BB39,S39=1),IF(BI39-BB39<0,BG39*24-24-BM39,BI39-BB39),IF(BL39>BB39,BB39-BK39,0)) -> 0.00 | BO39: 0.00 | BP39: 0.00 | BQ39: 0.00 | BR39: 0.00 | BS39: =IF(OR($BU$3<12,I39=""),0,BM39) -> 0.00 | BT39: =IF(AND($BU$3=12,BJ39<BB39,BJ39<=BA39),SUM(BJ39-IF(BI39-BB39>=0,BB39,BI39)),IF(AND($BU$3=12,BL39>14,BL39<=BA39),SUM(IF(BL39-14>0,BL39,14),0))) -> FALSE | BU39: 0.00 | BV39: 0.00 | BW39: 0.00 | BX39: 0.00
K40: =SUM(K9:K39) -> 00:00:00 | BO40: =SUM(BO9:BO39) -> 0.00 | BP40: =SUM(BP9:BP39) -> 0.00 | BQ40: 0.00 | BR40: 0.00 | BS40: 0.00 | BT40: 0.00 | BU40: 0.00 | BV40: 0.00 | BW40: 0.00 | BX40: 0.00
D41: ='Einsatz 1'!D42 ->  | E41: ='Einsatz 1'!E42 ->  | F41: ='Einsatz 1'!F42 ->  | G41: ='Einsatz 1'!G42 ->  | H41: ='Einsatz 1'!H42 ->  | BO41: =IF(BO40=0,"",IF(BO40>0,SUM(BO9:BO39),"")) ->  | BP41: =IF(BP40=0,"",IF(BP40>0,SUM(BP9:BP39),"")) ->  | BQ41: =IF(BQ40=0,"",IF(BQ40>0,SUM(BQ9:BQ39),"")) ->  | BR41: =IF(BR40=0,"",IF(BR40>0,SUM(BR9:BR39),"")) ->  | BS41: =IF(BS40=0,"",IF(BS40>0,SUM(BS9:BS39),"")) -> 
C42: * Es gelten nur die gesetzlichen Feiertage. Weihnachten und 1. Mai sind unter Lohnart 5071 gesondert berücksichtigt.
C43: ** Auszuwählen ist an jedem Urlaubs- und/oder Krankheitstag jeweils "ja".
C44: *** Auszuwählen ist "ja" nur an dem Tag, an dem die Rufbereitschaft begann.
C45: **** Bei Einsätzen, für die eine Vor-Ort-Anwensenheit nicht erforderlich war, bitte auf "ja" klicken. In diesem Fall wird bei der Berechnung keine Wegezeit berücksichtigt. | BV45: ='Einsatz 1'!BV46 -> Stand des Formulars: 01.02.2023

Sheet DRUCKEN - Alle Einsätze
A1: Nachweis über Überstunden, Überstundenvergütung und Zeitzuschläge | Z1: Datum: | AA1: =TODAY() -> 2023-02-01
C3: Gesamtübersicht über Einsätze | I3: Rufbereitschaft und Zeitzuschläge | T3: Monat: | W3: ='Einsatz 1'!BU3 -> 1 | X3: Jahr: | Y3: ='Einsatz 1'!BW3 -> 2023
C5: Name, Vorname: | D5: ='Einsatz 1'!D5 -> 0 | K5: Orga-Einheit: | L5: ='Einsatz 1'!L5 -> Dezernat 5.3 | W5: Freizeitausgleich wird gewährt: | X5: ='Einsatz 1'!BV5 -> ja
C6: Übliche Wegezeit (h:mm): | D6: ='Einsatz 1'!D6 -> 00:00:00 | F6: Industriestunden: | G6: =D6*24 -> 0.00 | I6: 1. Einsatz | P6: 2. Einsatz | W6: 3. Einsatz
A7: Tag | B7: Datum | C7: gesetzl. Feiertag in NRW* | D7: Urlaub** | E7: Krankheit (AU)** | F7: Rufbereitschaft Mo-Fr 15:15 bis 07:00 des Folgetags*** | G7: Rufbereitschaft Sa, So, Feiertag (07:00 bis 07:00 des Folgetags)*** | H7: Rufbereitschaft weniger als 12 Std. (hh:mm) | I7: Uhrzeit Einsatz von (hh:mm) | J7: Uhrzeit Einsatz bis (hh:mm) | K7: Arbeitszeit des Einsatzes (ohne Wegezeit) | L7: Der Einsatz erfolgte ohne Präsenz (z.B. telefonisch)**** | M7: Grund des Einsatzes | N7: Einsatz mit WZ | O7: Einsatz ohne WZ | P7: Uhrzeit Einsatz von (hh:mm) | Q7: Uhrzeit Einsatz bis (hh:mm) | R7: Arbeitszeit des Einsatzes (ohne Wegezeit) | S7: Der Einsatz erfolgte ohne Präsenz (z.B. telefonisch)**** | T7: Grund des Einsatzes | U7: Einsatz mit WZ | V7: Einsatz ohne WZ | W7: Uhrzeit Einsatz von (hh:mm) | X7: Uhrzeit Einsatz bis (hh:mm) | Y7: Arbeitszeit des Einsatzes (ohne Wegezeit) | Z7: Der Einsatz erfolgte ohne Präsenz (z.B. telefonisch)**** | AA7: Grund des Einsatzes | AB7: Einsatz mit WZ | AC7: Einsatz ohne WZ | AD7: Summe Einsätze mit WZ | AE7: Summe Einsätze ohne WZ
D8: 5167 | E8: 5168 | F8: 5200 | G8: 5201 | H8: 5204
A9: =TEXT(B9,"TTTT") -> Sonntag | B9: =DATE(Y3,W3,1) -> 2023-01-01 | C9: ='Einsatz 1'!C10 -> Neujahr | D9: ='Einsatz 1'!D10 -> 0 | E9: ='Einsatz 1'!E10 -> 0 | F9: ='Einsatz 1'!F10 -> 0 | G9: ='Einsatz 1'!G10 -> 0 | H9: ='Einsatz 1'!H10 -> 00:00:00 | I9: =IF('Einsatz 1'!I10="","",'Einsatz 1'!I10) ->  | J9: =IF('Einsatz 1'!J10="","",'Einsatz 1'!J10) ->  | K9: =IF(OR(I9="",J9=""),0,MOD(J9-I9,1)) -> 00:00:00 | L9: =IF('Einsatz 1'!L10="","",'Einsatz 1'!L10) ->  | M9: =IF('Einsatz 1'!M10="","",'Einsatz 1'!M10) ->  | N9: =IF(L9="ja",0,IF(I9="",0,ROUNDUP((K9+$D$6+$D$6)*24,0))) -> 0.00 | O9: =IF(L9="",0,K9*24) -> 0.00 | P9: =IF('Einsatz 2'!I9="","",'Einsatz 2'!I9) ->  | Q9: =IF('Einsatz 2'!J9="","",'Einsatz 2'!J9) ->  | R9: =IF(OR(P9="",Q9=""),0,MOD(Q9-P9,1)) -> 00:00:00 | S9: =IF('Einsatz 2'!L9="","",'Einsatz 2'!L9) ->  | T9: =IF('Einsatz 2'!M9="","",'Einsatz 2'!M9) ->  | U9: =IF(S9="ja",0,IF(P9="",0,ROUNDUP((R9+$D$6+$D$6)*24,0))) -> 0.00 | V9: =IF(S9="",0,R9*24) -> 0.00 | W9: =IF('Einsatz 3'!I9="","",'Einsatz 3'!I9) ->  | X9: =IF('Einsatz 3'!J9="","",'Einsatz 3'!J9) ->  | Y9: =IF(OR(W9="",X9=""),0,MOD(X9-W9,1)) -> 00:00:00 | Z9: =IF('Einsatz 3'!L9="","",'Einsatz 3'!L9) ->  | AA9: =IF('Einsatz 3'!M9="","",'Einsatz 3'!M9) ->  | AB9: =IF(Z9="ja",0,IF(W9="",0,ROUNDUP((Y9+$D$6+$D$6)*24,0))) -> 0.00 | AC9: =IF(Z9="",0,Y9*24) -> 0.00 | AD9: =N9+U9+AB9 -> 0.00 | AE9: =ROUNDUP((O9+V9+AC9)/0.5,0)*0.5 -> 0.00
A10: =TEXT(B10,"TTTT") -> Montag | B10: =B9+1 -> 2023-01-02 | C10: ='Einsatz 1'!C11 ->  | D10: ='Einsatz 1'!D11 -> 0 | E10: ='Einsatz 1'!E11 -> 0 | F10: ='Einsatz 1'!F11 -> 0 | G10: ='Einsatz 1'!G11 -> 0 | H10: ='Einsatz 1'!H11 -> 00:00:00 | I10: =IF('Einsatz 1'!I11="","",'Einsatz 1'!I11) ->  | J10: =IF('Einsatz 1'!J11="","",'Einsatz 1'!J11) ->  | K10: =IF(OR(I10="",J10=""),0,MOD(J10-I10,1)) -> 00:00:00 | L10: =IF('Einsatz 1'!L11="","",'Einsatz 1'!L11) ->  | M10: =IF('Einsatz 1'!M11="","",'Einsatz 1'!M11) ->  | N10: =IF(L10="ja",0,IF(I10="",0,ROUNDUP((K10+$D$6+$D$6)*24,0))) -> 0.00 | O10: =IF(L10="",0,K10*24) -> 0.00 | P10: =IF('Einsatz 2'!I10="","",'Einsatz 2'!I10) ->  | Q10: =IF('Einsatz 2'!J10="","",'Einsatz 2'!J10) ->  | R10: =IF(OR(P10="",Q10=""),0,MOD(Q10-P10,1)) -> 00:00:00 | S10: =IF('Einsatz 2'!L10="","",'Einsatz 2'!L10) ->  | T10: =IF('Einsatz 2'!M10="","",'Einsatz 2'!M10) ->  | U10: =IF(S10="ja",0,IF(P10="",0,ROUNDUP((R10+$D$6+$D$6)*24,0))) -> 0.00 | V10: =IF(S10="",0,R10*24) -> 0.00 | W10: =IF('Einsatz 3'!I10="","",'Einsatz 3'!I10) ->  | X10: =IF('Einsatz 3'!J10="","",'Einsatz 3'!J10) ->  | Y10: =IF(OR(W10="",X10=""),0,MOD(X10-W10,1)) -> 00:00:00 | Z10: =IF('Einsatz 3'!L10="","",'Einsatz 3'!L10) ->  | AA10: =IF('Einsatz 3'!M10="","",'Einsatz 3'!M10) ->  | AB10: =IF(Z10="ja",0,IF(W10="",0,ROUNDUP((Y10+$D$6+$D$6)*24,0))) -> 0.00 | AC10: =IF(Z10="",0,Y10*24) -> 0.00 | AD10: =N10+U10+AB10 -> 0.00 | AE10: =ROUNDUP((O10+V10+AC10)/0.5,0)*0.5 -> 0.00
A11: Dienstag | B11: =B10+1 -> 2023-01-03 | C11: ='Einsatz 1'!C12 ->  | D11: ='Einsatz 1'!D12 -> 0 | E11: ='Einsatz 1'!E12 -> 0 | F11: ='Einsatz 1'!F12 -> 0 | G11: ='Einsatz 1'!G12 -> 0 | H11: ='Einsatz 1'!H12 -> 00:00:00 | I11: =IF('Einsatz 1'!I12="","",'Einsatz 1'!I12) ->  | J11: =IF('Einsatz 1'!J12="","",'Einsatz 1'!J12) ->  | K11: 00:00:00 | L11: =IF('Einsatz 1'!L12="","",'Einsatz 1'!L12) ->  | M11: =IF('Einsatz 1'!M12="","",'Einsatz 1'!M12) ->  | N11: 0.00 | O11: 0.00 | P11: =IF('Einsatz 2'!I11="","",'Einsatz 2'!I11) ->  | Q11: =IF('Einsatz 2'!J11="","",'Einsatz 2'!J11) ->  | R11: 00:00:00 | S11: =IF('Einsatz 2'!L11="","",'Einsatz 2'!L11) ->  | T11: =IF('Einsatz 2'!M11="","",'Einsatz 2'!M11) ->  | U11: 0.00 | V11: 0.00 | W11: =IF('Einsatz 3'!I11="","",'Einsatz 3'!I11) ->  | X11: =IF('Einsatz 3'!J11="","",'Einsatz 3'!J11) ->  | Y11: 00:00:00 | Z11: =IF('Einsatz 3'!L11="","",'Einsatz 3'!L11) ->  | AA11: =IF('Einsatz 3'!M11="","",'Einsatz 3'!M11) ->  | AB11: 0.00 | AC11: 0.00 | AD11: 0.00 | AE11: 0.00
A12: Mittwoch | B12: 2023-01-04 | C12: ='Einsatz 1'!C13 ->  | D12: ='Einsatz 1'!D13 -> 0 | E12: ='Einsatz 1'!E13 -> 0 | F12: ='Einsatz 1'!F13 -> 0 | G12: ='Einsatz 1'!G13 -> 0 | H12: ='Einsatz 1'!H13 -> 00:00:00 | I12: =IF('Einsatz 1'!I13="","",'Einsatz 1'!I13) ->  | J12: =IF('Einsatz 1'!J13="","",'Einsatz 1'!J13) ->  | K12: 00:00:00 | L12: =IF('Einsatz 1'!L13="","",'Einsatz 1'!L13) ->  | M12: =IF('Einsatz 1'!M13="","",'Einsatz 1'!M13) ->  | N12: 0.00 | O12: 0.00 | P12: =IF('Einsatz 2'!I12="","",'Einsatz 2'!I12) ->  | Q12: =IF('Einsatz 2'!J12="","",'Einsatz 2'!J12) ->  | R12: 00:00:00 | S12: =IF('Einsatz 2'!L12="","",'Einsatz 2'!L12) ->  | T12: =IF('Einsatz 2'!M12="","",'Einsatz 2'!M12) ->  | U12: 0.00 | V12: 0.00 | W12: =IF('Einsatz 3'!I12="","",'Einsatz 3'!I12) ->  | X12: =IF('Einsatz 3'!J12="","",'Einsatz 3'!J12) ->  | Y12: 00:00:00 | Z12: =IF('Einsatz 3'!L12="","",'Einsatz 3'!L12) ->  | AA12: =IF('Einsatz 3'!M12="","",'Einsatz 3'!M12) ->  | AB12: 0.00 | AC12: 0.00 | AD12: 0.00 | AE12: 0.00
A13: Donnerstag | B13: 2023-01-05 | C13: ='Einsatz 1'!C14 ->  | D13: ='Einsatz 1'!D14 -> 0 | E13: ='Einsatz 1'!E14 -> 0 | F13: ='Einsatz 1'!F14 -> 0 | G13: ='Einsatz 1'!G14 -> 0 | H13: ='Einsatz 1'!H14 -> 00:00:00 | I13: =IF('Einsatz 1'!I14="","",'Einsatz 1'!I14) ->  | J13: =IF('Einsatz 1'!J14="","",'Einsatz 1'!J14) ->  | K13: 00:00:00 | L13: =IF('Einsatz 1'!L14="","",'Einsatz 1'!L14) ->  | M13: =IF('Einsatz 1'!M14="","",'Einsatz 1'!M14) ->  | N13: 0.00 | O13: 0.00 | P13: =IF('Einsatz 2'!I13="","",'Einsatz 2'!I13) ->  | Q13: =IF('Einsatz 2'!J13="","",'Einsatz 2'!J13) ->  | R13: 00:00:00 | S13: =IF('Einsatz 2'!L13="","",'Einsatz 2'!L13) ->  | T13: =IF('Einsatz 2'!M13="","",'Einsatz 2'!M13) ->  | U13: 0.00 | V13: 0.00 | W13: =IF('Einsatz 3'!I13="","",'Einsatz 3'!I13) ->  | X13: =IF('Einsatz 3'!J13="","",'Einsatz 3'!J13) ->  | Y13: 00:00:00 | Z13: =IF('Einsatz 3'!L13="","",'Einsatz 3'!L13) ->  | AA13: =IF('Einsatz 3'!M13="","",'Einsatz 3'!M13) ->  | AB13: 0.00 | AC13: 0.00 | AD13: 0.00 | AE13: 0.00
A14: Freitag | B14: 2023-01-06 | C14: ='Einsatz 1'!C15 ->  | D14: ='Einsatz 1'!D15 -> 0 | E14: ='Einsatz 1'!E15 -> 0 | F14: ='Einsatz 1'!F15 -> 0 | G14: ='Einsatz 1'!G15 -> 0 | H14: ='Einsatz 1'!H15 -> 00:00:00 | I14: =IF('Einsatz 1'!I15="","",'Einsatz 1'!I15) ->  | J14: =IF('Einsatz 1'!J15="","",'Einsatz 1'!J15) ->  | K14: 00:00:00 | L14: =IF('Einsatz 1'!L15="","",'Einsatz 1'!L15) ->  | M14: =IF('Einsatz 1'!M15="","",'Einsatz 1'!M15) ->  | N14: 0.00 | O14: 0.00 | P14: =IF('Einsatz 2'!I14="","",'Einsatz 2'!I14) ->  | Q14: =IF('Einsatz 2'!J14="","",'Einsatz 2'!J14) ->  | R14: 00:00:00 | S14: =IF('Einsatz 2'!L14="","",'Einsatz 2'!L14) ->  | T14: =IF('Einsatz 2'!M14="","",'Einsatz 2'!M14) ->  | U14: 0.00 | V14: 0.00 | W14: =IF('Einsatz 3'!I14="","",'Einsatz 3'!I14) ->  | X14: =IF('Einsatz 3'!J14="","",'Einsatz 3'!J14) ->  | Y14: 00:00:00 | Z14: =IF('Einsatz 3'!L14="","",'Einsatz 3'!L14) ->  | AA14: =IF('Einsatz 3'!M14="","",'Einsatz 3'!M14) ->  | AB14: 0.00 | AC14: 0.00 | AD14: 0.00 | AE14: 0.00
A15: Samstag | B15: 2023-01-07 | C15: ='Einsatz 1'!C16 ->  | D15: ='Einsatz 1'!D16 -> 0 | E15: ='Einsatz 1'!E16 -> 0 | F15: ='Einsatz 1'!F16 -> 0 | G15: ='Einsatz 1'!G16 -> 0 | H15: ='Einsatz 1'!H16 -> 00:00:00 | I15: =IF('Einsatz 1'!I16="","",'Einsatz 1'!I16) ->  | J15: =IF('Einsatz 1'!J16="","",'Einsatz 1'!J16) ->  | K15: 00:00:00 | L15: =IF('Einsatz 1'!L16="","",'Einsatz 1'!L16) ->  | M15: =IF('Einsatz 1'!M16="","",'Einsatz 1'!M16) ->  | N15: 0.00 | O15: 0.00 | P15: =IF('Einsatz 2'!I15="","",'Einsatz 2'!I15) ->  | Q15: =IF('Einsatz 2'!J15="","",'Einsatz 2'!J15) ->  | R15: 00:00:00 | S15: =IF('Einsatz 2'!L15="","",'Einsatz 2'!L15) ->  | T15: =IF('Einsatz 2'!M15="","",'Einsatz 2'!M15) ->  | U15: 0.00 | V15: 0.00 | W15: =IF('Einsatz 3'!I15="","",'Einsatz 3'!I15) ->  | X15: =IF('Einsatz 3'!J15="","",'Einsatz 3'!J15) ->  | Y15: 00:00:00 | Z15: =IF('Einsatz 3'!L15="","",'Einsatz 3'!L15) ->  | AA15: =IF('Einsatz 3'!M15="","",'Einsatz 3'!M15) ->  | AB15: 0.00 | AC15: 0.00 | AD15: 0.00 | AE15: 0.00
A16: Sonntag | B16: 2023-01-08 | C16: ='Einsatz 1'!C17 ->  | D16: ='Einsatz 1'!D17 -> 0 | E16: ='Einsatz 1'!E17 -> 0 | F16: ='Einsatz 1'!F17 -> 0 | G16: ='Einsatz 1'!G17 -> 0 | H16: ='Einsatz 1'!H17 -> 00:00:00 | I16: =IF('Einsatz 1'!I17="","",'Einsatz 1'!I17) ->  | J16: =IF('Einsatz 1'!J17="","",'Einsatz 1'!J17) ->  | K16: 00:00:00 | L16: =IF('Einsatz 1'!L17="","",'Einsatz 1'!L17) ->  | M16: =IF('Einsatz 1'!M17="","",'Einsatz 1'!M17) ->  | N16: 0.00 | O16: 0.00 | P16: =IF('Einsatz 2'!I16="","",'Einsatz 2'!I16) ->  | Q16: =IF('Einsatz 2'!J16="","",'Einsatz 2'!J16) ->  | R16: 00:00:00 | S16: =IF('Einsatz 2'!L16="","",'Einsatz 2'!L16) ->  | T16: =IF('Einsatz 2'!M16="","",'Einsatz 2'!M16) ->  | U16: 0.00 | V16: 0.00 | W16: =IF('Einsatz 3'!I16="","",'Einsatz 3'!I16) ->  | X16: =IF('Einsatz 3'!J16="","",'Einsatz 3'!J16) ->  | Y16: 00:00:00 | Z16: =IF('Einsatz 3'!L16="","",'Einsatz 3'!L16) ->  | AA16: =IF('Einsatz 3'!M16="","",'Einsatz 3'!M16) ->  | AB16: 0.00 | AC16: 0.00 | AD16: 0.00 | AE16: 0.00
A17: Montag | B17: 2023-01-09 | C17: ='Einsatz 1'!C18 ->  | D17: ='Einsatz 1'!D18 -> 0 | E17: ='Einsatz 1'!E18 -> 0 | F17: ='Einsatz 1'!F18 -> 0 | G17: ='Einsatz 1'!G18 -> 0 | H17: ='Einsatz 1'!H18 -> 00:00:00 | I17: =IF('Einsatz 1'!I18="","",'Einsatz 1'!I18) ->  | J17: =IF('Einsatz 1'!J18="","",'Einsatz 1'!J18) ->  | K17: 00:00:00 | L17: =IF('Einsatz 1'!L18="","",'Einsatz 1'!L18) ->  | M17: =IF('Einsatz 1'!M18="","",'Einsatz 1'!M18) ->  | N17: 0.00 | O17: 0.00 | P17: =IF('Einsatz 2'!I17="","",'Einsatz 2'!I17) ->  | Q17: =IF('Einsatz 2'!J17="","",'Einsatz 2'!J17) ->  | R17: 00:00:00 | S17: =IF('Einsatz 2'!L17="","",'Einsatz 2'!L17) ->  | T17: =IF('Einsatz 2'!M17="","",'Einsatz 2'!M17) ->  | U17: 0.00 | V17: 0.00 | W17: =IF('Einsatz 3'!I17="","",'Einsatz 3'!I17) ->  | X17: =IF('Einsatz 3'!J17="","",'Einsatz 3'!J17) ->  | Y17: 00:00:00 | Z17: =IF('Einsatz 3'!L17="","",'Einsatz 3'!L17) ->  | AA17: =IF('Einsatz 3'!M17="","",'Einsatz 3'!M17) ->  | AB17: 0.00 | AC17: 0.00 | AD17: 0.00 | AE17: 0.00
A18: Dienstag | B18: 2023-01-10 | C18: ='Einsatz 1'!C19 ->  | D18: ='Einsatz 1'!D19 -> 0 | E18: ='Einsatz 1'!E19 -> 0 | F18: ='Einsatz 1'!F19 -> 0 | G18: ='Einsatz 1'!G19 -> 0 | H18: ='Einsatz 1'!H19 -> 00:00:00 | I18: =IF('Einsatz 1'!I19="","",'Einsatz 1'!I19) ->  | J18: =IF('Einsatz 1'!J19="","",'Einsatz 1'!J19) ->  | K18: 00:00:00 | L18: =IF('Einsatz 1'!L19="","",'Einsatz 1'!L19) ->  | M18: =IF('Einsatz 1'!M19="","",'Einsatz 1'!M19) ->  | N18: 0.00 | O18: 0.00 | P18: =IF('Einsatz 2'!I18="","",'Einsatz 2'!I18) ->  | Q18: =IF('Einsatz 2'!J18="","",'Einsatz 2'!J18) ->  | R18: 00:00:00 | S18: =IF('Einsatz 2'!L18="","",'Einsatz 2'!L18) ->  | T18: =IF('Einsatz 2'!M18="","",'Einsatz 2'!M18) ->  | U18: 0.00 | V18: 0.00 | W18: =IF('Einsatz 3'!I18="","",'Einsatz 3'!I18) ->  | X18: =IF('Einsatz 3'!J18="","",'Einsatz 3'!J18) ->  | Y18: 00:00:00 | Z18: =IF('Einsatz 3'!L18="","",'Einsatz 3'!L18) ->  | AA18: =IF('Einsatz 3'!M18="","",'Einsatz 3'!M18) ->  | AB18: 0.00 | AC18: 0.00 | AD18: 0.00 | AE18: 0.00
A19: Mittwoch | B19: 2023-01-11 | C19: ='Einsatz 1'!C20 ->  | D19: ='Einsatz 1'!D20 -> 0 | E19: ='Einsatz 1'!E20 -> 0 | F19: ='Einsatz 1'!F20 -> 0 | G19: ='Einsatz 1'!G20 -> 0 | H19: ='Einsatz 1'!H20 -> 00:00:00 | I19: =IF('Einsatz 1'!I20="","",'Einsatz 1'!I20) ->  | J19: =IF('Einsatz 1'!J20="","",'Einsatz 1'!J20) ->  | K19: 00:00:00 | L19: =IF('Einsatz 1'!L20="","",'Einsatz 1'!L20) ->  | M19: =IF('Einsatz 1'!M20="","",'Einsatz 1'!M20) ->  | N19: 0.00 | O19: 0.00 | P19: =IF('Einsatz 2'!I19="","",'Einsatz 2'!I19) ->  | Q19: =IF('Einsatz 2'!J19="","",'Einsatz 2'!J19) ->  | R19: 00:00:00 | S19: =IF('Einsatz 2'!L19="","",'Einsatz 2'!L19) ->  | T19: =IF('Einsatz 2'!M19="","",'Einsatz 2'!M19) ->  | U19: 0.00 | V19: 0.00 | W19: =IF('Einsatz 3'!I19="","",'Einsatz 3'!I19) ->  | X19: =IF('Einsatz 3'!J19="","",'Einsatz 3'!J19) ->  | Y19: 00:00:00 | Z19: =IF('Einsatz 3'!L19="","",'Einsatz 3'!L19) ->  | AA19: =IF('Einsatz 3'!M19="","",'Einsatz 3'!M19) ->  | AB19: 0.00 | AC19: 0.00 | AD19: 0.00 | AE19: 0.00
A20: Donnerstag | B20: 2023-01-12 | C20: ='Einsatz 1'!C21 ->  | D20: ='Einsatz 1'!D21 -> 0 | E20: ='Einsatz 1'!E21 -> 0 | F20: ='Einsatz 1'!F21 -> 0 | G20: ='Einsatz 1'!G21 -> 0 | H20: ='Einsatz 1'!H21 -> 00:00:00 | I20: =IF('Einsatz 1'!I21="","",'Einsatz 1'!I21) ->  | J20: =IF('Einsatz 1'!J21="","",'Einsatz 1'!J21) ->  | K20: 00:00:00 | L20: =IF('Einsatz 1'!L21="","",'Einsatz 1'!L21) ->  | M20: =IF('Einsatz 1'!M21="","",'Einsatz 1'!M21) ->  | N20: 0.00 | O20: 0.00 | P20: =IF('Einsatz 2'!I20="","",'Einsatz 2'!I20) ->  | Q20: =IF('Einsatz 2'!J20="","",'Einsatz 2'!J20) ->  | R20: 00:00:00 | S20: =IF('Einsatz 2'!L20="","",'Einsatz 2'!L20) ->  | T20: =IF('Einsatz 2'!M20="","",'Einsatz 2'!M20) ->  | U20: 0.00 | V20: 0.00 | W20: =IF('Einsatz 3'!I20="","",'Einsatz 3'!I20) ->  | X20: =IF('Einsatz 3'!J20="","",'Einsatz 3'!J20) ->  | Y20: 00:00:00 | Z20: =IF('Einsatz 3'!L20="","",'Einsatz 3'!L20) ->  | AA20: =IF('Einsatz 3'!M20="","",'Einsatz 3'!M20) ->  | AB20: 0.00 | AC20: 0.00 | AD20: 0.00 | AE20: 0.00
A21: Freitag | B21: 2023-01-13 | C21: ='Einsatz 1'!C22 ->  | D21: ='Einsatz 1'!D22 -> 0 | E21: ='Einsatz 1'!E22 -> 0 | F21: ='Einsatz 1'!F22 -> 0 | G21: ='Einsatz 1'!G22 -> 0 | H21: ='Einsatz 1'!H22 -> 00:00:00 | I21: =IF('Einsatz 1'!I22="","",'Einsatz 1'!I22) ->  | J21: =IF('Einsatz 1'!J22="","",'Einsatz 1'!J22) ->  | K21: 00:00:00 | L21: =IF('Einsatz 1'!L22="","",'Einsatz 1'!L22) ->  | M21: =IF('Einsatz 1'!M22="","",'Einsatz 1'!M22) ->  | N21: 0.00 | O21: 0.00 | P21: =IF('Einsatz 2'!I21="","",'Einsatz 2'!I21) ->  | Q21: =IF('Einsatz 2'!J21="","",'Einsatz 2'!J21) ->  | R21: 00:00:00 | S21: =IF('Einsatz 2'!L21="","",'Einsatz 2'!L21) ->  | T21: =IF('Einsatz 2'!M21="","",'Einsatz 2'!M21) ->  | U21: 0.00 | V21: 0.00 | W21: =IF('Einsatz 3'!I21="","",'Einsatz 3'!I21) ->  | X21: =IF('Einsatz 3'!J21="","",'Einsatz 3'!J21) ->  | Y21: 00:00:00 | Z21: =IF('Einsatz 3'!L21="","",'Einsatz 3'!L21) ->  | AA21: =IF('Einsatz 3'!M21="","",'Einsatz 3'!M21) ->  | AB21: 0.00 | AC21: 0.00 | AD21: 0.00 | AE21: 0.00
A22: Samstag | B22: 2023-01-14 | C22: ='Einsatz 1'!C23 ->  | D22: ='Einsatz 1'!D23 -> 0 | E22: ='Einsatz 1'!E23 -> 0 | F22: ='Einsatz 1'!F23 -> 0 | G22: ='Einsatz 1'!G23 -> 0 | H22: ='Einsatz 1'!H23 -> 00:00:00 | I22: =IF('Einsatz 1'!I23="","",'Einsatz 1'!I23) ->  | J22: =IF('Einsatz 1'!J23="","",'Einsatz 1'!J23) ->  | K22: 00:00:00 | L22: =IF('Einsatz 1'!L23="","",'Einsatz 1'!L23) ->  | M22: =IF('Einsatz 1'!M23="","",'Einsatz 1'!M23) ->  | N22: 0.00 | O22: 0.00 | P22: =IF('Einsatz 2'!I22="","",'Einsatz 2'!I22) ->  | Q22: =IF('Einsatz 2'!J22="","",'Einsatz 2'!J22) ->  | R22: 00:00:00 | S22: =IF('Einsatz 2'!L22="","",'Einsatz 2'!L22) ->  | T22: =IF('Einsatz 2'!M22="","",'Einsatz 2'!M22) ->  | U22: 0.00 | V22: 0.00 | W22: =IF('Einsatz 3'!I22="","",'Einsatz 3'!I22) ->  | X22: =IF('Einsatz 3'!J22="","",'Einsatz 3'!J22) ->  | Y22: 00:00:00 | Z22: =IF('Einsatz 3'!L22="","",'Einsatz 3'!L22) ->  | AA22: =IF('Einsatz 3'!M22="","",'Einsatz 3'!M22) ->  | AB22: 0.00 | AC22: 0.00 | AD22: 0.00 | AE22: 0.00
A23: Sonntag | B23: 2023-01-15 | C23: ='Einsatz 1'!C24 ->  | D23: ='Einsatz 1'!D24 -> 0 | E23: ='Einsatz 1'!E24 -> 0 | F23: ='Einsatz 1'!F24 -> 0 | G23: ='Einsatz 1'!G24 -> 0 | H23: ='Einsatz 1'!H24 -> 00:00:00 | I23: =IF('Einsatz 1'!I24="","",'Einsatz 1'!I24) ->  | J23: =IF('Einsatz 1'!J24="","",'Einsatz 1'!J24) ->  | K23: 00:00:00 | L23: =IF('Einsatz 1'!L24="","",'Einsatz 1'!L24) ->  | M23: =IF('Einsatz 1'!M24="","",'Einsatz 1'!M24) ->  | N23: 0.00 | O23: 0.00 | P23: =IF('Einsatz 2'!I23="","",'Einsatz 2'!I23) ->  | Q23: =IF('Einsatz 2'!J23="","",'Einsatz 2'!J23) ->  | R23: 00:00:00 | S23: =IF('Einsatz 2'!L23="","",'Einsatz 2'!L23) ->  | T23: =IF('Einsatz 2'!M23="","",'Einsatz 2'!M23) ->  | U23: 0.00 | V23: 0.00 | W23: =IF('Einsatz 3'!I23="","",'Einsatz 3'!I23) ->  | X23: =IF('Einsatz 3'!J23="","",'Einsatz 3'!J23) ->  | Y23: 00:00:00 | Z23: =IF('Einsatz 3'!L23="","",'Einsatz 3'!L23) ->  | AA23: =IF('Einsatz 3'!M23="","",'Einsatz 3'!M23) ->  | AB23: 0.00 | AC23: 0.00 | AD23: 0.00 | AE23: 0.00
A24: Montag | B24: 2023-01-16 | C24: ='Einsatz 1'!C25 ->  | D24: ='Einsatz 1'!D25 -> 0 | E24: ='Einsatz 1'!E25 -> 0 | F24: ='Einsatz 1'!F25 -> 0 | G24: ='Einsatz 1'!G25 -> 0 | H24: ='Einsatz 1'!H25 -> 00:00:00 | I24: =IF('Einsatz 1'!I25="","",'Einsatz 1'!I25) ->  | J24: =IF('Einsatz 1'!J25="","",'Einsatz 1'!J25) ->  | K24: 00:00:00 | L24: =IF('Einsatz 1'!L25="","",'Einsatz 1'!L25) ->  | M24: =IF('Einsatz 1'!M25="","",'Einsatz 1'!M25) ->  | N24: 0.00 | O24: 0.00 | P24: =IF('Einsatz 2'!I24="","",'Einsatz 2'!I24) ->  | Q24: =IF('Einsatz 2'!J24="","",'Einsatz 2'!J24) ->  | R24: 00:00:00 | S24: =IF('Einsatz 2'!L24="","",'Einsatz 2'!L24) ->  | T24: =IF('Einsatz 2'!M24="","",'Einsatz 2'!M24) ->  | U24: 0.00 | V24: 0.00 | W24: =IF('Einsatz 3'!I24="","",'Einsatz 3'!I24) ->  | X24: =IF('Einsatz 3'!J24="","",'Einsatz 3'!J24) ->  | Y24: 00:00:00 | Z24: =IF('Einsatz 3'!L24="","",'Einsatz 3'!L24) ->  | AA24: =IF('Einsatz 3'!M24="","",'Einsatz 3'!M24) ->  | AB24: 0.00 | AC24: 0.00 | AD24: 0.00 | AE24: 0.00
A25: Dienstag | B25: 2023-01-17 | C25: ='Einsatz 1'!C26 ->  | D25: ='Einsatz 1'!D26 -> 0 | E25: ='Einsatz 1'!E26 -> 0 | F25: ='Einsatz 1'!F26 -> 0 | G25: ='Einsatz 1'!G26 -> 0 | H25: ='Einsatz 1'!H26 -> 00:00:00 | I25: =IF('Einsatz 1'!I26="","",'Einsatz 1'!I26) ->  | J25: =IF('Einsatz 1'!J26="","",'Einsatz 1'!J26) ->  | K25: 00:00:00 | L25: =IF('Einsatz 1'!L26="","",'Einsatz 1'!L26) ->  | M25: =IF('Einsatz 1'!M26="","",'Einsatz 1'!M26) ->  | N25: 0.00 | O25: 0.00 | P25: =IF('Einsatz 2'!I25="","",'Einsatz 2'!I25) ->  | Q25: =IF('Einsatz 2'!J25="","",'Einsatz 2'!J25) ->  | R25: 00:00:00 | S25: =IF('Einsatz 2'!L25="","",'Einsatz 2'!L25) ->  | T25: =IF('Einsatz 2'!M25="","",'Einsatz 2'!M25) ->  | U25: 0.00 | V25: 0.00 | W25: =IF('Einsatz 3'!I25="","",'Einsatz 3'!I25) ->  | X25: =IF('Einsatz 3'!J25="","",'Einsatz 3'!J25) ->  | Y25: 00:00:00 | Z25: =IF('Einsatz 3'!L25="","",'Einsatz 3'!L25) ->  | AA25: =IF('Einsatz 3'!M25="","",'Einsatz 3'!M25) ->  | AB25: 0.00 | AC25: 0.00 | AD25: 0.00 | AE25: 0.00
A26: Mittwoch | B26: 2023-01-18 | C26: ='Einsatz 1'!C27 ->  | D26: ='Einsatz 1'!D27 -> 0 | E26: ='Einsatz 1'!E27 -> 0 | F26: ='Einsatz 1'!F27 -> 0 | G26: ='Einsatz 1'!G27 -> 0 | H26: ='Einsatz 1'!H27 -> 00:00:00 | I26: =IF('Einsatz 1'!I27="","",'Einsatz 1'!I27) ->  | J26: =IF('Einsatz 1'!J27="","",'Einsatz 1'!J27) ->  | K26: 00:00:00 | L26: =IF('Einsatz 1'!L27="","",'Einsatz 1'!L27) ->  | M26: =IF('Einsatz 1'!M27="","",'Einsatz 1'!M27) ->  | N26: 0.00 | O26: 0.00 | P26: =IF('Einsatz 2'!I26="","",'Einsatz 2'!I26) ->  | Q26: =IF('Einsatz 2'!J26="","",'Einsatz 2'!J26) ->  | R26: 00:00:00 | S26: =IF('Einsatz 2'!L26="","",'Einsatz 2'!L26) ->  | T26: =IF('Einsatz 2'!M26="","",'Einsatz 2'!M26) ->  | U26: 0.00 | V26: 0.00 | W26: =IF('Einsatz 3'!I26="","",'Einsatz 3'!I26) ->  | X26: =IF('Einsatz 3'!J26="","",'Einsatz 3'!J26) ->  | Y26: 00:00:00 | Z26: =IF('Einsatz 3'!L26="","",'Einsatz 3'!L26) ->  | AA26: =IF('Einsatz 3'!M26="","",'Einsatz 3'!M26) ->  | AB26: 0.00 | AC26: 0.00 | AD26: 0.00 | AE26: 0.00
A27: Donnerstag | B27: 2023-01-19 | C27: ='Einsatz 1'!C28 ->  | D27: ='Einsatz 1'!D28 -> 0 | E27: ='Einsatz 1'!E28 -> 0 | F27: ='Einsatz 1'!F28 -> 0 | G27: ='Einsatz 1'!G28 -> 0 | H27: ='Einsatz 1'!H28 -> 00:00:00 | I27: =IF('Einsatz 1'!I28="","",'Einsatz 1'!I28) ->  | J27: =IF('Einsatz 1'!J28="","",'Einsatz 1'!J28) ->  | K27: 00:00:00 | L27: =IF('Einsatz 1'!L28="","",'Einsatz 1'!L28) ->  | M27: =IF('Einsatz 1'!M28="","",'Einsatz 1'!M28) ->  | N27: 0.00 | O27: 0.00 | P27: =IF('Einsatz 2'!I27="","",'Einsatz 2'!I27) ->  | Q27: =IF('Einsatz 2'!J27="","",'Einsatz 2'!J27) ->  | R27: 00:00:00 | S27: =IF('Einsatz 2'!L27="","",'Einsatz 2'!L27) ->  | T27: =IF('Einsatz 2'!M27="","",'Einsatz 2'!M27) ->  | U27: 0.00 | V27: 0.00 | W27: =IF('Einsatz 3'!I27="","",'Einsatz 3'!I27) ->  | X27: =IF('Einsatz 3'!J27="","",'Einsatz 3'!J27) ->  | Y27: 00:00:00 | Z27: =IF('Einsatz 3'!L27="","",'Einsatz 3'!L27) ->  | AA27: =IF('Einsatz 3'!M27="","",'Einsatz 3'!M27) ->  | AB27: 0.00 | AC27: 0.00 | AD27: 0.00 | AE27: 0.00
A28: Freitag | B28: 2023-01-20 | C28: ='Einsatz 1'!C29 ->  | D28: ='Einsatz 1'!D29 -> 0 | E28: ='Einsatz 1'!E29 -> 0 | F28: ='Einsatz 1'!F29 -> 0 | G28: ='Einsatz 1'!G29 -> 0 | H28: ='Einsatz 1'!H29 -> 00:00:00 | I28: =IF('Einsatz 1'!I29="","",'Einsatz 1'!I29) ->  | J28: =IF('Einsatz 1'!J29="","",'Einsatz 1'!J29) ->  | K28: 00:00:00 | L28: =IF('Einsatz 1'!L29="","",'Einsatz 1'!L29) ->  | M28: =IF('Einsatz 1'!M29="","",'Einsatz 1'!M29) ->  | N28: 0.00 | O28: 0.00 | P28: =IF('Einsatz 2'!I28="","",'Einsatz 2'!I28) ->  | Q28: =IF('Einsatz 2'!J28="","",'Einsatz 2'!J28) ->  | R28: 00:00:00 | S28: =IF('Einsatz 2'!L28="","",'Einsatz 2'!L28) ->  | T28: =IF('Einsatz 2'!M28="","",'Einsatz 2'!M28) ->  | U28: 0.00 | V28: 0.00 | W28: =IF('Einsatz 3'!I28="","",'Einsatz 3'!I28) ->  | X28: =IF('Einsatz 3'!J28="","",'Einsatz 3'!J28) ->  | Y28: 00:00:00 | Z28: =IF('Einsatz 3'!L28="","",'Einsatz 3'!L28) ->  | AA28: =IF('Einsatz 3'!M28="","",'Einsatz 3'!M28) ->  | AB28: 0.00 | AC28: 0.00 | AD28: 0.00 | AE28: 0.00
A29: Samstag | B29: 2023-01-21 | C29: ='Einsatz 1'!C30 ->  | D29: ='Einsatz 1'!D30 -> 0 | E29: ='Einsatz 1'!E30 -> 0 | F29: ='Einsatz 1'!F30 -> 0 | G29: ='Einsatz 1'!G30 -> 0 | H29: ='Einsatz 1'!H30 -> 00:00:00 | I29: =IF('Einsatz 1'!I30="","",'Einsatz 1'!I30) ->  | J29: =IF('Einsatz 1'!J30="","",'Einsatz 1'!J30) ->  | K29: 00:00:00 | L29: =IF('Einsatz 1'!L30="","",'Einsatz 1'!L30) ->  | M29: =IF('Einsatz 1'!M30="","",'Einsatz 1'!M30) ->  | N29: 0.00 | O29: 0.00 | P29: =IF('Einsatz 2'!I29="","",'Einsatz 2'!I29) ->  | Q29: =IF('Einsatz 2'!J29="","",'Einsatz 2'!J29) ->  | R29: 00:00:00 | S29: =IF('Einsatz 2'!L29="","",'Einsatz 2'!L29) ->  | T29: =IF('Einsatz 2'!M29="","",'Einsatz 2'!M29) ->  | U29: 0.00 | V29: 0.00 | W29: =IF('Einsatz 3'!I29="","",'Einsatz 3'!I29) ->  | X29: =IF('Einsatz 3'!J29="","",'Einsatz 3'!J29) ->  | Y29: 00:00:00 | Z29: =IF('Einsatz 3'!L29="","",'Einsatz 3'!L29) ->  | AA29: =IF('Einsatz 3'!M29="","",'Einsatz 3'!M29) ->  | AB29: 0.00 | AC29: 0.00 | AD29: 0.00 | AE29: 0.00
A30: Sonntag | B30: 2023-01-22 | C30: ='Einsatz 1'!C31 ->  | D30: ='Einsatz 1'!D31 -> 0 | E30: ='Einsatz 1'!E31 -> 0 | F30: ='Einsatz 1'!F31 -> 0 | G30: ='Einsatz 1'!G31 -> 0 | H30: ='Einsatz 1'!H31 -> 00:00:00 | I30: =IF('Einsatz 1'!I31="","",'Einsatz 1'!I31) ->  | J30: =IF('Einsatz 1'!J31="","",'Einsatz 1'!J31) ->  | K30: 00:00:00 | L30: =IF('Einsatz 1'!L31="","",'Einsatz 1'!L31) ->  | M30: =IF('Einsatz 1'!M31="","",'Einsatz 1'!M31) ->  | N30: 0.00 | O30: 0.00 | P30: =IF('Einsatz 2'!I30="","",'Einsatz 2'!I30) ->  | Q30: =IF('Einsatz 2'!J30="","",'Einsatz 2'!J30) ->  | R30: 00:00:00 | S30: =IF('Einsatz 2'!L30="","",'Einsatz 2'!L30) ->  | T30: =IF('Einsatz 2'!M30="","",'Einsatz 2'!M30) ->  | U30: 0.00 | V30: 0.00 | W30: =IF('Einsatz 3'!I30="","",'Einsatz 3'!I30) ->  | X30: =IF('Einsatz 3'!J30="","",'Einsatz 3'!J30) ->  | Y30: 00:00:00 | Z30: =IF('Einsatz 3'!L30="","",'Einsatz 3'!L30) ->  | AA30: =IF('Einsatz 3'!M30="","",'Einsatz 3'!M30) ->  | AB30: 0.00 | AC30: 0.00 | AD30: 0.00 | AE30: 0.00
A31: Montag | B31: 2023-01-23 | C31: ='Einsatz 1'!C32 ->  | D31: ='Einsatz 1'!D32 -> 0 | E31: ='Einsatz 1'!E32 -> 0 | F31: ='Einsatz 1'!F32 -> 0 | G31: ='Einsatz 1'!G32 -> 0 | H31: ='Einsatz 1'!H32 -> 00:00:00 | I31: =IF('Einsatz 1'!I32="","",'Einsatz 1'!I32) ->  | J31: =IF('Einsatz 1'!J32="","",'Einsatz 1'!J32) ->  | K31: 00:00:00 | L31: =IF('Einsatz 1'!L32="","",'Einsatz 1'!L32) ->  | M31: =IF('Einsatz 1'!M32="","",'Einsatz 1'!M32) ->  | N31: 0.00 | O31: 0.00 | P31: =IF('Einsatz 2'!I31="","",'Einsatz 2'!I31) ->  | Q31: =IF('Einsatz 2'!J31="","",'Einsatz 2'!J31) ->  | R31: 00:00:00 | S31: =IF('Einsatz 2'!L31="","",'Einsatz 2'!L31) ->  | T31: =IF('Einsatz 2'!M31="","",'Einsatz 2'!M31) ->  | U31: 0.00 | V31: 0.00 | W31: =IF('Einsatz 3'!I31="","",'Einsatz 3'!I31) ->  | X31: =IF('Einsatz 3'!J31="","",'Einsatz 3'!J31) ->  | Y31: 00:00:00 | Z31: =IF('Einsatz 3'!L31="","",'Einsatz 3'!L31) ->  | AA31: =IF('Einsatz 3'!M31="","",'Einsatz 3'!M31) ->  | AB31: 0.00 | AC31: 0.00 | AD31: 0.00 | AE31: 0.00
A32: Dienstag | B32: 2023-01-24 | C32: ='Einsatz 1'!C33 ->  | D32: ='Einsatz 1'!D33 -> 0 | E32: ='Einsatz 1'!E33 -> 0 | F32: ='Einsatz 1'!F33 -> 0 | G32: ='Einsatz 1'!G33 -> 0 | H32: ='Einsatz 1'!H33 -> 00:00:00 | I32: =IF('Einsatz 1'!I33="","",'Einsatz 1'!I33) ->  | J32: =IF('Einsatz 1'!J33="","",'Einsatz 1'!J33) ->  | K32: 00:00:00 | L32: =IF('Einsatz 1'!L33="","",'Einsatz 1'!L33) ->  | M32: =IF('Einsatz 1'!M33="","",'Einsatz 1'!M33) ->  | N32: 0.00 | O32: 0.00 | P32: =IF('Einsatz 2'!I32="","",'Einsatz 2'!I32) ->  | Q32: =IF('Einsatz 2'!J32="","",'Einsatz 2'!J32) ->  | R32: 00:00:00 | S32: =IF('Einsatz 2'!L32="","",'Einsatz 2'!L32) ->  | T32: =IF('Einsatz 2'!M32="","",'Einsatz 2'!M32) ->  | U32: 0.00 | V32: 0.00 | W32: =IF('Einsatz 3'!I32="","",'Einsatz 3'!I32) ->  | X32: =IF('Einsatz 3'!J32="","",'Einsatz 3'!J32) ->  | Y32: 00:00:00 | Z32: =IF('Einsatz 3'!L32="","",'Einsatz 3'!L32) ->  | AA32: =IF('Einsatz 3'!M32="","",'Einsatz 3'!M32) ->  | AB32: 0.00 | AC32: 0.00 | AD32: 0.00 | AE32: 0.00
A33: Mittwoch | B33: 2023-01-25 | C33: ='Einsatz 1'!C34 ->  | D33: ='Einsatz 1'!D34 -> 0 | E33: ='Einsatz 1'!E34 -> 0 | F33: ='Einsatz 1'!F34 -> 0 | G33: ='Einsatz 1'!G34 -> 0 | H33: ='Einsatz 1'!H34 -> 00:00:00 | I33: =IF('Einsatz 1'!I34="","",'Einsatz 1'!I34) ->  | J33: =IF('Einsatz 1'!J34="","",'Einsatz 1'!J34) ->  | K33: 00:00:00 | L33: =IF('Einsatz 1'!L34="","",'Einsatz 1'!L34) ->  | M33: =IF('Einsatz 1'!M34="","",'Einsatz 1'!M34) ->  | N33: 0.00 | O33: 0.00 | P33: =IF('Einsatz 2'!I33="","",'Einsatz 2'!I33) ->  | Q33: =IF('Einsatz 2'!J33="","",'Einsatz 2'!J33) ->  | R33: 00:00:00 | S33: =IF('Einsatz 2'!L33="","",'Einsatz 2'!L33) ->  | T33: =IF('Einsatz 2'!M33="","",'Einsatz 2'!M33) ->  | U33: 0.00 | V33: 0.00 | W33: =IF('Einsatz 3'!I33="","",'Einsatz 3'!I33) ->  | X33: =IF('Einsatz 3'!J33="","",'Einsatz 3'!J33) ->  | Y33: 00:00:00 | Z33: =IF('Einsatz 3'!L33="","",'Einsatz 3'!L33) ->  | AA33: =IF('Einsatz 3'!M33="","",'Einsatz 3'!M33) ->  | AB33: 0.00 | AC33: 0.00 | AD33: 0.00 | AE33: 0.00
A34: Donnerstag | B34: 2023-01-26 | C34: ='Einsatz 1'!C35 ->  | D34: ='Einsatz 1'!D35 -> 0 | E34: ='Einsatz 1'!E35 -> 0 | F34: ='Einsatz 1'!F35 -> 0 | G34: ='Einsatz 1'!G35 -> 0 | H34: ='Einsatz 1'!H35 -> 00:00:00 | I34: =IF('Einsatz 1'!I35="","",'Einsatz 1'!I35) ->  | J34: =IF('Einsatz 1'!J35="","",'Einsatz 1'!J35) ->  | K34: 00:00:00 | L34: =IF('Einsatz 1'!L35="","",'Einsatz 1'!L35) ->  | M34: =IF('Einsatz 1'!M35="","",'Einsatz 1'!M35) ->  | N34: 0.00 | O34: 0.00 | P34: =IF('Einsatz 2'!I34="","",'Einsatz 2'!I34) ->  | Q34: =IF('Einsatz 2'!J34="","",'Einsatz 2'!J34) ->  | R34: 00:00:00 | S34: =IF('Einsatz 2'!L34="","",'Einsatz 2'!L34) ->  | T34: =IF('Einsatz 2'!M34="","",'Einsatz 2'!M34) ->  | U34: 0.00 | V34: 0.00 | W34: =IF('Einsatz 3'!I34="","",'Einsatz 3'!I34) ->  | X34: =IF('Einsatz 3'!J34="","",'Einsatz 3'!J34) ->  | Y34: 00:00:00 | Z34: =IF('Einsatz 3'!L34="","",'Einsatz 3'!L34) ->  | AA34: =IF('Einsatz 3'!M34="","",'Einsatz 3'!M34) ->  | AB34: 0.00 | AC34: 0.00 | AD34: 0.00 | AE34: 0.00
A35: Freitag | B35: 2023-01-27 | C35: ='Einsatz 1'!C36 ->  | D35: ='Einsatz 1'!D36 -> 0 | E35: ='Einsatz 1'!E36 -> 0 | F35: ='Einsatz 1'!F36 -> 0 | G35: ='Einsatz 1'!G36 -> 0 | H35: ='Einsatz 1'!H36 -> 00:00:00 | I35: =IF('Einsatz 1'!I36="","",'Einsatz 1'!I36) ->  | J35: =IF('Einsatz 1'!J36="","",'Einsatz 1'!J36) ->  | K35: 00:00:00 | L35: =IF('Einsatz 1'!L36="","",'Einsatz 1'!L36) ->  | M35: =IF('Einsatz 1'!M36="","",'Einsatz 1'!M36) ->  | N35: 0.00 | O35: 0.00 | P35: =IF('Einsatz 2'!I35="","",'Einsatz 2'!I35) ->  | Q35: =IF('Einsatz 2'!J35="","",'Einsatz 2'!J35) ->  | R35: 00:00:00 | S35: =IF('Einsatz 2'!L35="","",'Einsatz 2'!L35) ->  | T35: =IF('Einsatz 2'!M35="","",'Einsatz 2'!M35) ->  | U35: 0.00 | V35: 0.00 | W35: =IF('Einsatz 3'!I35="","",'Einsatz 3'!I35) ->  | X35: =IF('Einsatz 3'!J35="","",'Einsatz 3'!J35) ->  | Y35: 00:00:00 | Z35: =IF('Einsatz 3'!L35="","",'Einsatz 3'!L35) ->  | AA35: =IF('Einsatz 3'!M35="","",'Einsatz 3'!M35) ->  | AB35: 0.00 | AC35: 0.00 | AD35: 0.00 | AE35: 0.00
A36: Samstag | B36: 2023-01-28 | C36: ='Einsatz 1'!C37 ->  | D36: ='Einsatz 1'!D37 -> 0 | E36: ='Einsatz 1'!E37 -> 0 | F36: ='Einsatz 1'!F37 -> 0 | G36: ='Einsatz 1'!G37 -> 0 | H36: ='Einsatz 1'!H37 -> 00:00:00 | I36: =IF('Einsatz 1'!I37="","",'Einsatz 1'!I37) ->  | J36: =IF('Einsatz 1'!J37="","",'Einsatz 1'!J37) ->  | K36: 00:00:00 | L36: =IF('Einsatz 1'!L37="","",'Einsatz 1'!L37) ->  | M36: =IF('Einsatz 1'!M37="","",'Einsatz 1'!M37) ->  | N36: 0.00 | O36: 0.00 | P36: =IF('Einsatz 2'!I36="","",'Einsatz 2'!I36) ->  | Q36: =IF('Einsatz 2'!J36="","",'Einsatz 2'!J36) ->  | R36: 00:00:00 | S36: =IF('Einsatz 2'!L36="","",'Einsatz 2'!L36) ->  | T36: =IF('Einsatz 2'!M36="","",'Einsatz 2'!M36) ->  | U36: 0.00 | V36: 0.00 | W36: =IF('Einsatz 3'!I36="","",'Einsatz 3'!I36) ->  | X36: =IF('Einsatz 3'!J36="","",'Einsatz 3'!J36) ->  | Y36: 00:00:00 | Z36: =IF('Einsatz 3'!L36="","",'Einsatz 3'!L36) ->  | AA36: =IF('Einsatz 3'!M36="","",'Einsatz 3'!M36) ->  | AB36: 0.00 | AC36: 0.00 | AD36: 0.00 | AE36: 0.00
A37: Sonntag | B37: =IF(MONTH(B36+1)=W3,B36+1,"") -> 2023-01-29 | C37: ='Einsatz 1'!C38 ->  | D37: ='Einsatz 1'!D38 -> 0 | E37: ='Einsatz 1'!E38 -> 0 | F37: ='Einsatz 1'!F38 -> 0 | G37: ='Einsatz 1'!G38 -> 0 | H37: ='Einsatz 1'!H38 -> 00:00:00 | I37: =IF('Einsatz 1'!I38="","",'Einsatz 1'!I38) ->  | J37: =IF('Einsatz 1'!J38="","",'Einsatz 1'!J38) ->  | K37: 00:00:00 | L37: =IF('Einsatz 1'!L38="","",'Einsatz 1'!L38) ->  | M37: =IF('Einsatz 1'!M38="","",'Einsatz 1'!M38) ->  | N37: 0.00 | O37: 0.00 | P37: =IF('Einsatz 2'!I37="","",'Einsatz 2'!I37) ->  | Q37: =IF('Einsatz 2'!J37="","",'Einsatz 2'!J37) ->  | R37: 00:00:00 | S37: =IF('Einsatz 2'!L37="","",'Einsatz 2'!L37) ->  | T37: =IF('Einsatz 2'!M37="","",'Einsatz 2'!M37) ->  | U37: 0.00 | V37: 0.00 | W37: =IF('Einsatz 3'!I37="","",'Einsatz 3'!I37) ->  | X37: =IF('Einsatz 3'!J37="","",'Einsatz 3'!J37) ->  | Y37: 00:00:00 | Z37: =IF('Einsatz 3'!L37="","",'Einsatz 3'!L37) ->  | AA37: =IF('Einsatz 3'!M37="","",'Einsatz 3'!M37) ->  | AB37: 0.00 | AC37: 0.00 | AD37: 0.00 | AE37: 0.00
A38: Montag | B38: =IF(MONTH(B36+2)=W3,B36+2,"") -> 2023-01-30 | C38: ='Einsatz 1'!C39 ->  | D38: ='Einsatz 1'!D39 -> 0 | E38: ='Einsatz 1'!E39 -> 0 | F38: ='Einsatz 1'!F39 -> 0 | G38: ='Einsatz 1'!G39 -> 0 | H38: ='Einsatz 1'!H39 -> 00:00:00 | I38: =IF('Einsatz 1'!I39="","",'Einsatz 1'!I39) ->  | J38: =IF('Einsatz 1'!J39="","",'Einsatz 1'!J39) ->  | K38: 00:00:00 | L38: =IF('Einsatz 1'!L39="","",'Einsatz 1'!L39) ->  | M38: =IF('Einsatz 1'!M39="","",'Einsatz 1'!M39) ->  | N38: 0.00 | O38: 0.00 | P38: =IF('Einsatz 2'!I38="","",'Einsatz 2'!I38) ->  | Q38: =IF('Einsatz 2'!J38="","",'Einsatz 2'!J38) ->  | R38: 00:00:00 | S38: =IF('Einsatz 2'!L38="","",'Einsatz 2'!L38) ->  | T38: =IF('Einsatz 2'!M38="","",'Einsatz 2'!M38) ->  | U38: 0.00 | V38: 0.00 | W38: =IF('Einsatz 3'!I38="","",'Einsatz 3'!I38) ->  | X38: =IF('Einsatz 3'!J38="","",'Einsatz 3'!J38) ->  | Y38: 00:00:00 | Z38: =IF('Einsatz 3'!L38="","",'Einsatz 3'!L38) ->  | AA38: =IF('Einsatz 3'!M38="","",'Einsatz 3'!M38) ->  | AB38: 0.00 | AC38: 0.00 | AD38: 0.00 | AE38: 0.00
A39: Dienstag | B39: =IF(MONTH(B36+3)=W3,B36+3,"") -> 2023-01-31 | C39: ='Einsatz 1'!C40 ->  | D39: ='Einsatz 1'!D40 -> 0 | E39: ='Einsatz 1'!E40 -> 0 | F39: ='Einsatz 1'!F40 -> 0 | G39: ='Einsatz 1'!G40 -> 0 | H39: ='Einsatz 1'!H40 -> 00:00:00 | I39: =IF('Einsatz 1'!I40="","",'Einsatz 1'!I40) ->  | J39: =IF('Einsatz 1'!J40="","",'Einsatz 1'!J40) ->  | K39: 00:00:00 | L39: =IF('Einsatz 1'!L40="","",'Einsatz 1'!L40) ->  | M39: =IF('Einsatz 1'!M40="","",'Einsatz 1'!M40) ->  | N39: 0.00 | O39: 0.00 | P39: =IF('Einsatz 2'!I39="","",'Einsatz 2'!I39) ->  | Q39: =IF('Einsatz 2'!J39="","",'Einsatz 2'!J39) ->  | R39: 00:00:00 | S39: =IF('Einsatz 2'!L39="","",'Einsatz 2'!L39) ->  | T39: =IF('Einsatz 2'!M39="","",'Einsatz 2'!M39) ->  | U39: 0.00 | V39: 0.00 | W39: =IF('Einsatz 3'!I39="","",'Einsatz 3'!I39) ->  | X39: =IF('Einsatz 3'!J39="","",'Einsatz 3'!J39) ->  | Y39: 00:00:00 | Z39: =IF('Einsatz 3'!L39="","",'Einsatz 3'!L39) ->  | AA39: =IF('Einsatz 3'!M39="","",'Einsatz 3'!M39) ->  | AB39: 0.00 | AC39: 0.00 | AD39: 0.00 | AE39: 0.00
K40: =SUM(K9:K39) -> 00:00:00 | R40: =SUM(R9:R39) -> 00:00:00 | Y40: =SUM(Y9:Y39) -> 00:00:00
D41: ='Einsatz 1'!D42 ->  | E41: ='Einsatz 1'!E42 ->  | F41: ='Einsatz 1'!F42 ->  | G41: ='Einsatz 1'!G42 ->  | H41: ='Einsatz 1'!H42 -> 
A42: * Es gelten nur die gesetzlichen Feiertage. Weihnachten und 1. Mai sind unter Lohnart 5071 gesondert berücksichtigt. | I42: *** Auszuwählen ist "ja" nur an dem Tag, an dem die Rufbereitschaft begann.
A43: ** Auszuwählen ist an jedem Urlaubs- und/oder Krankheitstag jeweils "ja". | I43: **** Bei Einsätzen, für die eine Vor-Ort-Anwensenheit nicht erforderlich war, bitte auf "ja" klicken. In diesem Fall wird bei der Berechnung keine Wegezeit berücksichtigt.
B45: Ich versichere die Richtigkeit meiner Angaben (graue Felder): | K45: Die sachliche Richtigkeit der Angaben (graue Felder) wird bestätigt:
B49: Unterschrift Mitarbeiter*in | K49: Unterschrift Vorgesetzte*r | Z49: ='Einsatz 1'!BV46 -> Stand des Formulars: 01.02.2023
D54: Einsatz 1 | K54: Einsatz 2 | S54: Einsatz 3
A55: =A9 -> Sonntag | B55: =B9 -> 2023-01-01 | D55: =IF(M9="","",M9) ->  | K55: =IF(T9="","",T9) ->  | S55: =IF(AA9="","",AA9) -> 
A56: =A10 -> Montag | B56: 2023-01-02 | D56: =IF(M10="","",M10) ->  | K56: =IF(T10="","",T10) ->  | S56: =IF(AA10="","",AA10) -> 
A57: Dienstag | B57: 2023-01-03
A58: Mittwoch | B58: 2023-01-04
A59: Donnerstag | B59: 2023-01-05
A60: Freitag | B60: 2023-01-06
A61: Samstag | B61: 2023-01-07
A62: Sonntag | B62: 2023-01-08
A63: Montag | B63: 2023-01-09
A64: Dienstag | B64: 2023-01-10
A65: Mittwoch | B65: 2023-01-11
A66: Donnerstag | B66: 2023-01-12
A67: Freitag | B67: 2023-01-13
A68: Samstag | B68: 2023-01-14
A69: Sonntag | B69: 2023-01-15
A70: Montag | B70: 2023-01-16
A71: Dienstag | B71: 2023-01-17
A72: Mittwoch | B72: 2023-01-18
A73: Donnerstag | B73: 2023-01-19
A74: Freitag | B74: 2023-01-20
A75: Samstag | B75: 2023-01-21
A76: Sonntag | B76: 2023-01-22
A77: Montag | B77: 2023-01-23
A78: Dienstag | B78: 2023-01-24
A79: Mittwoch | B79: 2023-01-25
A80: Donnerstag | B80: 2023-01-26
A81: Freitag | B81: 2023-01-27
A82: Samstag | B82: 2023-01-28
A83: Sonntag | B83: 2023-01-29
A84: Montag | B84: 2023-01-30
A85: Dienstag | B85: 2023-01-31

Sheet DRUCKEN - Übertrag Berechnung
A1: Nachweis über Überstunden, Überstundenvergütung und Zeitzuschläge | Q1: Datum: | R1: =TODAY() -> 2023-02-01
C3: Übertrag und Berechnung | H3: Rufbereitschaft und Zeitzuschläge | N3: Monat: | O3: ='Einsatz 1'!BU3 -> 1 | P3: Jahr: | Q3: ='Einsatz 1'!BW3 -> 2023
C5: Name, Vorname: | D5: ='Einsatz 1'!D5 -> 0 | I5: Orga-Einheit: | J5: ='Einsatz 1'!L5 -> Dezernat 5.3 | O5: Freizeitausgleich wird gewährt: | P5: ='Einsatz 1'!BV5 -> ja
C6: Übliche Wegezeit (h:mm): | D6: ='Einsatz 1'!D6 -> 00:00:00 | F6: Industriestunden: | G6: =D6*24 -> 0.00
A7: Tag | B7: Datum | C7: gesetzl. Feiertag in NRW* | D7: Urlaub** | E7: Krankheit (AU)** | F7: Rufbereitschaft Mo-Fr 15:15 bis 07:00 des Folgetags*** | G7: Rufbereitschaft Sa, So, Feiertag (07:00 bis 07:00 des Folgetags)*** | H7: Rufbereitschaft weniger als 12 Std. (hh:mm) | I7: Stunden mit Freizeitausgleich | J7: Stunden ohne Freizeitausgleich | K7: Arbeit am Samstag 13-20 Uhr | L7: Arbeit am Samstag 20-21 Uhr | M7: Arbeit am 24.12.& 31.12. 6-14 Uhr | N7: Arbeit am 24.12. 14-24 Uhr; am 25./26.12. & am 01.05. | O7: Arbeit am Sonntag | P7: Arbeit am Feiertag mit Freizeitausgleich | Q7: Arbeit am Feiertag ohne Freizeitausgleich | R7: Nachtarbeit (21-6 Uhr)
D8: 5167 | E8: 5168 | F8: 5200 | G8: 5201 | H8: 5204 | I8: 5012 | J8: 5012 und 5014 | K8: 5080 | L8: 5083 | M8: 5070 | N8: 5071 | O8: 5050 | P8: 5061 | Q8: 5060 und 5061 | R8: 5040
A9: =TEXT(B9,"TTTT") -> Sonntag | B9: =DATE(Q3,O3,1) -> 2023-01-01 | C9: ='Einsatz 1'!C10 -> Neujahr | D9: ='Einsatz 1'!D10 -> 0 | E9: ='Einsatz 1'!E10 -> 0 | F9: ='Einsatz 1'!F10 -> 0 | G9: ='Einsatz 1'!G10 -> 0 | H9: ='Einsatz 1'!H10 -> 00:00:00 | I9: =IF($P$5="ja",'DRUCKEN - Alle Einsätze'!AD9+'DRUCKEN - Alle Einsätze'!AE9,0) -> 0.00 | J9: =IF($P$5="nein",'DRUCKEN - Alle Einsätze'!AD9+'DRUCKEN - Alle Einsätze'!AE9,0) -> 0.00 | K9: ='Einsatz 1'!BQ10+'Einsatz 2'!BQ9+'Einsatz 3'!BQ9 -> 0.00 | L9: ='Einsatz 1'!BR10+'Einsatz 2'!BR9+'Einsatz 3'!BR9 -> 0.00 | N9: ='Einsatz 1'!BT10+'Einsatz 2'!BT9+'Einsatz 3'!BT9 -> 0.00 | O9: =IF(N9<0,"",'Einsatz 1'!BU10+'Einsatz 2'!BU9+'Einsatz 3'!BU9) -> 0.00 | P9: =IF(N9<0,"",'Einsatz 1'!BV10+'Einsatz 2'!BV9+'Einsatz 3'!BV9) -> 0.00 | Q9: ='Einsatz 1'!BW10+'Einsatz 2'!BW9+'Einsatz 3'!BW9 -> 0.00 | R9: ='Einsatz 1'!BX10+'Einsatz 2'!BX9+'Einsatz 3'!BX9 -> 0.00
A10: =TEXT(B10,"TTTT") -> Montag | B10: =B9+1 -> 2023-01-02 | C10: ='Einsatz 1'!C11 ->  | D10: ='Einsatz 1'!D11 -> 0 | E10: ='Einsatz 1'!E11 -> 0 | F10: ='Einsatz 1'!F11 -> 0 | G10: ='Einsatz 1'!G11 -> 0 | H10: ='Einsatz 1'!H11 -> 00:00:00 | I10: =IF($P$5="ja",'DRUCKEN - Alle Einsätze'!AD10+'DRUCKEN - Alle Einsätze'!AE10,0) -> 0.00 | J10: =IF($P$5="nein",'DRUCKEN - Alle Einsätze'!AD10+'DRUCKEN - Alle Einsätze'!AE10,0) -> 0.00 | K10: ='Einsatz 1'!BQ11+'Einsatz 2'!BQ10+'Einsatz 3'!BQ10 -> 0.00 | L10: ='Einsatz 1'!BR11+'Einsatz 2'!BR10+'Einsatz 3'!BR10 -> 0.00 | O10: ='Einsatz 1'!BU11+'Einsatz 2'!BU10+'Einsatz 3'!BU10 -> 0.00 | P10: ='Einsatz 1'!BV11+'Einsatz 2'!BV10+'Einsatz 3'!BV10 -> 0.00 | Q10: ='Einsatz 1'!BW11+'Einsatz 2'!BW10+'Einsatz 3'!BW10 -> 0.00 | R10: ='Einsatz 1'!BX11+'Einsatz 2'!BX10+'Einsatz 3'!BX10 -> 0.00
A11: Dienstag | B11: =B10+1 -> 2023-01-03 | C11: ='Einsatz 1'!C12 ->  | D11: ='Einsatz 1'!D12 -> 0 | E11: ='Einsatz 1'!E12 -> 0 | F11: ='Einsatz 1'!F12 -> 0 | G11: ='Einsatz 1'!G12 -> 0 | H11: ='Einsatz 1'!H12 -> 00:00:00 | I11: =IF($P$5="ja",'DRUCKEN - Alle Einsätze'!AD11+'DRUCKEN - Alle Einsätze'!AE11,0) -> 0.00 | J11: =IF($P$5="nein",'DRUCKEN - Alle Einsätze'!AD11+'DRUCKEN - Alle Einsätze'!AE11,0) -> 0.00 | K11: ='Einsatz 1'!BQ12+'Einsatz 2'!BQ11+'Einsatz 3'!BQ11 -> 0.00 | L11: ='Einsatz 1'!BR12+'Einsatz 2'!BR11+'Einsatz 3'!BR11 -> 0.00 | O11: ='Einsatz 1'!BU12+'Einsatz 2'!BU11+'Einsatz 3'!BU11 -> 0.00 | P11: ='Einsatz 1'!BV12+'Einsatz 2'!BV11+'Einsatz 3'!BV11 -> 0.00 | Q11: ='Einsatz 1'!BW12+'Einsatz 2'!BW11+'Einsatz 3'!BW11 -> 0.00 | R11: ='Einsatz 1'!BX12+'Einsatz 2'!BX11+'Einsatz 3'!BX11 -> 0.00
A12: Mittwoch | B12: 2023-01-04 | C12: ='Einsatz 1'!C13 ->  | D12: ='Einsatz 1'!D13 -> 0 | E12: ='Einsatz 1'!E13 -> 0 | F12: ='Einsatz 1'!F13 -> 0 | G12: ='Einsatz 1'!G13 -> 0 | H12: ='Einsatz 1'!H13 -> 00:00:00 | I12: =IF($P$5="ja",'DRUCKEN - Alle Einsätze'!AD12+'DRUCKEN - Alle Einsätze'!AE12,0) -> 0.00 | J12: =IF($P$5="nein",'DRUCKEN - Alle Einsätze'!AD12+'DRUCKEN - Alle Einsätze'!AE12,0) -> 0.00 | K12: ='Einsatz 1'!BQ13+'Einsatz 2'!BQ12+'Einsatz 3'!BQ12 -> 0.00 | L12: ='Einsatz 1'!BR13+'Einsatz 2'!BR12+'Einsatz 3'!BR12 -> 0.00 | O12: ='Einsatz 1'!BU13+'Einsatz 2'!BU12+'Einsatz 3'!BU12 -> 0.00 | P12: ='Einsatz 1'!BV13+'Einsatz 2'!BV12+'Einsatz 3'!BV12 -> 0.00 | Q12: ='Einsatz 1'!BW13+'Einsatz 2'!BW12+'Einsatz 3'!BW12 -> 0.00 | R12: ='Einsatz 1'!BX13+'Einsatz 2'!BX12+'Einsatz 3'!BX12 -> 0.00
A13: Donnerstag | B13: 2023-01-05 | C13: ='Einsatz 1'!C14 ->  | D13: ='Einsatz 1'!D14 -> 0 | E13: ='Einsatz 1'!E14 -> 0 | F13: ='Einsatz 1'!F14 -> 0 | G13: ='Einsatz 1'!G14 -> 0 | H13: ='Einsatz 1'!H14 -> 00:00:00 | I13: =IF($P$5="ja",'DRUCKEN - Alle Einsätze'!AD13+'DRUCKEN - Alle Einsätze'!AE13,0) -> 0.00 | J13: =IF($P$5="nein",'DRUCKEN - Alle Einsätze'!AD13+'DRUCKEN - Alle Einsätze'!AE13,0) -> 0.00 | K13: ='Einsatz 1'!BQ14+'Einsatz 2'!BQ13+'Einsatz 3'!BQ13 -> 0.00 | L13: ='Einsatz 1'!BR14+'Einsatz 2'!BR13+'Einsatz 3'!BR13 -> 0.00 | O13: ='Einsatz 1'!BU14+'Einsatz 2'!BU13+'Einsatz 3'!BU13 -> 0.00 | P13: ='Einsatz 1'!BV14+'Einsatz 2'!BV13+'Einsatz 3'!BV13 -> 0.00 | Q13: ='Einsatz 1'!BW14+'Einsatz 2'!BW13+'Einsatz 3'!BW13 -> 0.00 | R13: ='Einsatz 1'!BX14+'Einsatz 2'!BX13+'Einsatz 3'!BX13 -> 0.00
A14: Freitag | B14: 2023-01-06 | C14: ='Einsatz 1'!C15 ->  | D14: ='Einsatz 1'!D15 -> 0 | E14: ='Einsatz 1'!E15 -> 0 | F14: ='Einsatz 1'!F15 -> 0 | G14: ='Einsatz 1'!G15 -> 0 | H14: ='Einsatz 1'!H15 -> 00:00:00 | I14: =IF($P$5="ja",'DRUCKEN - Alle Einsätze'!AD14+'DRUCKEN - Alle Einsätze'!AE14,0) -> 0.00 | J14: =IF($P$5="nein",'DRUCKEN - Alle Einsätze'!AD14+'DRUCKEN - Alle Einsätze'!AE14,0) -> 0.00 | K14: ='Einsatz 1'!BQ15+'Einsatz 2'!BQ14+'Einsatz 3'!BQ14 -> 0.00 | L14: ='Einsatz 1'!BR15+'Einsatz 2'!BR14+'Einsatz 3'!BR14 -> 0.00 | O14: ='Einsatz 1'!BU15+'Einsatz 2'!BU14+'Einsatz 3'!BU14 -> 0.00 | P14: ='Einsatz 1'!BV15+'Einsatz 2'!BV14+'Einsatz 3'!BV14 -> 0.00 | Q14: ='Einsatz 1'!BW15+'Einsatz 2'!BW14+'Einsatz 3'!BW14 -> 0.00 | R14: ='Einsatz 1'!BX15+'Einsatz 2'!BX14+'Einsatz 3'!BX14 -> 0.00
A15: Samstag | B15: 2023-01-07 | C15: ='Einsatz 1'!C16 ->  | D15: ='Einsatz 1'!D16 -> 0 | E15: ='Einsatz 1'!E16 -> 0 | F15: ='Einsatz 1'!F16 -> 0 | G15: ='Einsatz 1'!G16 -> 0 | H15: ='Einsatz 1'!H16 -> 00:00:00 | I15: =IF($P$5="ja",'DRUCKEN - Alle Einsätze'!AD15+'DRUCKEN - Alle Einsätze'!AE15,0) -> 0.00 | J15: =IF($P$5="nein",'DRUCKEN - Alle Einsätze'!AD15+'DRUCKEN - Alle Einsätze'!AE15,0) -> 0.00 | K15: ='Einsatz 1'!BQ16+'Einsatz 2'!BQ15+'Einsatz 3'!BQ15 -> 0.00 | L15: ='Einsatz 1'!BR16+'Einsatz 2'!BR15+'Einsatz 3'!BR15 -> 0.00 | O15: ='Einsatz 1'!BU16+'Einsatz 2'!BU15+'Einsatz 3'!BU15 -> 0.00 | P15: ='Einsatz 1'!BV16+'Einsatz 2'!BV15+'Einsatz 3'!BV15 -> 0.00 | Q15: ='Einsatz 1'!BW16+'Einsatz 2'!BW15+'Einsatz 3'!BW15 -> 0.00 | R15: ='Einsatz 1'!BX16+'Einsatz 2'!BX15+'Einsatz 3'!BX15 -> 0.00
A16: Sonntag | B16: 2023-01-08 | C16: ='Einsatz 1'!C17 ->  | D16: ='Einsatz 1'!D17 -> 0 | E16: ='Einsatz 1'!E17 -> 0 | F16: ='Einsatz 1'!F17 -> 0 | G16: ='Einsatz 1'!G17 -> 0 | H16: ='Einsatz 1'!H17 -> 00:00:00 | I16: =IF($P$5="ja",'DRUCKEN - Alle Einsätze'!AD16+'DRUCKEN - Alle Einsätze'!AE16,0) -> 0.00 | J16: =IF($P$5="nein",'DRUCKEN - Alle Einsätze'!AD16+'DRUCKEN - Alle Einsätze'!AE16,0) -> 0.00 | K16: ='Einsatz 1'!BQ17+'Einsatz 2'!BQ16+'Einsatz 3'!BQ16 -> 0.00 | L16: ='Einsatz 1'!BR17+'Einsatz 2'!BR16+'Einsatz 3'!BR16 -> 0.00 | O16: ='Einsatz 1'!BU17+'Einsatz 2'!BU16+'Einsatz 3'!BU16 -> 0.00 | P16: ='Einsatz 1'!BV17+'Einsatz 2'!BV16+'Einsatz 3'!BV16 -> 0.00 | Q16: ='Einsatz 1'!BW17+'Einsatz 2'!BW16+'Einsatz 3'!BW16 -> 0.00 | R16: ='Einsatz 1'!BX17+'Einsatz 2'!BX16+'Einsatz 3'!BX16 -> 0.00
A17: Montag | B17: 2023-01-09 | C17: ='Einsatz 1'!C18 ->  | D17: ='Einsatz 1'!D18 -> 0 | E17: ='Einsatz 1'!E18 -> 0 | F17: ='Einsatz 1'!F18 -> 0 | G17: ='Einsatz 1'!G18 -> 0 | H17: ='Einsatz 1'!H18 -> 00:00:00 | I17: =IF($P$5="ja",'DRUCKEN - Alle Einsätze'!AD17+'DRUCKEN - Alle Einsätze'!AE17,0) -> 0.00 | J17: =IF($P$5="nein",'DRUCKEN - Alle Einsätze'!AD17+'DRUCKEN - Alle Einsätze'!AE17,0) -> 0.00 | K17: ='Einsatz 1'!BQ18+'Einsatz 2'!BQ17+'Einsatz 3'!BQ17 -> 0.00 | L17: ='Einsatz 1'!BR18+'Einsatz 2'!BR17+'Einsatz 3'!BR17 -> 0.00 | O17: ='Einsatz 1'!BU18+'Einsatz 2'!BU17+'Einsatz 3'!BU17 -> 0.00 | P17: ='Einsatz 1'!BV18+'Einsatz 2'!BV17+'Einsatz 3'!BV17 -> 0.00 | Q17: ='Einsatz 1'!BW18+'Einsatz 2'!BW17+'Einsatz 3'!BW17 -> 0.00 | R17: ='Einsatz 1'!BX18+'Einsatz 2'!BX17+'Einsatz 3'!BX17 -> 0.00
A18: Dienstag | B18: 2023-01-10 | C18: ='Einsatz 1'!C19 ->  | D18: ='Einsatz 1'!D19 -> 0 | E18: ='Einsatz 1'!E19 -> 0 | F18: ='Einsatz 1'!F19 -> 0 | G18: ='Einsatz 1'!G19 -> 0 | H18: ='Einsatz 1'!H19 -> 00:00:00 | I18: =IF($P$5="ja",'DRUCKEN - Alle Einsätze'!AD18+'DRUCKEN - Alle Einsätze'!AE18,0) -> 0.00 | J18: =IF($P$5="nein",'DRUCKEN - Alle Einsätze'!AD18+'DRUCKEN - Alle Einsätze'!AE18,0) -> 0.00 | K18: ='Einsatz 1'!BQ19+'Einsatz 2'!BQ18+'Einsatz 3'!BQ18 -> 0.00 | L18: ='Einsatz 1'!BR19+'Einsatz 2'!BR18+'Einsatz 3'!BR18 -> 0.00 | O18: ='Einsatz 1'!BU19+'Einsatz 2'!BU18+'Einsatz 3'!BU18 -> 0.00 | P18: ='Einsatz 1'!BV19+'Einsatz 2'!BV18+'Einsatz 3'!BV18 -> 0.00 | Q18: ='Einsatz 1'!BW19+'Einsatz 2'!BW18+'Einsatz 3'!BW18 -> 0.00 | R18: ='Einsatz 1'!BX19+'Einsatz 2'!BX18+'Einsatz 3'!BX18 -> 0.00
A19: Mittwoch | B19: 2023-01-11 | C19: ='Einsatz 1'!C20 ->  | D19: ='Einsatz 1'!D20 -> 0 | E19: ='Einsatz 1'!E20 -> 0 | F19: ='Einsatz 1'!F20 -> 0 | G19: ='Einsatz 1'!G20 -> 0 | H19: ='Einsatz 1'!H20 -> 00:00:00 | I19: =IF($P$5="ja",'DRUCKEN - Alle Einsätze'!AD19+'DRUCKEN - Alle Einsätze'!AE19,0) -> 0.00 | J19: =IF($P$5="nein",'DRUCKEN - Alle Einsätze'!AD19+'DRUCKEN - Alle Einsätze'!AE19,0) -> 0.00 | K19: ='Einsatz 1'!BQ20+'Einsatz 2'!BQ19+'Einsatz 3'!BQ19 -> 0.00 | L19: ='Einsatz 1'!BR20+'Einsatz 2'!BR19+'Einsatz 3'!BR19 -> 0.00 | O19: ='Einsatz 1'!BU20+'Einsatz 2'!BU19+'Einsatz 3'!BU19 -> 0.00 | P19: ='Einsatz 1'!BV20+'Einsatz 2'!BV19+'Einsatz 3'!BV19 -> 0.00 | Q19: ='Einsatz 1'!BW20+'Einsatz 2'!BW19+'Einsatz 3'!BW19 -> 0.00 | R19: ='Einsatz 1'!BX20+'Einsatz 2'!BX19+'Einsatz 3'!BX19 -> 0.00
A20: Donnerstag | B20: 2023-01-12 | C20: ='Einsatz 1'!C21 ->  | D20: ='Einsatz 1'!D21 -> 0 | E20: ='Einsatz 1'!E21 -> 0 | F20: ='Einsatz 1'!F21 -> 0 | G20: ='Einsatz 1'!G21 -> 0 | H20: ='Einsatz 1'!H21 -> 00:00:00 | I20: =IF($P$5="ja",'DRUCKEN - Alle Einsätze'!AD20+'DRUCKEN - Alle Einsätze'!AE20,0) -> 0.00 | J20: =IF($P$5="nein",'DRUCKEN - Alle Einsätze'!AD20+'DRUCKEN - Alle Einsätze'!AE20,0) -> 0.00 | K20: ='Einsatz 1'!BQ21+'Einsatz 2'!BQ20+'Einsatz 3'!BQ20 -> 0.00 | L20: ='Einsatz 1'!BR21+'Einsatz 2'!BR20+'Einsatz 3'!BR20 -> 0.00 | O20: ='Einsatz 1'!BU21+'Einsatz 2'!BU20+'Einsatz 3'!BU20 -> 0.00 | P20: ='Einsatz 1'!BV21+'Einsatz 2'!BV20+'Einsatz 3'!BV20 -> 0.00 | Q20: ='Einsatz 1'!BW21+'Einsatz 2'!BW20+'Einsatz 3'!BW20 -> 0.00 | R20: ='Einsatz 1'!BX21+'Einsatz 2'!BX20+'Einsatz 3'!BX20 -> 0.00
A21: Freitag | B21: 2023-01-13 | C21: ='Einsatz 1'!C22 ->  | D21: ='Einsatz 1'!D22 -> 0 | E21: ='Einsatz 1'!E22 -> 0 | F21: ='Einsatz 1'!F22 -> 0 | G21: ='Einsatz 1'!G22 -> 0 | H21: ='Einsatz 1'!H22 -> 00:00:00 | I21: =IF($P$5="ja",'DRUCKEN - Alle Einsätze'!AD21+'DRUCKEN - Alle Einsätze'!AE21,0) -> 0.00 | J21: =IF($P$5="nein",'DRUCKEN - Alle Einsätze'!AD21+'DRUCKEN - Alle Einsätze'!AE21,0) -> 0.00 | K21: ='Einsatz 1'!BQ22+'Einsatz 2'!BQ21+'Einsatz 3'!BQ21 -> 0.00 | L21: ='Einsatz 1'!BR22+'Einsatz 2'!BR21+'Einsatz 3'!BR21 -> 0.00 | O21: ='Einsatz 1'!BU22+'Einsatz 2'!BU21+'Einsatz 3'!BU21 -> 0.00 | P21: ='Einsatz 1'!BV22+'Einsatz 2'!BV21+'Einsatz 3'!BV21 -> 0.00 | Q21: ='Einsatz 1'!BW22+'Einsatz 2'!BW21+'Einsatz 3'!BW21 -> 0.00 | R21: ='Einsatz 1'!BX22+'Einsatz 2'!BX21+'Einsatz 3'!BX21 -> 0.00
A22: Samstag | B22: 2023-01-14 | C22: ='Einsatz 1'!C23 ->  | D22: ='Einsatz 1'!D23 -> 0 | E22: ='Einsatz 1'!E23 -> 0 | F22: ='Einsatz 1'!F23 -> 0 | G22: ='Einsatz 1'!G23 -> 0 | H22: ='Einsatz 1'!H23 -> 00:00:00 | I22: =IF($P$5="ja",'DRUCKEN - Alle Einsätze'!AD22+'DRUCKEN - Alle Einsätze'!AE22,0) -> 0.00 | J22: =IF($P$5="nein",'DRUCKEN - Alle Einsätze'!AD22+'DRUCKEN - Alle Einsätze'!AE22,0) -> 0.00 | K22: ='Einsatz 1'!BQ23+'Einsatz 2'!BQ22+'Einsatz 3'!BQ22 -> 0.00 | L22: ='Einsatz 1'!BR23+'Einsatz 2'!BR22+'Einsatz 3'!BR22 -> 0.00 | O22: ='Einsatz 1'!BU23+'Einsatz 2'!BU22+'Einsatz 3'!BU22 -> 0.00 | P22: ='Einsatz 1'!BV23+'Einsatz 2'!BV22+'Einsatz 3'!BV22 -> 0.00 | Q22: ='Einsatz 1'!BW23+'Einsatz 2'!BW22+'Einsatz 3'!BW22 -> 0.00 | R22: ='Einsatz 1'!BX23+'Einsatz 2'!BX22+'Einsatz 3'!BX22 -> 0.00
A23: Sonntag | B23: 2023-01-15 | C23: ='Einsatz 1'!C24 ->  | D23: ='Einsatz 1'!D24 -> 0 | E23: ='Einsatz 1'!E24 -> 0 | F23: ='Einsatz 1'!F24 -> 0 | G23: ='Einsatz 1'!G24 -> 0 | H23: ='Einsatz 1'!H24 -> 00:00:00 | I23: =IF($P$5="ja",'DRUCKEN - Alle Einsätze'!AD23+'DRUCKEN - Alle Einsätze'!AE23,0) -> 0.00 | J23: =IF($P$5="nein",'DRUCKEN - Alle Einsätze'!AD23+'DRUCKEN - Alle Einsätze'!AE23,0) -> 0.00 | K23: ='Einsatz 1'!BQ24+'Einsatz 2'!BQ23+'Einsatz 3'!BQ23 -> 0.00 | L23: ='Einsatz 1'!BR24+'Einsatz 2'!BR23+'Einsatz 3'!BR23 -> 0.00 | O23: ='Einsatz 1'!BU24+'Einsatz 2'!BU23+'Einsatz 3'!BU23 -> 0.00 | P23: ='Einsatz 1'!BV24+'Einsatz 2'!BV23+'Einsatz 3'!BV23 -> 0.00 | Q23: ='Einsatz 1'!BW24+'Einsatz 2'!BW23+'Einsatz 3'!BW23 -> 0.00 | R23: ='Einsatz 1'!BX24+'Einsatz 2'!BX23+'Einsatz 3'!BX23 -> 0.00
A24: Montag | B24: 2023-01-16 | C24: ='Einsatz 1'!C25 ->  | D24: ='Einsatz 1'!D25 -> 0 | E24: ='Einsatz 1'!E25 -> 0 | F24: ='Einsatz 1'!F25 -> 0 | G24: ='Einsatz 1'!G25 -> 0 | H24: ='Einsatz 1'!H25 -> 00:00:00 | I24: =IF($P$5="ja",'DRUCKEN - Alle Einsätze'!AD24+'DRUCKEN - Alle Einsätze'!AE24,0) -> 0.00 | J24: =IF($P$5="nein",'DRUCKEN - Alle Einsätze'!AD24+'DRUCKEN - Alle Einsätze'!AE24,0) -> 0.00 | K24: ='Einsatz 1'!BQ25+'Einsatz 2'!BQ24+'Einsatz 3'!BQ24 -> 0.00 | L24: ='Einsatz 1'!BR25+'Einsatz 2'!BR24+'Einsatz 3'!BR24 -> 0.00 | O24: ='Einsatz 1'!BU25+'Einsatz 2'!BU24+'Einsatz 3'!BU24 -> 0.00 | P24: ='Einsatz 1'!BV25+'Einsatz 2'!BV24+'Einsatz 3'!BV24 -> 0.00 | Q24: ='Einsatz 1'!BW25+'Einsatz 2'!BW24+'Einsatz 3'!BW24 -> 0.00 | R24: ='Einsatz 1'!BX25+'Einsatz 2'!BX24+'Einsatz 3'!BX24 -> 0.00
A25: Dienstag | B25: 2023-01-17 | C25: ='Einsatz 1'!C26 ->  | D25: ='Einsatz 1'!D26 -> 0 | E25: ='Einsatz 1'!E26 -> 0 | F25: ='Einsatz 1'!F26 -> 0 | G25: ='Einsatz 1'!G26 -> 0 | H25: ='Einsatz 1'!H26 -> 00:00:00 | I25: =IF($P$5="ja",'DRUCKEN - Alle Einsätze'!AD25+'DRUCKEN - Alle Einsätze'!AE25,0) -> 0.00 | J25: =IF($P$5="nein",'DRUCKEN - Alle Einsätze'!AD25+'DRUCKEN - Alle Einsätze'!AE25,0) -> 0.00 | K25: ='Einsatz 1'!BQ26+'Einsatz 2'!BQ25+'Einsatz 3'!BQ25 -> 0.00 | L25: ='Einsatz 1'!BR26+'Einsatz 2'!BR25+'Einsatz 3'!BR25 -> 0.00 | O25: ='Einsatz 1'!BU26+'Einsatz 2'!BU25+'Einsatz 3'!BU25 -> 0.00 | P25: ='Einsatz 1'!BV26+'Einsatz 2'!BV25+'Einsatz 3'!BV25 -> 0.00 | Q25: ='Einsatz 1'!BW26+'Einsatz 2'!BW25+'Einsatz 3'!BW25 -> 0.00 | R25: ='Einsatz 1'!BX26+'Einsatz 2'!BX25+'Einsatz 3'!BX25 -> 0.00
A26: Mittwoch | B26: 2023-01-18 | C26: ='Einsatz 1'!C27 ->  | D26: ='Einsatz 1'!D27 -> 0 | E26: ='Einsatz 1'!E27 -> 0 | F26: ='Einsatz 1'!F27 -> 0 | G26: ='Einsatz 1'!G27 -> 0 | H26: ='Einsatz 1'!H27 -> 00:00:00 | I26: =IF($P$5="ja",'DRUCKEN - Alle Einsätze'!AD26+'DRUCKEN - Alle Einsätze'!AE26,0) -> 0.00 | J26: =IF($P$5="nein",'DRUCKEN - Alle Einsätze'!AD26+'DRUCKEN - Alle Einsätze'!AE26,0) -> 0.00 | K26: ='Einsatz 1'!BQ27+'Einsatz 2'!BQ26+'Einsatz 3'!BQ26 -> 0.00 | L26: ='Einsatz 1'!BR27+'Einsatz 2'!BR26+'Einsatz 3'!BR26 -> 0.00 | O26: ='Einsatz 1'!BU27+'Einsatz 2'!BU26+'Einsatz 3'!BU26 -> 0.00 | P26: ='Einsatz 1'!BV27+'Einsatz 2'!BV26+'Einsatz 3'!BV26 -> 0.00 | Q26: ='Einsatz 1'!BW27+'Einsatz 2'!BW26+'Einsatz 3'!BW26 -> 0.00 | R26: ='Einsatz 1'!BX27+'Einsatz 2'!BX26+'Einsatz 3'!BX26 -> 0.00
A27: Donnerstag | B27: 2023-01-19 | C27: ='Einsatz 1'!C28 ->  | D27: ='Einsatz 1'!D28 -> 0 | E27: ='Einsatz 1'!E28 -> 0 | F27: ='Einsatz 1'!F28 -> 0 | G27: ='Einsatz 1'!G28 -> 0 | H27: ='Einsatz 1'!H28 -> 00:00:00 | I27: =IF($P$5="ja",'DRUCKEN - Alle Einsätze'!AD27+'DRUCKEN - Alle Einsätze'!AE27,0) -> 0.00 | J27: =IF($P$5="nein",'DRUCKEN - Alle Einsätze'!AD27+'DRUCKEN - Alle Einsätze'!AE27,0) -> 0.00 | K27: ='Einsatz 1'!BQ28+'Einsatz 2'!BQ27+'Einsatz 3'!BQ27 -> 0.00 | L27: ='Einsatz 1'!BR28+'Einsatz 2'!BR27+'Einsatz 3'!BR27 -> 0.00 | O27: ='Einsatz 1'!BU28+'Einsatz 2'!BU27+'Einsatz 3'!BU27 -> 0.00 | P27: ='Einsatz 1'!BV28+'Einsatz 2'!BV27+'Einsatz 3'!BV27 -> 0.00 | Q27: ='Einsatz 1'!BW28+'Einsatz 2'!BW27+'Einsatz 3'!BW27 -> 0.00 | R27: ='Einsatz 1'!BX28+'Einsatz 2'!BX27+'Einsatz 3'!BX27 -> 0.00
A28: Freitag | B28: 2023-01-20 | C28: ='Einsatz 1'!C29 ->  | D28: ='Einsatz 1'!D29 -> 0 | E28: ='Einsatz 1'!E29 -> 0 | F28: ='Einsatz 1'!F29 -> 0 | G28: ='Einsatz 1'!G29 -> 0 | H28: ='Einsatz 1'!H29 -> 00:00:00 | I28: =IF($P$5="ja",'DRUCKEN - Alle Einsätze'!AD28+'DRUCKEN - Alle Einsätze'!AE28,0) -> 0.00 | J28: =IF($P$5="nein",'DRUCKEN - Alle Einsätze'!AD28+'DRUCKEN - Alle Einsätze'!AE28,0) -> 0.00 | K28: ='Einsatz 1'!BQ29+'Einsatz 2'!BQ28+'Einsatz 3'!BQ28 -> 0.00 | L28: ='Einsatz 1'!BR29+'Einsatz 2'!BR28+'Einsatz 3'!BR28 -> 0.00 | O28: ='Einsatz 1'!BU29+'Einsatz 2'!BU28+'Einsatz 3'!BU28 -> 0.00 | P28: ='Einsatz 1'!BV29+'Einsatz 2'!BV28+'Einsatz 3'!BV28 -> 0.00 | Q28: ='Einsatz 1'!BW29+'Einsatz 2'!BW28+'Einsatz 3'!BW28 -> 0.00 | R28: ='Einsatz 1'!BX29+'Einsatz 2'!BX28+'Einsatz 3'!BX28 -> 0.00
A29: Samstag | B29: 2023-01-21 | C29: ='Einsatz 1'!C30 ->  | D29: ='Einsatz 1'!D30 -> 0 | E29: ='Einsatz 1'!E30 -> 0 | F29: ='Einsatz 1'!F30 -> 0 | G29: ='Einsatz 1'!G30 -> 0 | H29: ='Einsatz 1'!H30 -> 00:00:00 | I29: =IF($P$5="ja",'DRUCKEN - Alle Einsätze'!AD29+'DRUCKEN - Alle Einsätze'!AE29,0) -> 0.00 | J29: =IF($P$5="nein",'DRUCKEN - Alle Einsätze'!AD29+'DRUCKEN - Alle Einsätze'!AE29,0) -> 0.00 | K29: ='Einsatz 1'!BQ30+'Einsatz 2'!BQ29+'Einsatz 3'!BQ29 -> 0.00 | L29: ='Einsatz 1'!BR30+'Einsatz 2'!BR29+'Einsatz 3'!BR29 -> 0.00 | O29: ='Einsatz 1'!BU30+'Einsatz 2'!BU29+'Einsatz 3'!BU29 -> 0.00 | P29: ='Einsatz 1'!BV30+'Einsatz 2'!BV29+'Einsatz 3'!BV29 -> 0.00 | Q29: ='Einsatz 1'!BW30+'Einsatz 2'!BW29+'Einsatz 3'!BW29 -> 0.00 | R29: ='Einsatz 1'!BX30+'Einsatz 2'!BX29+'Einsatz 3'!BX29 -> 0.00
A30: Sonntag | B30: 2023-01-22 | C30: ='Einsatz 1'!C31 ->  | D30: ='Einsatz 1'!D31 -> 0 | E30: ='Einsatz 1'!E31 -> 0 | F30: ='Einsatz 1'!F31 -> 0 | G30: ='Einsatz 1'!G31 -> 0 | H30: ='Einsatz 1'!H31 -> 00:00:00 | I30: =IF($P$5="ja",'DRUCKEN - Alle Einsätze'!AD30+'DRUCKEN - Alle Einsätze'!AE30,0) -> 0.00 | J30: =IF($P$5="nein",'DRUCKEN - Alle Einsätze'!AD30+'DRUCKEN - Alle Einsätze'!AE30,0) -> 0.00 | K30: ='Einsatz 1'!BQ31+'Einsatz 2'!BQ30+'Einsatz 3'!BQ30 -> 0.00 | L30: ='Einsatz 1'!BR31+'Einsatz 2'!BR30+'Einsatz 3'!BR30 -> 0.00 | O30: ='Einsatz 1'!BU31+'Einsatz 2'!BU30+'Einsatz 3'!BU30 -> 0.00 | P30: ='Einsatz 1'!BV31+'Einsatz 2'!BV30+'Einsatz 3'!BV30 -> 0.00 | Q30: ='Einsatz 1'!BW31+'Einsatz 2'!BW30+'Einsatz 3'!BW30 -> 0.00 | R30: ='Einsatz 1'!BX31+'Einsatz 2'!BX30+'Einsatz 3'!BX30 -> 0.00
A31: Montag | B31: 2023-01-23 | C31: ='Einsatz 1'!C32 ->  | D31: ='Einsatz 1'!D32 -> 0 | E31: ='Einsatz 1'!E32 -> 0 | F31: ='Einsatz 1'!F32 -> 0 | G31: ='Einsatz 1'!G32 -> 0 | H31: ='Einsatz 1'!H32 -> 00:00:00 | I31: =IF($P$5="ja",'DRUCKEN - Alle Einsätze'!AD31+'DRUCKEN - Alle Einsätze'!AE31,0) -> 0.00 | J31: =IF($P$5="nein",'DRUCKEN - Alle Einsätze'!AD31+'DRUCKEN - Alle Einsätze'!AE31,0) -> 0.00 | K31: ='Einsatz 1'!BQ32+'Einsatz 2'!BQ31+'Einsatz 3'!BQ31 -> 0.00 | L31: ='Einsatz 1'!BR32+'Einsatz 2'!BR31+'Einsatz 3'!BR31 -> 0.00 | O31: ='Einsatz 1'!BU32+'Einsatz 2'!BU31+'Einsatz 3'!BU31 -> 0.00 | P31: ='Einsatz 1'!BV32+'Einsatz 2'!BV31+'Einsatz 3'!BV31 -> 0.00 | Q31: ='Einsatz 1'!BW32+'Einsatz 2'!BW31+'Einsatz 3'!BW31 -> 0.00 | R31: ='Einsatz 1'!BX32+'Einsatz 2'!BX31+'Einsatz 3'!BX31 -> 0.00
A32: Dienstag | B32: 2023-01-24 | C32: ='Einsatz 1'!C33 ->  | D32: ='Einsatz 1'!D33 -> 0 | E32: ='Einsatz 1'!E33 -> 0 | F32: ='Einsatz 1'!F33 -> 0 | G32: ='Einsatz 1'!G33 -> 0 | H32: ='Einsatz 1'!H33 -> 00:00:00 | I32: =IF($P$5="ja",'DRUCKEN - Alle Einsätze'!AD32+'DRUCKEN - Alle Einsätze'!AE32,0) -> 0.00 | J32: =IF($P$5="nein",'DRUCKEN - Alle Einsätze'!AD32+'DRUCKEN - Alle Einsätze'!AE32,0) -> 0.00 | K32: ='Einsatz 1'!BQ33+'Einsatz 2'!BQ32+'Einsatz 3'!BQ32 -> 0.00 | L32: ='Einsatz 1'!BR33+'Einsatz 2'!BR32+'Einsatz 3'!BR32 -> 0.00 | M32: =IF($O$3=12,'Einsatz 1'!BM33+'Einsatz 2'!BM32+'Einsatz 3'!BM32,'Einsatz 1'!BS33+'Einsatz 2'!BS32+'Einsatz 3'!BS32) -> 0.00 | N32: ='Einsatz 1'!BN33+'Einsatz 2'!BN32+'Einsatz 3'!BN32 -> 0.00 | O32: ='Einsatz 1'!BU33+'Einsatz 2'!BU32+'Einsatz 3'!BU32 -> 0.00 | P32: ='Einsatz 1'!BV33+'Einsatz 2'!BV32+'Einsatz 3'!BV32 -> 0.00 | Q32: ='Einsatz 1'!BW33+'Einsatz 2'!BW32+'Einsatz 3'!BW32 -> 0.00 | R32: ='Einsatz 1'!BX33+'Einsatz 2'!BX32+'Einsatz 3'!BX32 -> 0.00
A33: Mittwoch | B33: 2023-01-25 | C33: ='Einsatz 1'!C34 ->  | D33: ='Einsatz 1'!D34 -> 0 | E33: ='Einsatz 1'!E34 -> 0 | F33: ='Einsatz 1'!F34 -> 0 | G33: ='Einsatz 1'!G34 -> 0 | H33: ='Einsatz 1'!H34 -> 00:00:00 | I33: =IF($P$5="ja",'DRUCKEN - Alle Einsätze'!AD33+'DRUCKEN - Alle Einsätze'!AE33,0) -> 0.00 | J33: =IF($P$5="nein",'DRUCKEN - Alle Einsätze'!AD33+'DRUCKEN - Alle Einsätze'!AE33,0) -> 0.00 | K33: ='Einsatz 1'!BQ34+'Einsatz 2'!BQ33+'Einsatz 3'!BQ33 -> 0.00 | L33: ='Einsatz 1'!BR34+'Einsatz 2'!BR33+'Einsatz 3'!BR33 -> 0.00 | M33: ='Einsatz 1'!BS34+'Einsatz 2'!BS33+'Einsatz 3'!BS33 -> 0.00 | N33: ='Einsatz 1'!BT34+'Einsatz 2'!BT33+'Einsatz 3'!BT33 -> 0.00 | O33: =IF(N33>0,"",'Einsatz 1'!BU34+'Einsatz 2'!BU33+'Einsatz 3'!BU33) -> 0.00 | P33: =IF($O$3=12,0,IF(N33<0,"",'Einsatz 1'!BV34+'Einsatz 2'!BV33+'Einsatz 3'!BV33)) -> 0.00 | Q33: =IF($O$3=12,0,'Einsatz 1'!BW34+'Einsatz 2'!BW33+'Einsatz 3'!BW33) -> 0.00 | R33: ='Einsatz 1'!BX34+'Einsatz 2'!BX33+'Einsatz 3'!BX33 -> 0.00
A34: Donnerstag | B34: 2023-01-26 | C34: ='Einsatz 1'!C35 ->  | D34: ='Einsatz 1'!D35 -> 0 | E34: ='Einsatz 1'!E35 -> 0 | F34: ='Einsatz 1'!F35 -> 0 | G34: ='Einsatz 1'!G35 -> 0 | H34: ='Einsatz 1'!H35 -> 00:00:00 | I34: =IF($P$5="ja",'DRUCKEN - Alle Einsätze'!AD34+'DRUCKEN - Alle Einsätze'!AE34,0) -> 0.00 | J34: =IF($P$5="nein",'DRUCKEN - Alle Einsätze'!AD34+'DRUCKEN - Alle Einsätze'!AE34,0) -> 0.00 | K34: ='Einsatz 1'!BQ35+'Einsatz 2'!BQ34+'Einsatz 3'!BQ34 -> 0.00 | L34: ='Einsatz 1'!BR35+'Einsatz 2'!BR34+'Einsatz 3'!BR34 -> 0.00 | M34: ='Einsatz 1'!BS35+'Einsatz 2'!BS34+'Einsatz 3'!BS34 -> 0.00 | N34: ='Einsatz 1'!BT35+'Einsatz 2'!BT34+'Einsatz 3'!BT34 -> 0.00 | O34: =IF(N34<0,"",'Einsatz 1'!BU35+'Einsatz 2'!BU34+'Einsatz 3'!BU34) -> 0.00 | P34: =IF($O$3=12,0,IF(N34<0,"",'Einsatz 1'!BV35+'Einsatz 2'!BV34+'Einsatz 3'!BV34)) -> 0.00 | Q34: =IF($O$3=12,0,'Einsatz 1'!BW35+'Einsatz 2'!BW34+'Einsatz 3'!BW34) -> 0.00 | R34: ='Einsatz 1'!BX35+'Einsatz 2'!BX34+'Einsatz 3'!BX34 -> 0.00
A35: Freitag | B35: 2023-01-27 | C35: ='Einsatz 1'!C36 ->  | D35: ='Einsatz 1'!D36 -> 0 | E35: ='Einsatz 1'!E36 -> 0 | F35: ='Einsatz 1'!F36 -> 0 | G35: ='Einsatz 1'!G36 -> 0 | H35: ='Einsatz 1'!H36 -> 00:00:00 | I35: =IF($P$5="ja",'DRUCKEN - Alle Einsätze'!AD35+'DRUCKEN - Alle Einsätze'!AE35,0) -> 0.00 | J35: =IF($P$5="nein",'DRUCKEN - Alle Einsätze'!AD35+'DRUCKEN - Alle Einsätze'!AE35,0) -> 0.00 | K35: ='Einsatz 1'!BQ36+'Einsatz 2'!BQ35+'Einsatz 3'!BQ35 -> 0.00 | L35: ='Einsatz 1'!BR36+'Einsatz 2'!BR35+'Einsatz 3'!BR35 -> 0.00 | O35: ='Einsatz 1'!BU36+'Einsatz 2'!BU35+'Einsatz 3'!BU35 -> 0.00 | P35: ='Einsatz 1'!BV36+'Einsatz 2'!BV35+'Einsatz 3'!BV35 -> 0.00 | Q35: ='Einsatz 1'!BW36+'Einsatz 2'!BW35+'Einsatz 3'!BW35 -> 0.00 | R35: ='Einsatz 1'!BX36+'Einsatz 2'!BX35+'Einsatz 3'!BX35 -> 0.00
A36: Samstag | B36: 2023-01-28 | C36: ='Einsatz 1'!C37 ->  | D36: ='Einsatz 1'!D37 -> 0 | E36: ='Einsatz 1'!E37 -> 0 | F36: ='Einsatz 1'!F37 -> 0 | G36: ='Einsatz 1'!G37 -> 0 | H36: ='Einsatz 1'!H37 -> 00:00:00 | I36: =IF($P$5="ja",'DRUCKEN - Alle Einsätze'!AD36+'DRUCKEN - Alle Einsätze'!AE36,0) -> 0.00 | J36: =IF($P$5="nein",'DRUCKEN - Alle Einsätze'!AD36+'DRUCKEN - Alle Einsätze'!AE36,0) -> 0.00 | K36: ='Einsatz 1'!BQ37+'Einsatz 2'!BQ36+'Einsatz 3'!BQ36 -> 0.00 | L36: ='Einsatz 1'!BR37+'Einsatz 2'!BR36+'Einsatz 3'!BR36 -> 0.00 | O36: ='Einsatz 1'!BU37+'Einsatz 2'!BU36+'Einsatz 3'!BU36 -> 0.00 | P36: ='Einsatz 1'!BV37+'Einsatz 2'!BV36+'Einsatz 3'!BV36 -> 0.00 | Q36: ='Einsatz 1'!BW37+'Einsatz 2'!BW36+'Einsatz 3'!BW36 -> 0.00 | R36: ='Einsatz 1'!BX37+'Einsatz 2'!BX36+'Einsatz 3'!BX36 -> 0.00
A37: Sonntag | B37: =IF(MONTH(B36+1)=O3,B36+1,"") -> 2023-01-29 | C37: ='Einsatz 1'!C38 ->  | D37: ='Einsatz 1'!D38 -> 0 | E37: ='Einsatz 1'!E38 -> 0 | F37: ='Einsatz 1'!F38 -> 0 | G37: ='Einsatz 1'!G38 -> 0 | H37: ='Einsatz 1'!H38 -> 00:00:00 | I37: =IF($P$5="ja",'DRUCKEN - Alle Einsätze'!AD37+'DRUCKEN - Alle Einsätze'!AE37,0) -> 0.00 | J37: =IF($P$5="nein",'DRUCKEN - Alle Einsätze'!AD37+'DRUCKEN - Alle Einsätze'!AE37,0) -> 0.00 | K37: ='Einsatz 1'!BQ38+'Einsatz 2'!BQ37+'Einsatz 3'!BQ37 -> 0.00 | L37: ='Einsatz 1'!BR38+'Einsatz 2'!BR37+'Einsatz 3'!BR37 -> 0.00 | O37: ='Einsatz 1'!BU38+'Einsatz 2'!BU37+'Einsatz 3'!BU37 -> 0.00 | P37: ='Einsatz 1'!BV38+'Einsatz 2'!BV37+'Einsatz 3'!BV37 -> 0.00 | Q37: ='Einsatz 1'!BW38+'Einsatz 2'!BW37+'Einsatz 3'!BW37 -> 0.00 | R37: ='Einsatz 1'!BX38+'Einsatz 2'!BX37+'Einsatz 3'!BX37 -> 0.00
A38: Montag | B38: =IF(MONTH(B36+2)=O3,B36+2,"") -> 2023-01-30 | C38: ='Einsatz 1'!C39 ->  | D38: ='Einsatz 1'!D39 -> 0 | E38: ='Einsatz 1'!E39 -> 0 | F38: ='Einsatz 1'!F39 -> 0 | G38: ='Einsatz 1'!G39 -> 0 | H38: ='Einsatz 1'!H39 -> 00:00:00 | I38: =IF($P$5="ja",'DRUCKEN - Alle Einsätze'!AD38+'DRUCKEN - Alle Einsätze'!AE38,0) -> 0.00 | J38: =IF($P$5="nein",'DRUCKEN - Alle Einsätze'!AD38+'DRUCKEN - Alle Einsätze'!AE38,0) -> 0.00 | K38: ='Einsatz 1'!BQ39+'Einsatz 2'!BQ38+'Einsatz 3'!BQ38 -> 0.00 | L38: ='Einsatz 1'!BR39+'Einsatz 2'!BR38+'Einsatz 3'!BR38 -> 0.00 | O38: ='Einsatz 1'!BU39+'Einsatz 2'!BU38+'Einsatz 3'!BU38 -> 0.00 | P38: ='Einsatz 1'!BV39+'Einsatz 2'!BV38+'Einsatz 3'!BV38 -> 0.00 | Q38: ='Einsatz 1'!BW39+'Einsatz 2'!BW38+'Einsatz 3'!BW38 -> 0.00 | R38: ='Einsatz 1'!BX39+'Einsatz 2'!BX38+'Einsatz 3'!BX38 -> 0.00
A39: Dienstag | B39: =IF(MONTH(B36+3)=O3,B36+3,"") -> 2023-01-31 | C39: ='Einsatz 1'!C40 ->  | D39: ='Einsatz 1'!D40 -> 0 | E39: ='Einsatz 1'!E40 -> 0 | F39: ='Einsatz 1'!F40 -> 0 | G39: ='Einsatz 1'!G40 -> 0 | H39: ='Einsatz 1'!H40 -> 00:00:00 | I39: =IF($P$5="ja",'DRUCKEN - Alle Einsätze'!AD39+'DRUCKEN - Alle Einsätze'!AE39,0) -> 0.00 | J39: =IF($P$5="nein",'DRUCKEN - Alle Einsätze'!AD39+'DRUCKEN - Alle Einsätze'!AE39,0) -> 0.00 | K39: ='Einsatz 1'!BQ40+'Einsatz 2'!BQ39+'Einsatz 3'!BQ39 -> 0.00 | L39: ='Einsatz 1'!BR40+'Einsatz 2'!BR39+'Einsatz 3'!BR39 -> 0.00 | M39: ='Einsatz 1'!BS40+'Einsatz 2'!BS39+'Einsatz 3'!BS39 -> 0.00 | N39: ='Einsatz 1'!BT40+'Einsatz 2'!BT39+'Einsatz 3'!BT39 -> 0.00 | O39: ='Einsatz 1'!BU40+'Einsatz 2'!BU39+'Einsatz 3'!BU39 -> 0.00 | P39: ='Einsatz 1'!BV40+'Einsatz 2'!BV39+'Einsatz 3'!BV39 -> 0.00 | Q39: ='Einsatz 1'!BW40+'Einsatz 2'!BW39+'Einsatz 3'!BW39 -> 0.00 | R39: ='Einsatz 1'!BX40+'Einsatz 2'!BX39+'Einsatz 3'!BX39 -> 0.00
I40: =SUM(I9:I39) -> 0.00 | J40: =SUM(J9:J39) -> 0.00 | K40: 0.00 | L40: 0.00 | M40: 0.00 | N40: 0.00 | O40: 0.00 | P40: 0.00 | Q40: 0.00 | R40: 0.00
D41: ='Einsatz 1'!D42 ->  | E41: ='Einsatz 1'!E42 ->  | F41: ='Einsatz 1'!F42 ->  | G41: ='Einsatz 1'!G42 ->  | H41: ='Einsatz 1'!H42 ->  | I41: =IF(I40=0,"",IF(I40>0,SUM(I9:I39),"")) ->  | J41: =IF(J40=0,"",IF(J40>0,SUM(J9:J39),"")) ->  | K41: =IF(K40=0,"",IF(K40>0,SUM(K9:K39),"")) ->  | L41: =IF(L40=0,"",IF(L40>0,SUM(L9:L39),"")) ->  | M41: =IF(M40=0,"",IF(M40>0,SUM(M9:M39),"")) ->  | N41: =IF(N40=0,"",IF(N40>0,SUM(N9:N39),"")) -> 
A42: * Es gelten nur die gesetzlichen Feiertage. Weihnachten und 1. Mai sind unter Lohnart 5071 gesondert berücksichtigt. | I42: ** Auszuwählen ist an jedem Urlaubs- und/oder Krankheitstag jeweils "ja". | N42: *** Auszuwählen ist "ja" nur an dem Tag, an dem die Rufbereitschaft begann.
Q43: ='Einsatz 1'!BV46 -> Stand des Formulars: 01.02.2023

Sheet Listen (hidden)
A1: 2021 | B1: 2022 | C1: 2023 | D1: 2024 | E1: 2025 | F1: 2026 | G1: 2027 | H1: 2028 | I1: 2029 | J1: 2030 | K1: 2031 | L1: 2032 | M1: 2033 | N1: 2034 | O1: 2035 | P1: 2036 | Q1: 2037 | R1: 2038 | S1: 2039 | T1: 2040
A2: 1 | B2: 2 | C2: 3 | D2: 4 | E2: 5 | F2: 6 | G2: 7 | H2: 8 | I2: 9 | J2: 10 | K2: 11 | L2: 12
B3: 17.04. | C3: 9.4. | D3: 31.3. | E3: 20.4. | F3: 5.4. | G3: 28.3. | H3: 16.4. | I3: 1.4. | J3: 21.4. | K3: 13.4. | L3: 28.3. | M3: 17.4. | N3: 9.4. | O3: 25.3. | P3: 13.4. | Q3: 5.4. | R3: 25.4. | S3: 10.4. | T3: 1.4.
B7: ja | C7: nein | G7: Neujahr | J7: Ostern | L7: Karfreitag | M7: Ostersonntag | N7: Ostermontag | O7: Chr. Himmelfehrt | P7: Pfingstsonntag | Q7: Pfingstmontag | R7: Fronleichnam
G8: Karfreitag | I8: 2022 | J8: 2022-04-17 | K8: 17.04. | L8: =M8-2 -> 103 | M8: =J8-DATE(I8,1,1)-1 -> 105 | N8: =M8+1 -> 106 | O8: =M8+39 -> 144 | P8: =M8+49 -> 154 | Q8: =M8+50 -> 155 | R8: =M8+60 -> 165
G9: Ostersonntag | I9: 2023 | J9: 2023-04-09 | K9: 9.4. | L9: =M9-2 -> 95 | M9: =J9-DATE(I9,1,1)-1 -> 97 | N9: =M9+1 -> 98 | O9: =M9+39 -> 136 | P9: =M9+49 -> 146 | Q9: =M9+50 -> 147 | R9: =M9+60 -> 157
G10: Ostermontag | I10: 2024 | J10: 2024-03-31 | K10: 31.3. | L10: 87 | M10: 89 | N10: 90 | O10: 128 | P10: 138 | Q10: 139 | R10: 149
G11: Chr. Himmelfahrt | I11: 2025 | J11: 2025-04-20 | K11: 20.4. | L11: 106 | M11: 108 | N11: 109 | O11: 147 | P11: 157 | Q11: 158 | R11: 168
G12: Pfingstmontag | I12: 2026 | J12: 2026-04-05 | K12: 5.4. | L12: 91 | M12: 93 | N12: 94 | O12: 132 | P12: 142 | Q12: 143 | R12: 153
G13: Fronleichnam | I13: 2027 | J13: 2027-03-28 | K13: 28.3. | L13: 83 | M13: 85 | N13: 86 | O13: 124 | P13: 134 | Q13: 135 | R13: 145
G14: Tag der Arbeit | I14: 2028 | J14: 2028-04-16 | K14: 16.4. | L14: 103 | M14: 105 | N14: 106 | O14: 144 | P14: 154 | Q14: 155 | R14: 165
G15: Tag d. dt. Einheit | I15: 2029 | J15: 2029-04-01 | K15: 1.4. | L15: 87 | M15: 89 | N15: 90 | O15: 128 | P15: 138 | Q15: 139 | R15: 149
G16: Allerheiligen | I16: 2030 | J16: 2030-04-21 | K16: 21.4. | L16: 107 | M16: 109 | N16: 110 | O16: 148 | P16: 158 | Q16: 159 | R16: 169
I17: 2031 | J17: 2031-04-13 | K17: 13.4. | L17: 99 | M17: 101 | N17: 102 | O17: 140 | P17: 150 | Q17: 151 | R17: 161
I18: 2032 | J18: 2032-03-28 | K18: 28.3. | L18: 84 | M18: 86 | N18: 87 | O18: 125 | P18: 135 | Q18: 136 | R18: 146
I19: 2033 | J19: 2033-04-17 | K19: 17.4. | L19: 103 | M19: 105 | N19: 106 | O19: 144 | P19: 154 | Q19: 155 | R19: 165
I20: 2034 | J20: 2034-04-09 | K20: 9.4. | L20: 95 | M20: 97 | N20: 98 | O20: 136 | P20: 146 | Q20: 147 | R20: 157
I21: 2035 | J21: 2035-03-25 | K21: 25.3. | L21: 80 | M21: 82 | N21: 83 | O21: 121 | P21: 131 | Q21: 132 | R21: 142
I22: 2036 | J22: 2036-04-13 | K22: 13.4. | L22: 100 | M22: 102 | N22: 103 | O22: 141 | P22: 151 | Q22: 152 | R22: 162
I23: 2037 | J23: 2037-04-05 | K23: 5.4. | L23: 91 | M23: 93 | N23: 94 | O23: 132 | P23: 142 | Q23: 143 | R23: 153
I24: 2038 | J24: 2038-04-25 | K24: 25.4. | L24: 111 | M24: 113 | N24: 114 | O24: 152 | P24: 162 | Q24: 163 | R24: 173
I25: 2039 | J25: 2039-04-10 | K25: 10.4. | L25: 96 | M25: 98 | N25: 99 | O25: 137 | P25: 147 | Q25: 148 | R25: 158
I26: 2040 | J26: 2040-04-01 | K26: 1.4. | L26: 88 | M26: 90 | N26: 91 | O26: 129 | P26: 139 | Q26: 140 | R26: 150
